Workbook

Sheet Sessions
A1: TotalCount | B1: RowNum | C1: SubscriberId | D1: Subscriber | E1: StartTime | F1: EndTime | G1: DurationString | H1: SessionType | I1: PageViewCount | J1: IPAddress | K1: AppVersion | L1: Location | M1: IP1 | N1: IP2 | O1: IP3 | P1: IP4 | Q1: IPValue | R1: Valid?
A2: 6139 | B2: 4116 | C2: 0 | D2: Anonymous | E2: 2021-06-22T03:22:33.597 | F2: 2021-06-22T03:53:27.377 | G2: 00:30:54 | H2: Auto-IP | I2: 1 | J2: 92.60.248.46 | K2: Legacy | L2: London | M2: =_xlfn.NUMBERVALUE(MID(J2,1,FIND(".",J2)-1)) -> 92 | N2: =_xlfn.NUMBERVALUE(MID(J2,FIND(".",J2)+1,FIND(".",J2,FIND(".",J2)+1)-1-FIND(".",J2))) -> 60 | O2: =_xlfn.NUMBERVALUE(MID(J2,FIND(".",J2,FIND(".",J2)+1)+1,FIND(".",J2,FIND(".",J2,FIND(".",J2)+1)+1)-1-FIND(".",J2,FIND(".",J2)+1))) -> 248 | P2: =_xlfn.NUMBERVALUE(MID(J2,FIND(".",J2,FIND(".",J2,FIND(".",J2)+1)+1)+1,LEN(J2))) -> 46 | Q2: =M2*256^3+N2*256^2+O2*256+P2 -> 1547499566 | R2: =IpIsValid(Q2) -> TRUE
A3: 6139 | B3: 4117 | C3: 0 | D3: Anonymous | E3: 2021-06-22T04:04:08.163 | F3: 2021-06-22T04:43:00.477 | G3: 00:38:52 | H3: Auto-IP | I3: 15 | J3: 154.14.25.2 | K3: Legacy | L3: London | M3: =_xlfn.NUMBERVALUE(MID(J3,1,FIND(".",J3)-1)) -> 154 | N3: =_xlfn.NUMBERVALUE(MID(J3,FIND(".",J3)+1,FIND(".",J3,FIND(".",J3)+1)-1-FIND(".",J3))) -> 14 | O3: =_xlfn.NUMBERVALUE(MID(J3,FIND(".",J3,FIND(".",J3)+1)+1,FIND(".",J3,FIND(".",J3,FIND(".",J3)+1)+1)-1-FIND(".",J3,FIND(".",J3)+1))) -> 25 | P3: =_xlfn.NUMBERVALUE(MID(J3,FIND(".",J3,FIND(".",J3,FIND(".",J3)+1)+1)+1,LEN(J3))) -> 2 | Q3: =M3*256^3+N3*256^2+O3*256+P3 -> 2584615170 | R3: =IpIsValid(Q3) -> TRUE
A4: 6139 | B4: 4080 | C4: 0 | D4: Anonymous | E4: 2021-06-22T04:32:05.370 | F4: 2021-06-22T06:06:30.377 | G4: 01:34:25 | H4: Auto-IP | I4: 2 | J4: 92.60.248.46 | K4: Beta | L4: London | M4: 92 | N4: 60 | O4: 248 | P4: 46 | Q4: 1547499566 | R4: =IpIsValid(Q4) -> TRUE
A5: 6139 | B5: 4081 | C5: 0 | D5: Anonymous | E5: 2021-06-22T05:24:18.853 | F5: 2021-06-22T07:52:02.927 | G5: 02:27:44 | H5: Auto-IP | I5: 5 | J5: 213.68.249.90 | K5: Beta | L5: London | M5: 213 | N5: 68 | O5: 249 | P5: 90 | Q5: 3578067290 | R5: =IpIsValid(Q5) -> TRUE
A6: 6139 | B6: 4083 | C6: 0 | D6: Anonymous | E6: 2021-06-22T05:27:43.913 | F6: 2021-06-22T06:23:33.830 | G6: 00:55:50 | H6: Auto-IP | I6: 0 | J6: 154.14.25.2 | K6: Beta | L6: London | M6: 154 | N6: 14 | O6: 25 | P6: 2 | Q6: 2584615170 | R6: =IpIsValid(Q6) -> TRUE
A7: 6139 | B7: 4082 | C7: 0 | D7: Anonymous | E7: 2021-06-22T05:27:43.917 | F7: 2021-06-22T05:27:43.917 | G7: 00:00:00 | H7: Auto-IP | I7: 0 | J7: 154.14.25.2 | K7: Beta | L7: London | M7: 154 | N7: 14 | O7: 25 | P7: 2 | Q7: 2584615170 | R7: =IpIsValid(Q7) -> TRUE
A8: 6139 | B8: 4084 | C8: 0 | D8: Anonymous | E8: 2021-06-22T07:59:04.517 | F8: 2021-06-22T11:01:31.770 | G8: 03:02:27 | H8: Auto-IP | I8: 7 | J8: 213.68.249.90 | K8: Beta | L8: London | M8: 213 | N8: 68 | O8: 249 | P8: 90 | Q8: 3578067290 | R8: =IpIsValid(Q8) -> TRUE
A9: 6139 | B9: 4085 | C9: 0 | D9: Anonymous | E9: 2021-06-22T10:10:12.933 | F9: 2021-06-22T10:10:12.933 | G9: 00:00:00 | H9: Auto-IP | I9: 0 | J9: 92.60.248.46 | K9: Beta | L9: London | M9: 92 | N9: 60 | O9: 248 | P9: 46 | Q9: 1547499566 | R9: =IpIsValid(Q9) -> TRUE
A10: 6139 | B10: 4086 | C10: 0 | D10: Anonymous | E10: 2021-06-22T10:10:13.367 | F10: 2021-06-22T10:49:24.970 | G10: 00:39:11 | H10: Auto-IP | I10: 1 | J10: 92.60.248.46 | K10: Beta | L10: London | M10: 92 | N10: 60 | O10: 248 | P10: 46 | Q10: 1547499566 | R10: =IpIsValid(Q10) -> TRUE
A11: 6139 | B11: 4087 | C11: 0 | D11: Anonymous | E11: 2021-06-22T11:04:57.700 | F11: 2021-06-22T11:46:50.980 | G11: 00:41:53 | H11: Auto-IP | I11: 2 | J11: 213.68.249.90 | K11: Beta | L11: London | M11: 213 | N11: 68 | O11: 249 | P11: 90 | Q11: 3578067290 | R11: =IpIsValid(Q11) -> TRUE
A12: 6139 | B12: 4118 | C12: 0 | D12: Anonymous | E12: 2021-06-22T11:19:10.130 | F12: 2021-06-22T12:10:55.737 | G12: 00:51:45 | H12: Auto-IP | I12: 15 | J12: 213.68.249.97 | K12: Legacy | L12: London | M12: 213 | N12: 68 | O12: 249 | P12: 97 | Q12: 3578067297 | R12: =IpIsValid(Q12) -> TRUE
A13: 6139 | B13: 4088 | C13: 0 | D13: Anonymous | E13: 2021-06-22T11:36:50.797 | F13: 2021-06-22T12:10:23.220 | G13: 00:33:33 | H13: Auto-IP | I13: 4 | J13: 92.60.248.46 | K13: Beta | L13: London | M13: 92 | N13: 60 | O13: 248 | P13: 46 | Q13: 1547499566 | R13: =IpIsValid(Q13) -> TRUE
A14: 6139 | B14: 4119 | C14: 0 | D14: Anonymous | E14: 2021-06-22T12:06:27.330 | F14: 2021-06-22T12:10:55.940 | G14: 00:04:28 | H14: Auto-IP | I14: 6 | J14: 63.115.56.65 | K14: Legacy | L14: London | M14: 63 | N14: 115 | O14: 56 | P14: 65 | Q14: 1064515649 | R14: =IpIsValid(Q14) -> TRUE
A15: 6139 | B15: 4089 | C15: 0 | D15: Anonymous | E15: 2021-06-22T12:08:30.593 | F15: 2021-06-22T12:11:16.673 | G15: 00:02:46 | H15: Auto-IP | I15: 4 | J15: 213.68.249.90 | K15: Beta | L15: London | M15: 213 | N15: 68 | O15: 249 | P15: 90 | Q15: 3578067290 | R15: =IpIsValid(Q15) -> TRUE
A16: 6139 | B16: 4090 | C16: 0 | D16: Anonymous | E16: 2021-06-22T12:11:22.977 | F16: 2021-06-22T12:11:31.303 | G16: 00:00:09 | H16: Auto-IP | I16: 0 | J16: 213.68.249.90 | K16: Beta | L16: London | M16: 213 | N16: 68 | O16: 249 | P16: 90 | Q16: 3578067290 | R16: =IpIsValid(Q16) -> TRUE
A17: 6139 | B17: 4091 | C17: 0 | D17: Anonymous | E17: 2021-06-22T12:11:23.733 | F17: 2021-06-22T12:11:24.887 | G17: 00:00:01 | H17: Auto-IP | I17: 0 | J17: 92.60.248.46 | K17: Beta | L17: London | M17: 92 | N17: 60 | O17: 248 | P17: 46 | Q17: 1547499566 | R17: =IpIsValid(Q17) -> TRUE
A18: 6139 | B18: 4092 | C18: 0 | D18: Anonymous | E18: 2021-06-22T12:11:23.813 | F18: 2021-06-22T12:11:31.707 | G18: 00:00:08 | H18: Auto-IP | I18: 0 | J18: 213.68.249.90 | K18: Beta | L18: London | M18: 213 | N18: 68 | O18: 249 | P18: 90 | Q18: 3578067290 | R18: =IpIsValid(Q18) -> TRUE
A19: 6139 | B19: 4093 | C19: 0 | D19: Anonymous | E19: 2021-06-22T12:11:24.057 | F19: 2021-06-22T12:21:23.110 | G19: 00:09:59 | H19: Auto-IP | I19: 0 | J19: 92.60.248.46 | K19: Beta | L19: London | M19: 92 | N19: 60 | O19: 248 | P19: 46 | Q19: 1547499566 | R19: =IpIsValid(Q19) -> TRUE
A20: 6139 | B20: 4094 | C20: 0 | D20: Anonymous | E20: 2021-06-22T12:11:24.180 | F20: 2021-06-22T12:11:33.870 | G20: 00:00:09 | H20: Auto-IP | I20: 0 | J20: 213.68.249.90 | K20: Beta | L20: London | M20: 213 | N20: 68 | O20: 249 | P20: 90 | Q20: 3578067290 | R20: =IpIsValid(Q20) -> TRUE
A21: 6139 | B21: 4095 | C21: 0 | D21: Anonymous | E21: 2021-06-22T12:11:24.867 | F21: 2021-06-22T12:11:35.127 | G21: 00:00:11 | H21: Auto-IP | I21: 0 | J21: 213.68.249.90 | K21: Beta | L21: London | M21: 213 | N21: 68 | O21: 249 | P21: 90 | Q21: 3578067290 | R21: =IpIsValid(Q21) -> TRUE
A22: 6139 | B22: 4096 | C22: 0 | D22: Anonymous | E22: 2021-06-22T12:11:25.590 | F22: 2021-06-22T12:11:35.470 | G22: 00:00:10 | H22: Auto-IP | I22: 0 | J22: 213.68.249.90 | K22: Beta | L22: London | M22: 213 | N22: 68 | O22: 249 | P22: 90 | Q22: 3578067290 | R22: =IpIsValid(Q22) -> TRUE
A23: 6139 | B23: 4097 | C23: 0 | D23: Anonymous | E23: 2021-06-22T12:11:26.057 | F23: 2021-06-22T12:11:35.693 | G23: 00:00:09 | H23: Auto-IP | I23: 0 | J23: 213.68.249.90 | K23: Beta | L23: London | M23: 213 | N23: 68 | O23: 249 | P23: 90 | Q23: 3578067290 | R23: =IpIsValid(Q23) -> TRUE
A24: 6139 | B24: 4098 | C24: 0 | D24: Anonymous | E24: 2021-06-22T12:11:26.290 | F24: 2021-06-22T12:11:36.143 | G24: 00:00:10 | H24: Auto-IP | I24: 0 | J24: 213.68.249.90 | K24: Beta | L24: London | M24: 213 | N24: 68 | O24: 249 | P24: 90 | Q24: 3578067290 | R24: =IpIsValid(Q24) -> TRUE
A25: 6139 | B25: 4099 | C25: 0 | D25: Anonymous | E25: 2021-06-22T12:11:26.643 | F25: 2021-06-22T12:11:36.827 | G25: 00:00:10 | H25: Auto-IP | I25: 0 | J25: 213.68.249.90 | K25: Beta | L25: London | M25: 213 | N25: 68 | O25: 249 | P25: 90 | Q25: 3578067290 | R25: =IpIsValid(Q25) -> TRUE
A26: 6139 | B26: 4100 | C26: 0 | D26: Anonymous | E26: 2021-06-22T12:11:26.860 | F26: 2021-06-22T12:11:37.067 | G26: 00:00:11 | H26: Auto-IP | I26: 0 | J26: 213.68.249.90 | K26: Beta | L26: London | M26: 213 | N26: 68 | O26: 249 | P26: 90 | Q26: 3578067290 | R26: =IpIsValid(Q26) -> TRUE
A27: 6139 | B27: 4101 | C27: 0 | D27: Anonymous | E27: 2021-06-22T12:11:27.090 | F27: 2021-06-22T12:11:37.290 | G27: 00:00:10 | H27: Auto-IP | I27: 0 | J27: 213.68.249.90 | K27: Beta | L27: London | M27: 213 | N27: 68 | O27: 249 | P27: 90 | Q27: 3578067290 | R27: =IpIsValid(Q27) -> TRUE
A28: 6139 | B28: 4102 | C28: 0 | D28: Anonymous | E28: 2021-06-22T12:11:27.310 | F28: 2021-06-22T12:11:37.733 | G28: 00:00:10 | H28: Auto-IP | I28: 0 | J28: 213.68.249.90 | K28: Beta | L28: London | M28: 213 | N28: 68 | O28: 249 | P28: 90 | Q28: 3578067290 | R28: =IpIsValid(Q28) -> TRUE
A29: 6139 | B29: 4103 | C29: 0 | D29: Anonymous | E29: 2021-06-22T12:11:27.527 | F29: 2021-06-22T12:11:38.760 | G29: 00:00:11 | H29: Auto-IP | I29: 0 | J29: 213.68.249.90 | K29: Beta | L29: London | M29: 213 | N29: 68 | O29: 249 | P29: 90 | Q29: 3578067290 | R29: =IpIsValid(Q29) -> TRUE
A30: 6139 | B30: 4104 | C30: 0 | D30: Anonymous | E30: 2021-06-22T12:11:27.797 | F30: 2021-06-22T12:11:39.060 | G30: 00:00:12 | H30: Auto-IP | I30: 0 | J30: 213.68.249.90 | K30: Beta | L30: London | M30: 213 | N30: 68 | O30: 249 | P30: 90 | Q30: 3578067290 | R30: =IpIsValid(Q30) -> TRUE
A31: 6139 | B31: 4105 | C31: 0 | D31: Anonymous | E31: 2021-06-22T12:11:28.107 | F31: 2021-06-22T12:11:39.573 | G31: 00:00:11 | H31: Auto-IP | I31: 0 | J31: 213.68.249.90 | K31: Beta | L31: London | M31: 213 | N31: 68 | O31: 249 | P31: 90 | Q31: 3578067290 | R31: =IpIsValid(Q31) -> TRUE
A32: 6139 | B32: 4106 | C32: 0 | D32: Anonymous | E32: 2021-06-22T12:11:28.507 | F32: 2021-06-22T12:11:40.370 | G32: 00:00:12 | H32: Auto-IP | I32: 0 | J32: 213.68.249.90 | K32: Beta | L32: London | M32: 213 | N32: 68 | O32: 249 | P32: 90 | Q32: 3578067290 | R32: =IpIsValid(Q32) -> TRUE
A33: 6139 | B33: 4107 | C33: 0 | D33: Anonymous | E33: 2021-06-22T12:11:28.873 | F33: 2021-06-22T12:11:40.650 | G33: 00:00:12 | H33: Auto-IP | I33: 0 | J33: 213.68.249.90 | K33: Beta | L33: London | M33: 213 | N33: 68 | O33: 249 | P33: 90 | Q33: 3578067290 | R33: =IpIsValid(Q33) -> TRUE
A34: 6139 | B34: 4108 | C34: 0 | D34: Anonymous | E34: 2021-06-22T12:11:29.340 | F34: 2021-06-22T12:11:41.163 | G34: 00:00:12 | H34: Auto-IP | I34: 0 | J34: 213.68.249.90 | K34: Beta | L34: London | M34: 213 | N34: 68 | O34: 249 | P34: 90 | Q34: 3578067290 | R34: =IpIsValid(Q34) -> TRUE
A35: 6139 | B35: 4109 | C35: 0 | D35: Anonymous | E35: 2021-06-22T12:11:29.640 | F35: 2021-06-22T12:11:41.833 | G35: 00:00:12 | H35: Auto-IP | I35: 0 | J35: 213.68.249.90 | K35: Beta | L35: London | M35: 213 | N35: 68 | O35: 249 | P35: 90 | Q35: 3578067290 | R35: =IpIsValid(Q35) -> TRUE
A36: 6139 | B36: 4110 | C36: 0 | D36: Anonymous | E36: 2021-06-22T12:11:29.957 | F36: 2021-06-22T12:11:42.057 | G36: 00:00:13 | H36: Auto-IP | I36: 0 | J36: 213.68.249.90 | K36: Beta | L36: London | M36: 213 | N36: 68 | O36: 249 | P36: 90 | Q36: 3578067290 | R36: =IpIsValid(Q36) -> TRUE
A37: 6139 | B37: 4111 | C37: 0 | D37: Anonymous | E37: 2021-06-22T12:11:30.280 | F37: 2021-06-22T12:11:42.500 | G37: 00:00:12 | H37: Auto-IP | I37: 0 | J37: 213.68.249.90 | K37: Beta | L37: London | M37: 213 | N37: 68 | O37: 249 | P37: 90 | Q37: 3578067290 | R37: =IpIsValid(Q37) -> TRUE
A38: 6139 | B38: 4112 | C38: 0 | D38: Anonymous | E38: 2021-06-22T12:11:30.573 | F38: 2021-06-22T12:15:26.943 | G38: 00:03:56 | H38: Auto-IP | I38: 1 | J38: 213.68.249.90 | K38: Beta | L38: London | M38: 213 | N38: 68 | O38: 249 | P38: 90 | Q38: 3578067290 | R38: =IpIsValid(Q38) -> TRUE
A39: 6139 | B39: 4120 | C39: 0 | D39: Anonymous | E39: 2021-06-22T12:13:31.610 | F39: 2021-06-22T12:51:59.253 | G39: 00:38:28 | H39: Auto-IP | I39: 7 | J39: 213.68.249.97 | K39: Legacy | L39: London | M39: 213 | N39: 68 | O39: 249 | P39: 97 | Q39: 3578067297 | R39: =IpIsValid(Q39) -> TRUE
A40: 6139 | B40: 4121 | C40: 0 | D40: Anonymous | E40: 2021-06-22T12:14:55.770 | F40: 2021-06-22T13:32:47.827 | G40: 01:17:52 | H40: Auto-IP | I40: 10 | J40: 63.115.56.65 | K40: Legacy | L40: London | M40: 63 | N40: 115 | O40: 56 | P40: 65 | Q40: 1064515649 | R40: =IpIsValid(Q40) -> TRUE
A41: 6139 | B41: 4113 | C41: 0 | D41: Anonymous | E41: 2021-06-22T12:29:58.330 | F41: 2021-06-22T13:03:23.010 | G41: 00:33:25 | H41: Auto-IP | I41: 3 | J41: 92.60.248.46 | K41: Beta | L41: London | M41: 92 | N41: 60 | O41: 248 | P41: 46 | Q41: 1547499566 | R41: =IpIsValid(Q41) -> TRUE
A42: 6139 | B42: 4122 | C42: 0 | D42: Anonymous | E42: 2021-06-22T12:49:11.520 | F42: 2021-06-22T13:20:05.667 | G42: 00:30:54 | H42: Auto-IP | I42: 1 | J42: 154.14.25.2 | K42: Legacy | L42: London | M42: 154 | N42: 14 | O42: 25 | P42: 2 | Q42: 2584615170 | R42: =IpIsValid(Q42) -> TRUE
A43: 6139 | B43: 4123 | C43: 0 | D43: Anonymous | E43: 2021-06-22T12:52:02.897 | F43: 2021-06-22T12:56:02.227 | G43: 00:04:00 | H43: Auto-IP | I43: 1 | J43: 213.68.249.97 | K43: Legacy | L43: London | M43: 213 | N43: 68 | O43: 249 | P43: 97 | Q43: 3578067297 | R43: =IpIsValid(Q43) -> TRUE
A44: 6139 | B44: 4114 | C44: 0 | D44: Anonymous | E44: 2021-06-22T12:58:01.930 | F44: 2021-06-22T13:25:00.937 | G44: 00:26:59 | H44: Auto-IP | I44: 0 | J44: 213.68.249.90 | K44: Beta | L44: London | M44: 213 | N44: 68 | O44: 249 | P44: 90 | Q44: 3578067290 | R44: =IpIsValid(Q44) -> TRUE
A45: 6139 | B45: 4124 | C45: 0 | D45: Anonymous | E45: 2021-06-22T12:58:08.230 | F45: 2021-06-22T12:58:59.227 | G45: 00:00:51 | H45: Auto-IP | I45: 1 | J45: 213.68.249.97 | K45: Legacy | L45: London | M45: 213 | N45: 68 | O45: 249 | P45: 97 | Q45: 3578067297 | R45: =IpIsValid(Q45) -> TRUE
A46: 6139 | B46: 4125 | C46: 0 | D46: Anonymous | E46: 2021-06-22T13:27:19.500 | F46: 2021-06-22T13:40:32.403 | G46: 00:13:13 | H46: Auto-IP | I46: 1 | J46: 213.68.249.97 | K46: Legacy | L46: London | M46: 213 | N46: 68 | O46: 249 | P46: 97 | Q46: 3578067297 | R46: =IpIsValid(Q46) -> TRUE
A47: 6139 | B47: 4115 | C47: 0 | D47: Anonymous | E47: 2021-06-22T13:30:45.780 | F47: 2021-06-22T14:02:08.270 | G47: 00:31:23 | H47: Auto-IP | I47: 4 | J47: 92.60.248.46 | K47: Beta | L47: London | M47: 92 | N47: 60 | O47: 248 | P47: 46 | Q47: 1547499566 | R47: =IpIsValid(Q47) -> TRUE
A48: 6139 | B48: 4126 | C48: 0 | D48: Anonymous | E48: 2021-06-22T13:31:37.890 | F48: 2021-06-22T18:36:07.353 | G48: 05:04:30 | H48: Auto-IP | I48: 4 | J48: 213.68.249.97 | K48: Legacy | L48: London | M48: 213 | N48: 68 | O48: 249 | P48: 97 | Q48: 3578067297 | R48: =IpIsValid(Q48) -> TRUE
A49: 6139 | B49: 4127 | C49: 0 | D49: Anonymous | E49: 2021-06-22T13:44:35.627 | F49: 2021-06-22T15:43:50.733 | G49: 01:59:15 | H49: Auto-IP | I49: 5 | J49: 63.115.56.65 | K49: Legacy | L49: London | M49: 63 | N49: 115 | O49: 56 | P49: 65 | Q49: 1064515649 | R49: =IpIsValid(Q49) -> TRUE
A50: 6139 | B50: 4128 | C50: 0 | D50: Anonymous | E50: 2021-06-22T17:10:46.240 | F50: 2021-06-22T17:56:50.710 | G50: 00:46:04 | H50: Auto-IP | I50: 12 | J50: 63.115.56.65 | K50: Legacy | L50: London | M50: 63 | N50: 115 | O50: 56 | P50: 65 | Q50: 1064515649 | R50: =IpIsValid(Q50) -> TRUE
A51: 6139 | B51: 4129 | C51: 0 | D51: Anonymous | E51: 2021-06-23T02:30:56.913 | F51: 2021-06-23T03:00:55.697 | G51: 00:29:59 | H51: Auto-IP | I51: 1 | J51: 154.14.25.2 | K51: Beta | L51: London | M51: 154 | N51: 14 | O51: 25 | P51: 2 | Q51: 2584615170 | R51: =IpIsValid(Q51) -> TRUE
A52: 6139 | B52: 4130 | C52: 0 | D52: Anonymous | E52: 2021-06-23T06:37:24.597 | F52: 2021-06-23T08:03:55.053 | G52: 01:26:31 | H52: Auto-IP | I52: 2 | J52: 213.68.249.90 | K52: Beta | L52: London | M52: 213 | N52: 68 | O52: 249 | P52: 90 | Q52: 3578067290 | R52: =IpIsValid(Q52) -> TRUE
A53: 6139 | B53: 4131 | C53: 0 | D53: Anonymous | E53: 2021-06-23T09:23:43 | F53: 2021-06-23T10:59:23.720 | G53: 01:35:40 | H53: Auto-IP | I53: 10 | J53: 92.60.248.46 | K53: Beta | L53: London | M53: 92 | N53: 60 | O53: 248 | P53: 46 | Q53: 1547499566 | R53: =IpIsValid(Q53) -> TRUE
A54: 6139 | B54: 4258 | C54: 0 | D54: Anonymous | E54: 2021-06-23T09:31:43.380 | F54: 2021-06-23T09:31:58.763 | G54: 00:00:15 | H54: Auto-IP | I54: 2 | J54: 213.68.249.90 | K54: Legacy | L54: London | M54: 213 | N54: 68 | O54: 249 | P54: 90 | Q54: 3578067290 | R54: =IpIsValid(Q54) -> TRUE
A55: 6139 | B55: 4132 | C55: 0 | D55: Anonymous | E55: 2021-06-23T09:32:06.737 | F55: 2021-06-23T11:25:58.843 | G55: 01:53:52 | H55: Auto-IP | I55: 2 | J55: 213.68.249.90 | K55: Beta | L55: London | M55: 213 | N55: 68 | O55: 249 | P55: 90 | Q55: 3578067290 | R55: =IpIsValid(Q55) -> TRUE
A56: 6139 | B56: 4259 | C56: 0 | D56: Anonymous | E56: 2021-06-23T09:32:50.773 | F56: 2021-06-23T09:32:58.903 | G56: 00:00:08 | H56: Auto-IP | I56: 1 | J56: 83.111.130.50 | K56: Legacy | L56: London | M56: 83 | N56: 111 | O56: 130 | P56: 50 | Q56: 1399816754 | R56: =IpIsValid(Q56) -> TRUE
A57: 6139 | B57: 4133 | C57: 0 | D57: Anonymous | E57: 2021-06-23T09:33:55.050 | F57: 2021-06-23T09:35:48.677 | G57: 00:01:53 | H57: Auto-IP | I57: 2 | J57: 83.111.130.50 | K57: Beta | L57: London | M57: 83 | N57: 111 | O57: 130 | P57: 50 | Q57: 1399816754 | R57: =IpIsValid(Q57) -> TRUE
A58: 6139 | B58: 4134 | C58: 0 | D58: Anonymous | E58: 2021-06-23T09:34:40.273 | F58: 2021-06-23T10:12:44.913 | G58: 00:38:04 | H58: Auto-IP | I58: 1 | J58: 154.14.25.2 | K58: Beta | L58: London | M58: 154 | N58: 14 | O58: 25 | P58: 2 | Q58: 2584615170 | R58: =IpIsValid(Q58) -> TRUE
A59: 6139 | B59: 4260 | C59: 0 | D59: Anonymous | E59: 2021-06-23T09:35:50.283 | F59: 2021-06-23T11:54:04.457 | G59: 02:18:14 | H59: Auto-IP | I59: 1 | J59: 83.111.130.50 | K59: Legacy | L59: London | M59: 83 | N59: 111 | O59: 130 | P59: 50 | Q59: 1399816754 | R59: =IpIsValid(Q59) -> TRUE
A60: 6139 | B60: 4261 | C60: 0 | D60: Anonymous | E60: 2021-06-23T09:43:32.840 | F60: 2021-06-23T10:25:23.750 | G60: 00:41:51 | H60: Auto-IP | I60: 2 | J60: 92.60.248.46 | K60: Legacy | L60: London | M60: 92 | N60: 60 | O60: 248 | P60: 46 | Q60: 1547499566 | R60: =IpIsValid(Q60) -> TRUE
A61: 6139 | B61: 4135 | C61: 0 | D61: Anonymous | E61: 2021-06-23T11:21:53.183 | F61: 2021-06-23T11:57:24.137 | G61: 00:35:31 | H61: Auto-IP | I61: 6 | J61: 92.60.248.46 | K61: Beta | L61: London | M61: 92 | N61: 60 | O61: 248 | P61: 46 | Q61: 1547499566 | R61: =IpIsValid(Q61) -> TRUE
A62: 6139 | B62: 4262 | C62: 0 | D62: Anonymous | E62: 2021-06-23T11:40:35.447 | F62: 2021-06-23T12:10:46.330 | G62: 00:30:11 | H62: Auto-IP | I62: 2 | J62: 63.115.56.65 | K62: Legacy | L62: London | M62: 63 | N62: 115 | O62: 56 | P62: 65 | Q62: 1064515649 | R62: =IpIsValid(Q62) -> TRUE
A63: 6139 | B63: 4136 | C63: 0 | D63: Anonymous | E63: 2021-06-23T11:57:49.707 | F63: 2021-06-23T13:06:49.060 | G63: 01:09:00 | H63: Auto-IP | I63: 0 | J63: 92.60.248.46 | K63: Beta | L63: London | M63: 92 | N63: 60 | O63: 248 | P63: 46 | Q63: 1547499566 | R63: =IpIsValid(Q63) -> TRUE
A64: 6139 | B64: 4137 | C64: 0 | D64: Anonymous | E64: 2021-06-23T13:09:33.920 | F64: 2021-06-23T15:15:38.640 | G64: 02:06:05 | H64: Auto-IP | I64: 8 | J64: 213.68.249.90 | K64: Beta | L64: London | M64: 213 | N64: 68 | O64: 249 | P64: 90 | Q64: 3578067290 | R64: =IpIsValid(Q64) -> TRUE
A65: 6139 | B65: 4263 | C65: 0 | D65: Anonymous | E65: 2021-06-23T13:16:38.790 | F65: 2021-06-23T13:48:46.250 | G65: 00:32:08 | H65: Auto-IP | I65: 1 | J65: 63.115.56.65 | K65: Legacy | L65: London | M65: 63 | N65: 115 | O65: 56 | P65: 65 | Q65: 1064515649 | R65: =IpIsValid(Q65) -> TRUE
A66: 6139 | B66: 4264 | C66: 0 | D66: Anonymous | E66: 2021-06-23T14:55:09.273 | F66: 2021-06-23T15:25:46.253 | G66: 00:30:37 | H66: Auto-IP | I66: 1 | J66: 63.115.56.65 | K66: Legacy | L66: London | M66: 63 | N66: 115 | O66: 56 | P66: 65 | Q66: 1064515649 | R66: =IpIsValid(Q66) -> TRUE
A67: 6139 | B67: 4138 | C67: 0 | D67: Anonymous | E67: 2021-06-23T15:45:52.690 | F67: 2021-06-23T15:59:07.183 | G67: 00:13:15 | H67: Auto-IP | I67: 0 | J67: 75.57.28.88 | K67: Beta | L67: London | M67: =_xlfn.NUMBERVALUE(MID(J67,1,FIND(".",J67)-1)) -> 75 | N67: =_xlfn.NUMBERVALUE(MID(J67,FIND(".",J67)+1,FIND(".",J67,FIND(".",J67)+1)-1-FIND(".",J67))) -> 57 | O67: =_xlfn.NUMBERVALUE(MID(J67,FIND(".",J67,FIND(".",J67)+1)+1,FIND(".",J67,FIND(".",J67,FIND(".",J67)+1)+1)-1-FIND(".",J67,FIND(".",J67)+1))) -> 28 | P67: =_xlfn.NUMBERVALUE(MID(J67,FIND(".",J67,FIND(".",J67,FIND(".",J67)+1)+1)+1,LEN(J67))) -> 88 | Q67: =M67*256^3+N67*256^2+O67*256+P67 -> 1262034008 | R67: =IpIsValid(Q67) -> FALSE
A68: 6139 | B68: 4139 | C68: 0 | D68: Anonymous | E68: 2021-06-23T16:01:49.047 | F68: 2021-06-23T17:01:10.443 | G68: 00:59:21 | H68: Auto-IP | I68: 11 | J68: 128.177.151.211 | K68: Beta | L68: London | M68: 128 | N68: 177 | O68: 151 | P68: 211 | Q68: 2159122387 | R68: =IpIsValid(Q68) -> FALSE
A69: 6139 | B69: 4140 | C69: 0 | D69: Anonymous | E69: 2021-06-23T16:04:36.207 | F69: 2021-06-23T17:11:16.960 | G69: 01:06:40 | H69: Auto-IP | I69: 1 | J69: 63.131.130.254 | K69: Beta | L69: London | M69: 63 | N69: 131 | O69: 130 | P69: 254 | Q69: 1065583358 | R69: =IpIsValid(Q69) -> FALSE
A70: 6139 | B70: 4141 | C70: 0 | D70: Anonymous | E70: 2021-06-23T16:51:20.237 | F70: 2021-06-23T17:11:17.030 | G70: 00:19:57 | H70: Auto-IP | I70: 9 | J70: 146.50.98.29 | K70: Beta | L70: London | M70: 146 | N70: 50 | O70: 98 | P70: 29 | Q70: 2452775453 | R70: =IpIsValid(Q70) -> FALSE
A71: 6139 | B71: 4142 | C71: 0 | D71: Anonymous | E71: 2021-06-23T17:11:23.413 | F71: 2021-06-23T17:11:44.223 | G71: 00:00:21 | H71: Auto-IP | I71: 0 | J71: 146.50.98.29 | K71: Beta | L71: London | M71: 146 | N71: 50 | O71: 98 | P71: 29 | Q71: 2452775453 | R71: =IpIsValid(Q71) -> FALSE
A72: 6139 | B72: 4143 | C72: 0 | D72: Anonymous | E72: 2021-06-23T17:11:23.413 | F72: 2021-06-23T17:11:44.267 | G72: 00:00:21 | H72: Auto-IP | I72: 0 | J72: 146.50.98.29 | K72: Beta | L72: London | M72: 146 | N72: 50 | O72: 98 | P72: 29 | Q72: 2452775453 | R72: =IpIsValid(Q72) -> FALSE
A73: 6139 | B73: 4144 | C73: 0 | D73: Anonymous | E73: 2021-06-23T17:11:23.413 | F73: 2021-06-23T17:11:24.780 | G73: 00:00:01 | H73: Auto-IP | I73: 0 | J73: 63.131.130.254 | K73: Beta | L73: London | M73: 63 | N73: 131 | O73: 130 | P73: 254 | Q73: 1065583358 | R73: =IpIsValid(Q73) -> FALSE
A74: 6139 | B74: 4145 | C74: 0 | D74: Anonymous | E74: 2021-06-23T17:11:23.413 | F74: 2021-06-23T17:11:44.290 | G74: 00:00:21 | H74: Auto-IP | I74: 0 | J74: 146.50.98.29 | K74: Beta | L74: London | M74: 146 | N74: 50 | O74: 98 | P74: 29 | Q74: 2452775453 | R74: =IpIsValid(Q74) -> FALSE
A75: 6139 | B75: 4146 | C75: 0 | D75: Anonymous | E75: 2021-06-23T17:11:23.810 | F75: 2021-06-23T17:11:23.810 | G75: 00:00:00 | H75: Auto-IP | I75: 0 | J75: 63.131.130.254 | K75: Beta | L75: London | M75: 63 | N75: 131 | O75: 130 | P75: 254 | Q75: 1065583358 | R75: =IpIsValid(Q75) -> FALSE
A76: 6139 | B76: 4148 | C76: 0 | D76: Anonymous | E76: 2021-06-23T17:11:23.890 | F76: 2021-06-23T17:11:44.400 | G76: 00:00:21 | H76: Auto-IP | I76: 0 | J76: 146.50.98.29 | K76: Beta | L76: London | M76: 146 | N76: 50 | O76: 98 | P76: 29 | Q76: 2452775453 | R76: =IpIsValid(Q76) -> FALSE
A77: 6139 | B77: 4147 | C77: 0 | D77: Anonymous | E77: 2021-06-23T17:11:23.897 | F77: 2021-06-23T17:11:24.893 | G77: 00:00:01 | H77: Auto-IP | I77: 0 | J77: 63.131.130.254 | K77: Beta | L77: London | M77: 63 | N77: 131 | O77: 130 | P77: 254 | Q77: 1065583358 | R77: =IpIsValid(Q77) -> FALSE
A78: 6139 | B78: 4149 | C78: 0 | D78: Anonymous | E78: 2021-06-23T17:11:23.967 | F78: 2021-06-23T17:11:23.967 | G78: 00:00:00 | H78: Auto-IP | I78: 0 | J78: 108.172.111.86 | K78: Beta | L78: London | M78: 108 | N78: 172 | O78: 111 | P78: 86 | Q78: 1823240022 | R78: =IpIsValid(Q78) -> FALSE
A79: 6139 | B79: 4150 | C79: 0 | D79: Anonymous | E79: 2021-06-23T17:11:23.973 | F79: 2021-06-23T17:11:44.613 | G79: 00:00:21 | H79: Auto-IP | I79: 0 | J79: 146.50.98.29 | K79: Beta | L79: London | M79: 146 | N79: 50 | O79: 98 | P79: 29 | Q79: 2452775453 | R79: =IpIsValid(Q79) -> FALSE
A80: 6139 | B80: 4151 | C80: 0 | D80: Anonymous | E80: 2021-06-23T17:11:23.973 | F80: 2021-06-23T17:11:44.610 | G80: 00:00:21 | H80: Auto-IP | I80: 0 | J80: 146.50.98.29 | K80: Beta | L80: London | M80: 146 | N80: 50 | O80: 98 | P80: 29 | Q80: 2452775453 | R80: =IpIsValid(Q80) -> FALSE
A81: 6139 | B81: 4152 | C81: 0 | D81: Anonymous | E81: 2021-06-23T17:11:24.067 | F81: 2021-06-23T17:11:25.083 | G81: 00:00:01 | H81: Auto-IP | I81: 0 | J81: 63.131.130.254 | K81: Beta | L81: London | M81: 63 | N81: 131 | O81: 130 | P81: 254 | Q81: 1065583358 | R81: =IpIsValid(Q81) -> FALSE
A82: 6139 | B82: 4153 | C82: 0 | D82: Anonymous | E82: 2021-06-23T17:11:24.153 | F82: 2021-06-23T17:11:24.153 | G82: 00:00:00 | H82: Auto-IP | I82: 0 | J82: 108.172.111.86 | K82: Beta | L82: London | M82: 108 | N82: 172 | O82: 111 | P82: 86 | Q82: 1823240022 | R82: =IpIsValid(Q82) -> FALSE
A83: 6139 | B83: 4154 | C83: 0 | D83: Anonymous | E83: 2021-06-23T17:11:24.180 | F83: 2021-06-23T17:11:24.180 | G83: 00:00:00 | H83: Auto-IP | I83: 0 | J83: 146.50.98.29 | K83: Beta | L83: London | M83: 146 | N83: 50 | O83: 98 | P83: 29 | Q83: 2452775453 | R83: =IpIsValid(Q83) -> FALSE
A84: 6139 | B84: 4155 | C84: 0 | D84: Anonymous | E84: 2021-06-23T17:11:24.183 | F84: 2021-06-23T17:11:44.790 | G84: 00:00:20 | H84: Auto-IP | I84: 0 | J84: 146.50.98.29 | K84: Beta | L84: London | M84: 146 | N84: 50 | O84: 98 | P84: 29 | Q84: 2452775453 | R84: =IpIsValid(Q84) -> FALSE
A85: 6139 | B85: 4156 | C85: 0 | D85: Anonymous | E85: 2021-06-23T17:11:24.217 | F85: 2021-06-23T17:11:25.207 | G85: 00:00:01 | H85: Auto-IP | I85: 0 | J85: 63.131.130.254 | K85: Beta | L85: London | M85: 63 | N85: 131 | O85: 130 | P85: 254 | Q85: 1065583358 | R85: =IpIsValid(Q85) -> FALSE
A86: 6139 | B86: 4157 | C86: 0 | D86: Anonymous | E86: 2021-06-23T17:11:24.320 | F86: 2021-06-23T17:11:45.187 | G86: 00:00:21 | H86: Auto-IP | I86: 0 | J86: 146.50.98.29 | K86: Beta | L86: London | M86: 146 | N86: 50 | O86: 98 | P86: 29 | Q86: 2452775453 | R86: =IpIsValid(Q86) -> FALSE
A87: 6139 | B87: 4158 | C87: 0 | D87: Anonymous | E87: 2021-06-23T17:11:24.373 | F87: 2021-06-23T17:11:25.310 | G87: 00:00:01 | H87: Auto-IP | I87: 0 | J87: 63.131.130.254 | K87: Beta | L87: London | M87: 63 | N87: 131 | O87: 130 | P87: 254 | Q87: 1065583358 | R87: =IpIsValid(Q87) -> FALSE
A88: 6139 | B88: 4159 | C88: 0 | D88: Anonymous | E88: 2021-06-23T17:11:24.397 | F88: 2021-06-23T17:11:45.263 | G88: 00:00:21 | H88: Auto-IP | I88: 0 | J88: 146.50.98.29 | K88: Beta | L88: London | M88: 146 | N88: 50 | O88: 98 | P88: 29 | Q88: 2452775453 | R88: =IpIsValid(Q88) -> FALSE
A89: 6139 | B89: 4160 | C89: 0 | D89: Anonymous | E89: 2021-06-23T17:11:24.477 | F89: 2021-06-23T17:11:45.360 | G89: 00:00:21 | H89: Auto-IP | I89: 0 | J89: 146.50.98.29 | K89: Beta | L89: London | M89: 146 | N89: 50 | O89: 98 | P89: 29 | Q89: 2452775453 | R89: =IpIsValid(Q89) -> FALSE
A90: 6139 | B90: 4161 | C90: 0 | D90: Anonymous | E90: 2021-06-23T17:11:24.500 | F90: 2021-06-23T18:05:51.673 | G90: 00:54:27 | H90: Auto-IP | I90: 0 | J90: 63.131.130.254 | K90: Beta | L90: London | M90: 63 | N90: 131 | O90: 130 | P90: 254 | Q90: 1065583358 | R90: =IpIsValid(Q90) -> FALSE
A91: 6139 | B91: 4162 | C91: 0 | D91: Anonymous | E91: 2021-06-23T17:11:24.560 | F91: 2021-06-23T17:11:45.357 | G91: 00:00:21 | H91: Auto-IP | I91: 0 | J91: 146.50.98.29 | K91: Beta | L91: London | M91: 146 | N91: 50 | O91: 98 | P91: 29 | Q91: 2452775453 | R91: =IpIsValid(Q91) -> FALSE
A92: 6139 | B92: 4163 | C92: 0 | D92: Anonymous | E92: 2021-06-23T17:11:24.683 | F92: 2021-06-23T17:11:45.450 | G92: 00:00:21 | H92: Auto-IP | I92: 0 | J92: 146.50.98.29 | K92: Beta | L92: London | M92: 146 | N92: 50 | O92: 98 | P92: 29 | Q92: 2452775453 | R92: =IpIsValid(Q92) -> FALSE
A93: 6139 | B93: 4164 | C93: 0 | D93: Anonymous | E93: 2021-06-23T17:11:24.767 | F93: 2021-06-23T17:11:45.657 | G93: 00:00:21 | H93: Auto-IP | I93: 0 | J93: 146.50.98.29 | K93: Beta | L93: London | M93: 146 | N93: 50 | O93: 98 | P93: 29 | Q93: 2452775453 | R93: =IpIsValid(Q93) -> FALSE
A94: 6139 | B94: 4165 | C94: 0 | D94: Anonymous | E94: 2021-06-23T17:11:24.870 | F94: 2021-06-23T17:11:45.657 | G94: 00:00:21 | H94: Auto-IP | I94: 0 | J94: 146.50.98.29 | K94: Beta | L94: London | M94: 146 | N94: 50 | O94: 98 | P94: 29 | Q94: 2452775453 | R94: =IpIsValid(Q94) -> FALSE
A95: 6139 | B95: 4166 | C95: 0 | D95: Anonymous | E95: 2021-06-23T17:11:24.963 | F95: 2021-06-23T17:11:45.760 | G95: 00:00:21 | H95: Auto-IP | I95: 0 | J95: 146.50.98.29 | K95: Beta | L95: London | M95: 146 | N95: 50 | O95: 98 | P95: 29 | Q95: 2452775453 | R95: =IpIsValid(Q95) -> FALSE
A96: 6139 | B96: 4167 | C96: 0 | D96: Anonymous | E96: 2021-06-23T17:11:24.993 | F96: 2021-06-23T17:11:45.877 | G96: 00:00:21 | H96: Auto-IP | I96: 0 | J96: 146.50.98.29 | K96: Beta | L96: London | M96: 146 | N96: 50 | O96: 98 | P96: 29 | Q96: 2452775453 | R96: =IpIsValid(Q96) -> FALSE
A97: 6139 | B97: 4168 | C97: 0 | D97: Anonymous | E97: 2021-06-23T17:11:25.050 | F97: 2021-06-23T17:11:25.050 | G97: 00:00:00 | H97: Auto-IP | I97: 0 | J97: 146.50.98.29 | K97: Beta | L97: London | M97: 146 | N97: 50 | O97: 98 | P97: 29 | Q97: 2452775453 | R97: =IpIsValid(Q97) -> FALSE
A98: 6139 | B98: 4169 | C98: 0 | D98: Anonymous | E98: 2021-06-23T17:11:25.180 | F98: 2021-06-23T17:11:45.987 | G98: 00:00:20 | H98: Auto-IP | I98: 0 | J98: 146.50.98.29 | K98: Beta | L98: London | M98: 146 | N98: 50 | O98: 98 | P98: 29 | Q98: 2452775453 | R98: =IpIsValid(Q98) -> FALSE
A99: 6139 | B99: 4170 | C99: 0 | D99: Anonymous | E99: 2021-06-23T17:11:25.237 | F99: 2021-06-23T17:11:46.163 | G99: 00:00:21 | H99: Auto-IP | I99: 0 | J99: 146.50.98.29 | K99: Beta | L99: London | M99: 146 | N99: 50 | O99: 98 | P99: 29 | Q99: 2452775453 | R99: =IpIsValid(Q99) -> FALSE
A100: 6139 | B100: 4171 | C100: 0 | D100: Anonymous | E100: 2021-06-23T17:11:25.363 | F100: 2021-06-23T17:11:46.370 | G100: 00:00:21 | H100: Auto-IP | I100: 0 | J100: 146.50.98.29 | K100: Beta | L100: London | M100: 146 | N100: 50 | O100: 98 | P100: 29 | Q100: 2452775453 | R100: =IpIsValid(Q100) -> FALSE
A101: 6139 | B101: 4172 | C101: 0 | D101: Anonymous | E101: 2021-06-23T17:11:25.517 | F101: 2021-06-23T17:11:25.517 | G101: 00:00:00 | H101: Auto-IP | I101: 0 | J101: 146.50.98.29 | K101: Beta | L101: London | M101: 146 | N101: 50 | O101: 98 | P101: 29 | Q101: 2452775453 | R101: =IpIsValid(Q101) -> FALSE
A102: 6139 | B102: 4173 | C102: 0 | D102: Anonymous | E102: 2021-06-23T17:11:25.533 | F102: 2021-06-23T17:11:46.673 | G102: 00:00:21 | H102: Auto-IP | I102: 0 | J102: 146.50.98.29 | K102: Beta | L102: London | M102: 146 | N102: 50 | O102: 98 | P102: 29 | Q102: 2452775453 | R102: =IpIsValid(Q102) -> FALSE
A103: 6139 | B103: 4174 | C103: 0 | D103: Anonymous | E103: 2021-06-23T17:11:25.833 | F103: 2021-06-23T17:11:46.670 | G103: 00:00:21 | H103: Auto-IP | I103: 0 | J103: 146.50.98.29 | K103: Beta | L103: London | M103: 146 | N103: 50 | O103: 98 | P103: 29 | Q103: 2452775453 | R103: =IpIsValid(Q103) -> FALSE
A104: 6139 | B104: 4175 | C104: 0 | D104: Anonymous | E104: 2021-06-23T17:11:26.180 | F104: 2021-06-23T17:11:46.777 | G104: 00:00:20 | H104: Auto-IP | I104: 0 | J104: 146.50.98.29 | K104: Beta | L104: London | M104: 146 | N104: 50 | O104: 98 | P104: 29 | Q104: 2452775453 | R104: =IpIsValid(Q104) -> FALSE
A105: 6139 | B105: 4176 | C105: 0 | D105: Anonymous | E105: 2021-06-23T17:11:26.187 | F105: 2021-06-23T17:11:46.880 | G105: 00:00:20 | H105: Auto-IP | I105: 0 | J105: 146.50.98.29 | K105: Beta | L105: London | M105: 146 | N105: 50 | O105: 98 | P105: 29 | Q105: 2452775453 | R105: =IpIsValid(Q105) -> FALSE
A106: 6139 | B106: 4177 | C106: 0 | D106: Anonymous | E106: 2021-06-23T17:11:26.297 | F106: 2021-06-23T17:11:47.363 | G106: 00:00:21 | H106: Auto-IP | I106: 0 | J106: 146.50.98.29 | K106: Beta | L106: London | M106: 146 | N106: 50 | O106: 98 | P106: 29 | Q106: 2452775453 | R106: =IpIsValid(Q106) -> FALSE
A107: 6139 | B107: 4178 | C107: 0 | D107: Anonymous | E107: 2021-06-23T17:11:26.817 | F107: 2021-06-23T17:11:47.363 | G107: 00:00:21 | H107: Auto-IP | I107: 0 | J107: 146.50.98.29 | K107: Beta | L107: London | M107: 146 | N107: 50 | O107: 98 | P107: 29 | Q107: 2452775453 | R107: =IpIsValid(Q107) -> FALSE
A108: 6139 | B108: 4179 | C108: 0 | D108: Anonymous | E108: 2021-06-23T17:11:26.997 | F108: 2021-06-23T17:11:47.513 | G108: 00:00:21 | H108: Auto-IP | I108: 0 | J108: 146.50.98.29 | K108: Beta | L108: London | M108: 146 | N108: 50 | O108: 98 | P108: 29 | Q108: 2452775453 | R108: =IpIsValid(Q108) -> FALSE
A109: 6139 | B109: 4180 | C109: 0 | D109: Anonymous | E109: 2021-06-23T17:11:27.320 | F109: 2021-06-23T17:11:48.070 | G109: 00:00:21 | H109: Auto-IP | I109: 0 | J109: 146.50.98.29 | K109: Beta | L109: London | M109: 146 | N109: 50 | O109: 98 | P109: 29 | Q109: 2452775453 | R109: =IpIsValid(Q109) -> FALSE
A110: 6139 | B110: 4181 | C110: 0 | D110: Anonymous | E110: 2021-06-23T17:11:27.903 | F110: 2021-06-23T17:11:27.903 | G110: 00:00:00 | H110: Auto-IP | I110: 0 | J110: 146.50.98.29 | K110: Beta | L110: London | M110: 146 | N110: 50 | O110: 98 | P110: 29 | Q110: 2452775453 | R110: =IpIsValid(Q110) -> FALSE
A111: 6139 | B111: 4182 | C111: 0 | D111: Anonymous | E111: 2021-06-23T17:11:27.950 | F111: 2021-06-23T17:11:48.563 | G111: 00:00:21 | H111: Auto-IP | I111: 0 | J111: 146.50.98.29 | K111: Beta | L111: London | M111: 146 | N111: 50 | O111: 98 | P111: 29 | Q111: 2452775453 | R111: =IpIsValid(Q111) -> FALSE
A112: 6139 | B112: 4183 | C112: 0 | D112: Anonymous | E112: 2021-06-23T17:11:28.473 | F112: 2021-06-23T17:11:49.140 | G112: 00:00:21 | H112: Auto-IP | I112: 0 | J112: 146.50.98.29 | K112: Beta | L112: London | M112: 146 | N112: 50 | O112: 98 | P112: 29 | Q112: 2452775453 | R112: =IpIsValid(Q112) -> FALSE
A113: 6139 | B113: 4184 | C113: 0 | D113: Anonymous | E113: 2021-06-23T17:11:28.877 | F113: 2021-06-23T17:11:28.877 | G113: 00:00:00 | H113: Auto-IP | I113: 0 | J113: 146.50.98.29 | K113: Beta | L113: London | M113: 146 | N113: 50 | O113: 98 | P113: 29 | Q113: 2452775453 | R113: =IpIsValid(Q113) -> FALSE
A114: 6139 | B114: 4185 | C114: 0 | D114: Anonymous | E114: 2021-06-23T17:11:28.877 | F114: 2021-06-23T17:11:49.353 | G114: 00:00:21 | H114: Auto-IP | I114: 0 | J114: 146.50.98.29 | K114: Beta | L114: London | M114: 146 | N114: 50 | O114: 98 | P114: 29 | Q114: 2452775453 | R114: =IpIsValid(Q114) -> FALSE
A115: 6139 | B115: 4186 | C115: 0 | D115: Anonymous | E115: 2021-06-23T17:11:28.983 | F115: 2021-06-23T17:11:49.513 | G115: 00:00:21 | H115: Auto-IP | I115: 0 | J115: 146.50.98.29 | K115: Beta | L115: London | M115: 146 | N115: 50 | O115: 98 | P115: 29 | Q115: 2452775453 | R115: =IpIsValid(Q115) -> FALSE
A116: 6139 | B116: 4187 | C116: 0 | D116: Anonymous | E116: 2021-06-23T17:11:29.443 | F116: 2021-06-23T17:11:29.443 | G116: 00:00:00 | H116: Auto-IP | I116: 0 | J116: 82.204.205.194 | K116: Beta | L116: London | M116: 82 | N116: 204 | O116: 205 | P116: 194 | Q116: 1389153730 | R116: =IpIsValid(Q116) -> FALSE
A117: 6139 | B117: 4188 | C117: 0 | D117: Anonymous | E117: 2021-06-23T17:11:29.450 | F117: 2021-06-23T17:11:50.113 | G117: 00:00:21 | H117: Auto-IP | I117: 0 | J117: 146.50.98.29 | K117: Beta | L117: London | M117: 146 | N117: 50 | O117: 98 | P117: 29 | Q117: 2452775453 | R117: =IpIsValid(Q117) -> FALSE
A118: 6139 | B118: 4189 | C118: 0 | D118: Anonymous | E118: 2021-06-23T17:11:29.480 | F118: 2021-06-23T17:11:29.480 | G118: 00:00:00 | H118: Auto-IP | I118: 0 | J118: 82.204.205.194 | K118: Beta | L118: London | M118: 82 | N118: 204 | O118: 205 | P118: 194 | Q118: 1389153730 | R118: =IpIsValid(Q118) -> FALSE
A119: 6139 | B119: 4190 | C119: 0 | D119: Anonymous | E119: 2021-06-23T17:11:29.740 | F119: 2021-06-23T17:11:29.740 | G119: 00:00:00 | H119: Auto-IP | I119: 0 | J119: 82.204.205.194 | K119: Beta | L119: London | M119: 82 | N119: 204 | O119: 205 | P119: 194 | Q119: 1389153730 | R119: =IpIsValid(Q119) -> FALSE
A120: 6139 | B120: 4191 | C120: 0 | D120: Anonymous | E120: 2021-06-23T17:11:29.947 | F120: 2021-06-23T17:11:29.947 | G120: 00:00:00 | H120: Auto-IP | I120: 0 | J120: 146.50.98.29 | K120: Beta | L120: London | M120: 146 | N120: 50 | O120: 98 | P120: 29 | Q120: 2452775453 | R120: =IpIsValid(Q120) -> FALSE
A121: 6139 | B121: 4192 | C121: 0 | D121: Anonymous | E121: 2021-06-23T17:11:29.950 | F121: 2021-06-23T17:11:50.450 | G121: 00:00:21 | H121: Auto-IP | I121: 0 | J121: 146.50.98.29 | K121: Beta | L121: London | M121: 146 | N121: 50 | O121: 98 | P121: 29 | Q121: 2452775453 | R121: =IpIsValid(Q121) -> FALSE
A122: 6139 | B122: 4193 | C122: 0 | D122: Anonymous | E122: 2021-06-23T17:11:30.430 | F122: 2021-06-23T17:11:51.140 | G122: 00:00:21 | H122: Auto-IP | I122: 0 | J122: 146.50.98.29 | K122: Beta | L122: London | M122: 146 | N122: 50 | O122: 98 | P122: 29 | Q122: 2452775453 | R122: =IpIsValid(Q122) -> FALSE
A123: 6139 | B123: 4194 | C123: 0 | D123: Anonymous | E123: 2021-06-23T17:11:30.890 | F123: 2021-06-23T17:11:51.083 | G123: 00:00:21 | H123: Auto-IP | I123: 0 | J123: 146.50.98.29 | K123: Beta | L123: London | M123: 146 | N123: 50 | O123: 98 | P123: 29 | Q123: 2452775453 | R123: =IpIsValid(Q123) -> FALSE
A124: 6139 | B124: 4195 | C124: 0 | D124: Anonymous | E124: 2021-06-23T17:11:31.353 | F124: 2021-06-23T17:11:52.023 | G124: 00:00:21 | H124: Auto-IP | I124: 0 | J124: 146.50.98.29 | K124: Beta | L124: London | M124: 146 | N124: 50 | O124: 98 | P124: 29 | Q124: 2452775453 | R124: =IpIsValid(Q124) -> FALSE
A125: 6139 | B125: 4196 | C125: 0 | D125: Anonymous | E125: 2021-06-23T17:11:31.817 | F125: 2021-06-23T17:11:52.123 | G125: 00:00:21 | H125: Auto-IP | I125: 0 | J125: 146.50.98.29 | K125: Beta | L125: London | M125: 146 | N125: 50 | O125: 98 | P125: 29 | Q125: 2452775453 | R125: =IpIsValid(Q125) -> FALSE
A126: 6139 | B126: 4197 | C126: 0 | D126: Anonymous | E126: 2021-06-23T17:11:31.913 | F126: 2021-06-23T17:11:52.403 | G126: 00:00:21 | H126: Auto-IP | I126: 0 | J126: 146.50.98.29 | K126: Beta | L126: London | M126: 146 | N126: 50 | O126: 98 | P126: 29 | Q126: 2452775453 | R126: =IpIsValid(Q126) -> FALSE
A127: 6139 | B127: 4198 | C127: 0 | D127: Anonymous | E127: 2021-06-23T17:11:32.277 | F127: 2021-06-23T17:11:52.920 | G127: 00:00:20 | H127: Auto-IP | I127: 0 | J127: 146.50.98.29 | K127: Beta | L127: London | M127: 146 | N127: 50 | O127: 98 | P127: 29 | Q127: 2452775453 | R127: =IpIsValid(Q127) -> FALSE
A128: 6139 | B128: 4199 | C128: 0 | D128: Anonymous | E128: 2021-06-23T17:11:32.950 | F128: 2021-06-23T17:11:32.950 | G128: 00:00:00 | H128: Auto-IP | I128: 0 | J128: 146.50.98.29 | K128: Beta | L128: London | M128: 146 | N128: 50 | O128: 98 | P128: 29 | Q128: 2452775453 | R128: =IpIsValid(Q128) -> FALSE
A129: 6139 | B129: 4200 | C129: 0 | D129: Anonymous | E129: 2021-06-23T17:11:33.033 | F129: 2021-06-23T17:11:54.050 | G129: 00:00:21 | H129: Auto-IP | I129: 0 | J129: 146.50.98.29 | K129: Beta | L129: London | M129: 146 | N129: 50 | O129: 98 | P129: 29 | Q129: 2452775453 | R129: =IpIsValid(Q129) -> FALSE
A130: 6139 | B130: 4201 | C130: 0 | D130: Anonymous | E130: 2021-06-23T17:11:33.720 | F130: 2021-06-23T17:11:54.063 | G130: 00:00:21 | H130: Auto-IP | I130: 0 | J130: 146.50.98.29 | K130: Beta | L130: London | M130: 146 | N130: 50 | O130: 98 | P130: 29 | Q130: 2452775453 | R130: =IpIsValid(Q130) -> FALSE
A131: 6139 | B131: 4202 | C131: 0 | D131: Anonymous | E131: 2021-06-23T17:11:34 | F131: 2021-06-23T17:11:54.950 | G131: 00:00:20 | H131: Auto-IP | I131: 0 | J131: 146.50.98.29 | K131: Beta | L131: London | M131: =_xlfn.NUMBERVALUE(MID(J131,1,FIND(".",J131)-1)) -> 146 | N131: =_xlfn.NUMBERVALUE(MID(J131,FIND(".",J131)+1,FIND(".",J131,FIND(".",J131)+1)-1-FIND(".",J131))) -> 50 | O131: =_xlfn.NUMBERVALUE(MID(J131,FIND(".",J131,FIND(".",J131)+1)+1,FIND(".",J131,FIND(".",J131,FIND(".",J131)+1)+1)-1-FIND(".",J131,FIND(".",J131)+1))) -> 98 | P131: =_xlfn.NUMBERVALUE(MID(J131,FIND(".",J131,FIND(".",J131,FIND(".",J131)+1)+1)+1,LEN(J131))) -> 29 | Q131: =M131*256^3+N131*256^2+O131*256+P131 -> 2452775453 | R131: =IpIsValid(Q131) -> FALSE
A132: 6139 | B132: 4203 | C132: 0 | D132: Anonymous | E132: 2021-06-23T17:11:34.097 | F132: 2021-06-23T17:11:34.097 | G132: 00:00:00 | H132: Auto-IP | I132: 0 | J132: 146.50.98.29 | K132: Beta | L132: London | M132: 146 | N132: 50 | O132: 98 | P132: 29 | Q132: 2452775453 | R132: =IpIsValid(Q132) -> FALSE
A133: 6139 | B133: 4204 | C133: 0 | D133: Anonymous | E133: 2021-06-23T17:11:34.623 | F133: 2021-06-23T17:11:54.987 | G133: 00:00:20 | H133: Auto-IP | I133: 0 | J133: 146.50.98.29 | K133: Beta | L133: London | M133: 146 | N133: 50 | O133: 98 | P133: 29 | Q133: 2452775453 | R133: =IpIsValid(Q133) -> FALSE
A134: 6139 | B134: 4205 | C134: 0 | D134: Anonymous | E134: 2021-06-23T17:11:34.993 | F134: 2021-06-23T17:11:55.460 | G134: 00:00:21 | H134: Auto-IP | I134: 0 | J134: 146.50.98.29 | K134: Beta | L134: London | M134: 146 | N134: 50 | O134: 98 | P134: 29 | Q134: 2452775453 | R134: =IpIsValid(Q134) -> FALSE
A135: 6139 | B135: 4206 | C135: 0 | D135: Anonymous | E135: 2021-06-23T17:11:35.090 | F135: 2021-06-23T17:11:35.090 | G135: 00:00:00 | H135: Auto-IP | I135: 0 | J135: 146.50.98.29 | K135: Beta | L135: London | M135: 146 | N135: 50 | O135: 98 | P135: 29 | Q135: 2452775453 | R135: =IpIsValid(Q135) -> FALSE
A136: 6139 | B136: 4207 | C136: 0 | D136: Anonymous | E136: 2021-06-23T17:11:35.093 | F136: 2021-06-23T17:11:56.040 | G136: 00:00:21 | H136: Auto-IP | I136: 0 | J136: 146.50.98.29 | K136: Beta | L136: London | M136: 146 | N136: 50 | O136: 98 | P136: 29 | Q136: 2452775453 | R136: =IpIsValid(Q136) -> FALSE
A137: 6139 | B137: 4208 | C137: 0 | D137: Anonymous | E137: 2021-06-23T17:11:35.553 | F137: 2021-06-23T17:11:56.057 | G137: 00:00:21 | H137: Auto-IP | I137: 0 | J137: 146.50.98.29 | K137: Beta | L137: London | M137: 146 | N137: 50 | O137: 98 | P137: 29 | Q137: 2452775453 | R137: =IpIsValid(Q137) -> FALSE
A138: 6139 | B138: 4209 | C138: 0 | D138: Anonymous | E138: 2021-06-23T17:11:35.937 | F138: 2021-06-23T17:11:56.450 | G138: 00:00:21 | H138: Auto-IP | I138: 0 | J138: 146.50.98.29 | K138: Beta | L138: London | M138: 146 | N138: 50 | O138: 98 | P138: 29 | Q138: 2452775453 | R138: =IpIsValid(Q138) -> FALSE
A139: 6139 | B139: 4210 | C139: 0 | D139: Anonymous | E139: 2021-06-23T17:11:36.023 | F139: 2021-06-23T17:11:57.083 | G139: 00:00:21 | H139: Auto-IP | I139: 0 | J139: 146.50.98.29 | K139: Beta | L139: London | M139: 146 | N139: 50 | O139: 98 | P139: 29 | Q139: 2452775453 | R139: =IpIsValid(Q139) -> FALSE
A140: 6139 | B140: 4211 | C140: 0 | D140: Anonymous | E140: 2021-06-23T17:11:36.597 | F140: 2021-06-23T17:11:57.100 | G140: 00:00:21 | H140: Auto-IP | I140: 0 | J140: 146.50.98.29 | K140: Beta | L140: London | M140: 146 | N140: 50 | O140: 98 | P140: 29 | Q140: 2452775453 | R140: =IpIsValid(Q140) -> FALSE
A141: 6139 | B141: 4212 | C141: 0 | D141: Anonymous | E141: 2021-06-23T17:11:36.960 | F141: 2021-06-23T17:11:57.467 | G141: 00:00:21 | H141: Auto-IP | I141: 0 | J141: 146.50.98.29 | K141: Beta | L141: London | M141: 146 | N141: 50 | O141: 98 | P141: 29 | Q141: 2452775453 | R141: =IpIsValid(Q141) -> FALSE
A142: 6139 | B142: 4213 | C142: 0 | D142: Anonymous | E142: 2021-06-23T17:11:37.067 | F142: 2021-06-23T17:11:58.077 | G142: 00:00:21 | H142: Auto-IP | I142: 0 | J142: 146.50.98.29 | K142: Beta | L142: London | M142: 146 | N142: 50 | O142: 98 | P142: 29 | Q142: 2452775453 | R142: =IpIsValid(Q142) -> FALSE
A143: 6139 | B143: 4214 | C143: 0 | D143: Anonymous | E143: 2021-06-23T17:11:37.527 | F143: 2021-06-23T17:11:58.117 | G143: 00:00:21 | H143: Auto-IP | I143: 0 | J143: 146.50.98.29 | K143: Beta | L143: London | M143: 146 | N143: 50 | O143: 98 | P143: 29 | Q143: 2452775453 | R143: =IpIsValid(Q143) -> FALSE
A144: 6139 | B144: 4215 | C144: 0 | D144: Anonymous | E144: 2021-06-23T17:11:37.913 | F144: 2021-06-23T17:11:37.913 | G144: 00:00:00 | H144: Auto-IP | I144: 0 | J144: 146.50.98.29 | K144: Beta | L144: London | M144: 146 | N144: 50 | O144: 98 | P144: 29 | Q144: 2452775453 | R144: =IpIsValid(Q144) -> FALSE
A145: 6139 | B145: 4216 | C145: 0 | D145: Anonymous | E145: 2021-06-23T17:11:37.917 | F145: 2021-06-23T17:11:58.493 | G145: 00:00:21 | H145: Auto-IP | I145: 0 | J145: 146.50.98.29 | K145: Beta | L145: London | M145: 146 | N145: 50 | O145: 98 | P145: 29 | Q145: 2452775453 | R145: =IpIsValid(Q145) -> FALSE
A146: 6139 | B146: 4217 | C146: 0 | D146: Anonymous | E146: 2021-06-23T17:11:38.003 | F146: 2021-06-23T17:11:59.143 | G146: 00:00:21 | H146: Auto-IP | I146: 0 | J146: 146.50.98.29 | K146: Beta | L146: London | M146: 146 | N146: 50 | O146: 98 | P146: 29 | Q146: 2452775453 | R146: =IpIsValid(Q146) -> FALSE
A147: 6139 | B147: 4218 | C147: 0 | D147: Anonymous | E147: 2021-06-23T17:11:38.497 | F147: 2021-06-23T17:11:59.083 | G147: 00:00:21 | H147: Auto-IP | I147: 0 | J147: 146.50.98.29 | K147: Beta | L147: London | M147: 146 | N147: 50 | O147: 98 | P147: 29 | Q147: 2452775453 | R147: =IpIsValid(Q147) -> FALSE
A148: 6139 | B148: 4219 | C148: 0 | D148: Anonymous | E148: 2021-06-23T17:11:38.883 | F148: 2021-06-23T17:11:59.243 | G148: 00:00:21 | H148: Auto-IP | I148: 0 | J148: 146.50.98.29 | K148: Beta | L148: London | M148: 146 | N148: 50 | O148: 98 | P148: 29 | Q148: 2452775453 | R148: =IpIsValid(Q148) -> FALSE
A149: 6139 | B149: 4220 | C149: 0 | D149: Anonymous | E149: 2021-06-23T17:11:39.077 | F149: 2021-06-23T17:12:00.010 | G149: 00:00:21 | H149: Auto-IP | I149: 0 | J149: 146.50.98.29 | K149: Beta | L149: London | M149: 146 | N149: 50 | O149: 98 | P149: 29 | Q149: 2452775453 | R149: =IpIsValid(Q149) -> FALSE
A150: 6139 | B150: 4221 | C150: 0 | D150: Anonymous | E150: 2021-06-23T17:11:39.537 | F150: 2021-06-23T17:12:00.043 | G150: 00:00:21 | H150: Auto-IP | I150: 0 | J150: 146.50.98.29 | K150: Beta | L150: London | M150: 146 | N150: 50 | O150: 98 | P150: 29 | Q150: 2452775453 | R150: =IpIsValid(Q150) -> FALSE
A151: 6139 | B151: 4222 | C151: 0 | D151: Anonymous | E151: 2021-06-23T17:11:39.890 | F151: 2021-06-23T17:12:00.157 | G151: 00:00:21 | H151: Auto-IP | I151: 0 | J151: 146.50.98.29 | K151: Beta | L151: London | M151: 146 | N151: 50 | O151: 98 | P151: 29 | Q151: 2452775453 | R151: =IpIsValid(Q151) -> FALSE
A152: 6139 | B152: 4223 | C152: 0 | D152: Anonymous | E152: 2021-06-23T17:11:40.010 | F152: 2021-06-23T17:12:01.097 | G152: 00:00:21 | H152: Auto-IP | I152: 0 | J152: 146.50.98.29 | K152: Beta | L152: London | M152: 146 | N152: 50 | O152: 98 | P152: 29 | Q152: 2452775453 | R152: =IpIsValid(Q152) -> FALSE
A153: 6139 | B153: 4224 | C153: 0 | D153: Anonymous | E153: 2021-06-23T17:11:40.547 | F153: 2021-06-23T17:12:01.043 | G153: 00:00:21 | H153: Auto-IP | I153: 0 | J153: 146.50.98.29 | K153: Beta | L153: London | M153: 146 | N153: 50 | O153: 98 | P153: 29 | Q153: 2452775453 | R153: =IpIsValid(Q153) -> FALSE
A154: 6139 | B154: 4225 | C154: 0 | D154: Anonymous | E154: 2021-06-23T17:11:41.097 | F154: 2021-06-23T17:12:02.080 | G154: 00:00:21 | H154: Auto-IP | I154: 0 | J154: 146.50.98.29 | K154: Beta | L154: London | M154: 146 | N154: 50 | O154: 98 | P154: 29 | Q154: 2452775453 | R154: =IpIsValid(Q154) -> FALSE
A155: 6139 | B155: 4226 | C155: 0 | D155: Anonymous | E155: 2021-06-23T17:11:41.577 | F155: 2021-06-23T17:12:02.180 | G155: 00:00:21 | H155: Auto-IP | I155: 0 | J155: 146.50.98.29 | K155: Beta | L155: London | M155: 146 | N155: 50 | O155: 98 | P155: 29 | Q155: 2452775453 | R155: =IpIsValid(Q155) -> FALSE
A156: 6139 | B156: 4227 | C156: 0 | D156: Anonymous | E156: 2021-06-23T17:11:42.047 | F156: 2021-06-23T17:12:03.110 | G156: 00:00:21 | H156: Auto-IP | I156: 0 | J156: 146.50.98.29 | K156: Beta | L156: London | M156: 146 | N156: 50 | O156: 98 | P156: 29 | Q156: 2452775453 | R156: =IpIsValid(Q156) -> FALSE
A157: 6139 | B157: 4228 | C157: 0 | D157: Anonymous | E157: 2021-06-23T17:11:42.513 | F157: 2021-06-23T17:12:03.110 | G157: 00:00:21 | H157: Auto-IP | I157: 0 | J157: 146.50.98.29 | K157: Beta | L157: London | M157: 146 | N157: 50 | O157: 98 | P157: 29 | Q157: 2452775453 | R157: =IpIsValid(Q157) -> FALSE
A158: 6139 | B158: 4229 | C158: 0 | D158: Anonymous | E158: 2021-06-23T17:11:42.977 | F158: 2021-06-23T17:12:03.120 | G158: 00:00:21 | H158: Auto-IP | I158: 0 | J158: 146.50.98.29 | K158: Beta | L158: London | M158: 146 | N158: 50 | O158: 98 | P158: 29 | Q158: 2452775453 | R158: =IpIsValid(Q158) -> FALSE
A159: 6139 | B159: 4230 | C159: 0 | D159: Anonymous | E159: 2021-06-23T17:11:43.160 | F159: 2021-06-23T17:12:03.927 | G159: 00:00:20 | H159: Auto-IP | I159: 0 | J159: 146.50.98.29 | K159: Beta | L159: London | M159: 146 | N159: 50 | O159: 98 | P159: 29 | Q159: 2452775453 | R159: =IpIsValid(Q159) -> FALSE
A160: 6139 | B160: 4231 | C160: 0 | D160: Anonymous | E160: 2021-06-23T17:11:43.523 | F160: 2021-06-23T17:12:04.087 | G160: 00:00:21 | H160: Auto-IP | I160: 0 | J160: 146.50.98.29 | K160: Beta | L160: London | M160: 146 | N160: 50 | O160: 98 | P160: 29 | Q160: 2452775453 | R160: =IpIsValid(Q160) -> FALSE
A161: 6139 | B161: 4232 | C161: 0 | D161: Anonymous | E161: 2021-06-23T17:11:44.067 | F161: 2021-06-23T17:12:04.590 | G161: 00:00:20 | H161: Auto-IP | I161: 0 | J161: 146.50.98.29 | K161: Beta | L161: London | M161: 146 | N161: 50 | O161: 98 | P161: 29 | Q161: 2452775453 | R161: =IpIsValid(Q161) -> FALSE
A162: 6139 | B162: 4233 | C162: 0 | D162: Anonymous | E162: 2021-06-23T17:11:44.120 | F162: 2021-06-23T17:54:16.323 | G162: 00:42:32 | H162: Auto-IP | I162: 3 | J162: 146.50.98.29 | K162: Beta | L162: London | M162: 146 | N162: 50 | O162: 98 | P162: 29 | Q162: 2452775453 | R162: =IpIsValid(Q162) -> FALSE
A163: 6139 | B163: 4234 | C163: 0 | D163: Anonymous | E163: 2021-06-23T17:38:44.297 | F163: 2021-06-23T18:08:13.253 | G163: 00:29:29 | H163: Auto-IP | I163: 12 | J163: 128.59.191.84 | K163: Beta | L163: London | M163: 128 | N163: 59 | O163: 191 | P163: 84 | Q163: 2151399252 | R163: =IpIsValid(Q163) -> FALSE
A164: 6139 | B164: 4235 | C164: 0 | D164: Anonymous | E164: 2021-06-23T18:02:19.993 | F164: 2021-06-23T18:41:36.400 | G164: 00:39:17 | H164: Auto-IP | I164: 5 | J164: 148.76.138.75 | K164: Beta | L164: London | M164: 148 | N164: 76 | O164: 138 | P164: 75 | Q164: 2488044107 | R164: =IpIsValid(Q164) -> FALSE
A165: 6139 | B165: 4236 | C165: 0 | D165: Anonymous | E165: 2021-06-23T18:02:46.870 | F165: 2021-06-23T18:02:46.870 | G165: 00:00:00 | H165: Auto-IP | I165: 0 | J165: 63.131.130.254 | K165: Beta | L165: London | M165: 63 | N165: 131 | O165: 130 | P165: 254 | Q165: 1065583358 | R165: =IpIsValid(Q165) -> FALSE
A166: 6139 | B166: 4237 | C166: 0 | D166: Anonymous | E166: 2021-06-23T18:02:46.970 | F166: 2021-06-23T18:02:46.970 | G166: 00:00:00 | H166: Auto-IP | I166: 0 | J166: 63.131.130.254 | K166: Beta | L166: London | M166: 63 | N166: 131 | O166: 130 | P166: 254 | Q166: 1065583358 | R166: =IpIsValid(Q166) -> FALSE
A167: 6139 | B167: 4238 | C167: 0 | D167: Anonymous | E167: 2021-06-23T18:02:54.440 | F167: 2021-06-23T18:02:54.440 | G167: 00:00:00 | H167: Auto-IP | I167: 0 | J167: 63.131.130.254 | K167: Beta | L167: London | M167: 63 | N167: 131 | O167: 130 | P167: 254 | Q167: 1065583358 | R167: =IpIsValid(Q167) -> FALSE
A168: 6139 | B168: 4239 | C168: 0 | D168: Anonymous | E168: 2021-06-23T18:03:14.750 | F168: 2021-06-23T18:03:14.750 | G168: 00:00:00 | H168: Auto-IP | I168: 0 | J168: 63.131.130.254 | K168: Beta | L168: London | M168: 63 | N168: 131 | O168: 130 | P168: 254 | Q168: 1065583358 | R168: =IpIsValid(Q168) -> FALSE
A169: 6139 | B169: 4240 | C169: 0 | D169: Anonymous | E169: 2021-06-23T18:18:03.450 | F169: 2021-06-23T18:37:25.627 | G169: 00:19:22 | H169: Auto-IP | I169: 3 | J169: 62.189.127.13 | K169: Beta | L169: London | M169: 62 | N169: 189 | O169: 127 | P169: 13 | Q169: 1052606221 | R169: =IpIsValid(Q169) -> FALSE
A170: 6139 | B170: 4241 | C170: 0 | D170: Anonymous | E170: 2021-06-23T18:37:14.613 | F170: 2021-06-23T19:41:29.220 | G170: 01:04:15 | H170: Auto-IP | I170: 4 | J170: 64.88.165.124 | K170: Beta | L170: London | M170: 64 | N170: 88 | O170: 165 | P170: 124 | Q170: 1079551356 | R170: =IpIsValid(Q170) -> FALSE
A171: 6139 | B171: 4242 | C171: 0 | D171: Anonymous | E171: 2021-06-23T18:42:42.847 | F171: 2021-06-23T20:48:19.807 | G171: 02:05:37 | H171: Auto-IP | I171: 3 | J171: 82.163.239.230 | K171: Beta | L171: London | M171: 82 | N171: 163 | O171: 239 | P171: 230 | Q171: 1386475494 | R171: =IpIsValid(Q171) -> FALSE
A172: 6139 | B172: 4243 | C172: 0 | D172: Anonymous | E172: 2021-06-23T18:43:53.040 | F172: 2021-06-23T19:32:06.837 | G172: 00:48:13 | H172: Auto-IP | I172: 4 | J172: 64.88.165.124 | K172: Beta | L172: London | M172: 64 | N172: 88 | O172: 165 | P172: 124 | Q172: 1079551356 | R172: =IpIsValid(Q172) -> FALSE
A173: 6139 | B173: 4244 | C173: 0 | D173: Anonymous | E173: 2021-06-23T19:15:56.437 | F173: 2021-06-23T19:15:56.437 | G173: 00:00:00 | H173: Auto-IP | I173: 0 | J173: 63.131.130.254 | K173: Beta | L173: London | M173: 63 | N173: 131 | O173: 130 | P173: 254 | Q173: 1065583358 | R173: =IpIsValid(Q173) -> FALSE
A174: 6139 | B174: 4245 | C174: 0 | D174: Anonymous | E174: 2021-06-23T19:24:25.187 | F174: 2021-06-23T19:58:23.343 | G174: 00:33:58 | H174: Auto-IP | I174: 5 | J174: 63.131.130.254 | K174: Beta | L174: London | M174: 63 | N174: 131 | O174: 130 | P174: 254 | Q174: 1065583358 | R174: =IpIsValid(Q174) -> FALSE
A175: 6139 | B175: 4246 | C175: 0 | D175: Anonymous | E175: 2021-06-23T19:24:27.813 | F175: 2021-06-23T20:09:13.650 | G175: 00:44:46 | H175: Auto-IP | I175: 14 | J175: 63.131.130.254 | K175: Beta | L175: London | M175: 63 | N175: 131 | O175: 130 | P175: 254 | Q175: 1065583358 | R175: =IpIsValid(Q175) -> FALSE
A176: 6139 | B176: 4247 | C176: 0 | D176: Anonymous | E176: 2021-06-23T19:46:03.067 | F176: 2021-06-23T19:46:03.067 | G176: 00:00:00 | H176: Auto-IP | I176: 0 | J176: 66.249.72.202 | K176: Beta | L176: London | M176: 66 | N176: 249 | O176: 72 | P176: 202 | Q176: 1123633354 | R176: =IpIsValid(Q176) -> FALSE
A177: 6139 | B177: 4248 | C177: 0 | D177: Anonymous | E177: 2021-06-23T19:48:41.593 | F177: 2021-06-23T20:24:17.210 | G177: 00:35:36 | H177: Auto-IP | I177: 1 | J177: 134.41.123.216 | K177: Beta | L177: London | M177: 134 | N177: 41 | O177: 123 | P177: 216 | Q177: 2250865624 | R177: =IpIsValid(Q177) -> FALSE
A178: 6139 | B178: 4249 | C178: 0 | D178: Anonymous | E178: 2021-06-23T19:50:39.150 | F178: 2021-06-23T19:52:47.560 | G178: 00:02:08 | H178: Auto-IP | I178: 1 | J178: 132.181.203.69 | K178: Beta | L178: London | M178: 132 | N178: 181 | O178: 203 | P178: 69 | Q178: 2226506565 | R178: =IpIsValid(Q178) -> FALSE
A179: 6139 | B179: 4250 | C179: 0 | D179: Anonymous | E179: 2021-06-23T20:06:20.763 | F179: 2021-06-23T21:30:06.480 | G179: 01:23:46 | H179: Auto-IP | I179: 12 | J179: 63.131.130.254 | K179: Beta | L179: London | M179: 63 | N179: 131 | O179: 130 | P179: 254 | Q179: 1065583358 | R179: =IpIsValid(Q179) -> FALSE
A180: 6139 | B180: 4251 | C180: 0 | D180: Anonymous | E180: 2021-06-23T20:09:14.560 | F180: 2021-06-23T20:14:00.677 | G180: 00:04:46 | H180: Auto-IP | I180: 1 | J180: 63.131.130.254 | K180: Beta | L180: London | M180: 63 | N180: 131 | O180: 130 | P180: 254 | Q180: 1065583358 | R180: =IpIsValid(Q180) -> FALSE
A181: 6139 | B181: 4252 | C181: 0 | D181: Anonymous | E181: 2021-06-23T20:09:14.630 | F181: 2021-06-23T20:09:17.813 | G181: 00:00:03 | H181: Auto-IP | I181: 0 | J181: 63.131.130.254 | K181: Beta | L181: London | M181: 63 | N181: 131 | O181: 130 | P181: 254 | Q181: 1065583358 | R181: =IpIsValid(Q181) -> FALSE
A182: 6139 | B182: 4253 | C182: 0 | D182: Anonymous | E182: 2021-06-23T20:18:53.120 | F182: 2021-06-23T20:47:43.660 | G182: 00:28:50 | H182: Auto-IP | I182: 3 | J182: 63.131.130.254 | K182: Beta | L182: London | M182: 63 | N182: 131 | O182: 130 | P182: 254 | Q182: 1065583358 | R182: =IpIsValid(Q182) -> FALSE
A183: 6139 | B183: 4254 | C183: 0 | D183: Anonymous | E183: 2021-06-23T20:58:34.040 | F183: 2021-06-23T21:32:04.770 | G183: 00:33:30 | H183: Auto-IP | I183: 3 | J183: 95.130.96.194 | K183: Beta | L183: London | M183: 95 | N183: 130 | O183: 96 | P183: 194 | Q183: 1602379970 | R183: =IpIsValid(Q183) -> FALSE
A184: 6139 | B184: 4255 | C184: 0 | D184: Anonymous | E184: 2021-06-23T21:21:05.930 | F184: 2021-06-23T22:01:48.127 | G184: 00:40:43 | H184: Auto-IP | I184: 6 | J184: 128.177.151.211 | K184: Beta | L184: London | M184: 128 | N184: 177 | O184: 151 | P184: 211 | Q184: 2159122387 | R184: =IpIsValid(Q184) -> FALSE
A185: 6139 | B185: 4256 | C185: 0 | D185: Anonymous | E185: 2021-06-23T22:16:32.737 | F185: 2021-06-23T22:16:32.737 | G185: 00:00:00 | H185: Auto-IP | I185: 0 | J185: 62.210.188.222 | K185: Beta | L185: London | M185: 62 | N185: 210 | O185: 188 | P185: 222 | Q185: 1053998302 | R185: =IpIsValid(Q185) -> FALSE
A186: 6139 | B186: 4257 | C186: 0 | D186: Anonymous | E186: 2021-06-23T23:14:10.767 | F186: 2021-06-23T23:23:24.660 | G186: 00:09:14 | H186: Auto-IP | I186: 5 | J186: 64.88.165.124 | K186: Beta | L186: London | M186: 64 | N186: 88 | O186: 165 | P186: 124 | Q186: 1079551356 | R186: =IpIsValid(Q186) -> FALSE
A187: 6139 | B187: 4265 | C187: 0 | D187: Anonymous | E187: 2021-06-24T00:41:04.330 | F187: 2021-06-24T00:41:04.330 | G187: 00:00:00 | H187: Auto-IP | I187: 0 | J187: 108.174.5.114 | K187: Beta | L187: London | M187: 108 | N187: 174 | O187: 5 | P187: 114 | Q187: 1823343986 | R187: =IpIsValid(Q187) -> FALSE
A188: 6139 | B188: 4266 | C188: 0 | D188: Anonymous | E188: 2021-06-24T01:08:08.517 | F188: 2021-06-24T01:09:39.727 | G188: 00:01:31 | H188: Auto-IP | I188: 2 | J188: 130.63.63.214 | K188: Beta | L188: London | M188: 130 | N188: 63 | O188: 63 | P188: 214 | Q188: 2185183190 | R188: =IpIsValid(Q188) -> FALSE
A189: 6139 | B189: 4267 | C189: 0 | D189: Anonymous | E189: 2021-06-24T02:04:23.563 | F189: 2021-06-24T02:04:23.563 | G189: 00:00:00 | H189: Auto-IP | I189: 0 | J189: 103.5.140.151 | K189: Beta | L189: London | M189: 103 | N189: 5 | O189: 140 | P189: 151 | Q189: 1728416919 | R189: =IpIsValid(Q189) -> FALSE
A190: 6139 | B190: 4268 | C190: 0 | D190: Anonymous | E190: 2021-06-24T02:30:17.507 | F190: 2021-06-24T02:30:17.507 | G190: 00:00:00 | H190: Auto-IP | I190: 0 | J190: 95.130.96.194 | K190: Beta | L190: London | M190: 95 | N190: 130 | O190: 96 | P190: 194 | Q190: 1602379970 | R190: =IpIsValid(Q190) -> FALSE
A191: 6139 | B191: 4269 | C191: 0 | D191: Anonymous | E191: 2021-06-24T02:30:18.237 | F191: 2021-06-24T04:19:41.513 | G191: 01:49:23 | H191: Auto-IP | I191: 3 | J191: 95.130.96.194 | K191: Beta | L191: London | M191: 95 | N191: 130 | O191: 96 | P191: 194 | Q191: 1602379970 | R191: =IpIsValid(Q191) -> FALSE
A192: 6139 | B192: 4270 | C192: 0 | D192: Anonymous | E192: 2021-06-24T03:24:32.617 | F192: 2021-06-24T05:23:17.577 | G192: 01:58:45 | H192: Auto-IP | I192: 10 | J192: 92.60.248.46 | K192: Beta | L192: London | M192: 92 | N192: 60 | O192: 248 | P192: 46 | Q192: 1547499566 | R192: =IpIsValid(Q192) -> TRUE
A193: 6139 | B193: 4271 | C193: 0 | D193: Anonymous | E193: 2021-06-24T03:44:46.747 | F193: 2021-06-24T04:22:35.430 | G193: 00:37:49 | H193: Auto-IP | I193: 1 | J193: 54.79.117.64 | K193: Beta | L193: London | M193: 54 | N193: 79 | O193: 117 | P193: 64 | Q193: 911177024 | R193: =IpIsValid(Q193) -> FALSE
A194: 6139 | B194: 4272 | C194: 0 | D194: Anonymous | E194: 2021-06-24T03:44:49.997 | F194: 2021-06-24T04:15:20.960 | G194: 00:30:31 | H194: Auto-IP | I194: 1 | J194: 85.5.164.25 | K194: Beta | L194: London | M194: 85 | N194: 5 | O194: 164 | P194: 25 | Q194: 1426433049 | R194: =IpIsValid(Q194) -> FALSE
A195: 6139 | B195: 4273 | C195: 0 | D195: Anonymous | E195: 2021-06-24T04:28:22.367 | F195: 2021-06-24T04:28:22.367 | G195: 00:00:00 | H195: Auto-IP | I195: 0 | J195: 79.125.22.85 | K195: Beta | L195: London | M195: =_xlfn.NUMBERVALUE(MID(J195,1,FIND(".",J195)-1)) -> 79 | N195: =_xlfn.NUMBERVALUE(MID(J195,FIND(".",J195)+1,FIND(".",J195,FIND(".",J195)+1)-1-FIND(".",J195))) -> 125 | O195: =_xlfn.NUMBERVALUE(MID(J195,FIND(".",J195,FIND(".",J195)+1)+1,FIND(".",J195,FIND(".",J195,FIND(".",J195)+1)+1)-1-FIND(".",J195,FIND(".",J195)+1))) -> 22 | P195: =_xlfn.NUMBERVALUE(MID(J195,FIND(".",J195,FIND(".",J195,FIND(".",J195)+1)+1)+1,LEN(J195))) -> 85 | Q195: =M195*256^3+N195*256^2+O195*256+P195 -> 1333597781 | R195: =IpIsValid(Q195) -> FALSE
A196: 6139 | B196: 4274 | C196: 0 | D196: Anonymous | E196: 2021-06-24T04:28:22.553 | F196: 2021-06-24T04:28:52.643 | G196: 00:00:30 | H196: Auto-IP | I196: 7 | J196: 80.81.79.1 | K196: Beta | L196: London | M196: 80 | N196: 81 | O196: 79 | P196: 1 | Q196: 1347505921 | R196: =IpIsValid(Q196) -> FALSE
A197: 6139 | B197: 4275 | C197: 0 | D197: Anonymous | E197: 2021-06-24T04:28:22.600 | F197: 2021-06-24T04:28:22.600 | G197: 00:00:00 | H197: Auto-IP | I197: 0 | J197: 79.125.22.85 | K197: Beta | L197: London | M197: 79 | N197: 125 | O197: 22 | P197: 85 | Q197: 1333597781 | R197: =IpIsValid(Q197) -> FALSE
A198: 6139 | B198: 4276 | C198: 0 | D198: Anonymous | E198: 2021-06-24T04:28:22.807 | F198: 2021-06-24T04:28:22.807 | G198: 00:00:00 | H198: Auto-IP | I198: 0 | J198: 79.125.22.85 | K198: Beta | L198: London | M198: 79 | N198: 125 | O198: 22 | P198: 85 | Q198: 1333597781 | R198: =IpIsValid(Q198) -> FALSE
A199: 6139 | B199: 4277 | C199: 0 | D199: Anonymous | E199: 2021-06-24T04:28:23.023 | F199: 2021-06-24T04:28:23.023 | G199: 00:00:00 | H199: Auto-IP | I199: 0 | J199: 79.125.22.85 | K199: Beta | L199: London | M199: 79 | N199: 125 | O199: 22 | P199: 85 | Q199: 1333597781 | R199: =IpIsValid(Q199) -> FALSE
A200: 6139 | B200: 4278 | C200: 0 | D200: Anonymous | E200: 2021-06-24T04:28:23.290 | F200: 2021-06-24T04:28:23.290 | G200: 00:00:00 | H200: Auto-IP | I200: 0 | J200: 79.125.22.85 | K200: Beta | L200: London | M200: 79 | N200: 125 | O200: 22 | P200: 85 | Q200: 1333597781 | R200: =IpIsValid(Q200) -> FALSE
... 1861 more rows

Sheet IP_Ranges
A1: GroupIPRangeId | B1: GroupId | C1: IPv4From | D1: IPv4To | E1: IPv6From | F1: IPv6To | G1: CreatedOn | H1: CreatedBy | I1: CityId | J1: IsAutoAccessEnabled | K1: ModifiedOn | L1: ModifiedBy | M1: IsActive | N1: IsDeleted | O1: IPv4CityId | P1: IPv4CityName | Q1: IPv6CityId | R1: IPv6CityName | S1: IPv4IsAutoAccessEnabled | T1: IPv6IsAutoAccessEnabled | U1: Start1 | V1: Start2 | W1: Start3 | X1: Start4 | Y1: StartValue | Z1: End1 | AA1: End2 | AB1: End3 | AC1: End4 | AD1: EndValue
A2: 19053 | B2: 36 | C2: 1.202.14.232 | D2: 1.202.14.239 | E2: NULL | F2: NULL | G2: 44377.47357 | H2: 327 | I2: 61 | J2: 1 | K2: NULL | L2: NULL | M2: 1 | N2: 0 | O2: 61 | P2: Beijing | Q2: NULL | R2: NULL | S2: 1 | T2: NULL | U2: =_xlfn.NUMBERVALUE(MID(C2,1,FIND(".",C2)-1)) -> 1 | V2: =_xlfn.NUMBERVALUE(MID(C2,FIND(".",C2)+1,FIND(".",C2,FIND(".",C2)+1)-1-FIND(".",C2))) -> 202 | W2: =_xlfn.NUMBERVALUE(MID(C2,FIND(".",C2,FIND(".",C2)+1)+1,FIND(".",C2,FIND(".",C2,FIND(".",C2)+1)+1)-1-FIND(".",C2,FIND(".",C2)+1))) -> 14 | X2: =_xlfn.NUMBERVALUE(MID(C2,FIND(".",C2,FIND(".",C2,FIND(".",C2)+1)+1)+1,LEN(C2))) -> 232 | Y2: =U2*256^3+V2*256^2+W2*256+X2 -> 30019304 | Z2: =_xlfn.NUMBERVALUE(MID(D2,1,FIND(".",D2)-1)) -> 1 | AA2: =_xlfn.NUMBERVALUE(MID(D2,FIND(".",D2)+1,FIND(".",D2,FIND(".",D2)+1)-1-FIND(".",D2))) -> 202 | AB2: =_xlfn.NUMBERVALUE(MID(D2,FIND(".",D2,FIND(".",D2)+1)+1,FIND(".",D2,FIND(".",D2,FIND(".",D2)+1)+1)-1-FIND(".",D2,FIND(".",D2)+1))) -> 14 | AC2: =_xlfn.NUMBERVALUE(MID(D2,FIND(".",D2,FIND(".",D2,FIND(".",D2)+1)+1)+1,LEN(D2))) -> 239 | AD2: =Z2*256^3+AA2*256^2+AB2*256+AC2 -> 30019311
A3: 19108 | B3: 36 | C3: 10.101.18.13 | D3: 10.101.18.13 | E3: NULL | F3: NULL | G3: 44377.47357 | H3: 327 | I3: 692 | J3: 1 | K3: NULL | L3: NULL | M3: 1 | N3: 0 | O3: 692 | P3: N/A | Q3: NULL | R3: NULL | S3: 1 | T3: NULL | U3: =_xlfn.NUMBERVALUE(MID(C3,1,FIND(".",C3)-1)) -> 10 | V3: =_xlfn.NUMBERVALUE(MID(C3,FIND(".",C3)+1,FIND(".",C3,FIND(".",C3)+1)-1-FIND(".",C3))) -> 101 | W3: =_xlfn.NUMBERVALUE(MID(C3,FIND(".",C3,FIND(".",C3)+1)+1,FIND(".",C3,FIND(".",C3,FIND(".",C3)+1)+1)-1-FIND(".",C3,FIND(".",C3)+1))) -> 18 | X3: =_xlfn.NUMBERVALUE(MID(C3,FIND(".",C3,FIND(".",C3,FIND(".",C3)+1)+1)+1,LEN(C3))) -> 13 | Y3: =U3*256^3+V3*256^2+W3*256+X3 -> 174395917 | Z3: =_xlfn.NUMBERVALUE(MID(D3,1,FIND(".",D3)-1)) -> 10 | AA3: =_xlfn.NUMBERVALUE(MID(D3,FIND(".",D3)+1,FIND(".",D3,FIND(".",D3)+1)-1-FIND(".",D3))) -> 101 | AB3: =_xlfn.NUMBERVALUE(MID(D3,FIND(".",D3,FIND(".",D3)+1)+1,FIND(".",D3,FIND(".",D3,FIND(".",D3)+1)+1)-1-FIND(".",D3,FIND(".",D3)+1))) -> 18 | AC3: =_xlfn.NUMBERVALUE(MID(D3,FIND(".",D3,FIND(".",D3,FIND(".",D3)+1)+1)+1,LEN(D3))) -> 13 | AD3: =Z3*256^3+AA3*256^2+AB3*256+AC3 -> 174395917
A4: 19109 | B4: 36 | C4: 10.101.18.14 | D4: 10.101.18.14 | E4: NULL | F4: NULL | G4: 44377.47357 | H4: 327 | I4: 692 | J4: 1 | K4: NULL | L4: NULL | M4: 1 | N4: 0 | O4: 692 | P4: N/A | Q4: NULL | R4: NULL | S4: 1 | T4: NULL | U4: =_xlfn.NUMBERVALUE(MID(C4,1,FIND(".",C4)-1)) -> 10 | V4: =_xlfn.NUMBERVALUE(MID(C4,FIND(".",C4)+1,FIND(".",C4,FIND(".",C4)+1)-1-FIND(".",C4))) -> 101 | W4: =_xlfn.NUMBERVALUE(MID(C4,FIND(".",C4,FIND(".",C4)+1)+1,FIND(".",C4,FIND(".",C4,FIND(".",C4)+1)+1)-1-FIND(".",C4,FIND(".",C4)+1))) -> 18 | X4: =_xlfn.NUMBERVALUE(MID(C4,FIND(".",C4,FIND(".",C4,FIND(".",C4)+1)+1)+1,LEN(C4))) -> 14 | Y4: =U4*256^3+V4*256^2+W4*256+X4 -> 174395918 | Z4: =_xlfn.NUMBERVALUE(MID(D4,1,FIND(".",D4)-1)) -> 10 | AA4: =_xlfn.NUMBERVALUE(MID(D4,FIND(".",D4)+1,FIND(".",D4,FIND(".",D4)+1)-1-FIND(".",D4))) -> 101 | AB4: =_xlfn.NUMBERVALUE(MID(D4,FIND(".",D4,FIND(".",D4)+1)+1,FIND(".",D4,FIND(".",D4,FIND(".",D4)+1)+1)-1-FIND(".",D4,FIND(".",D4)+1))) -> 18 | AC4: =_xlfn.NUMBERVALUE(MID(D4,FIND(".",D4,FIND(".",D4,FIND(".",D4)+1)+1)+1,LEN(D4))) -> 14 | AD4: =Z4*256^3+AA4*256^2+AB4*256+AC4 -> 174395918
A5: 19110 | B5: 36 | C5: 10.101.18.15 | D5: 10.101.18.15 | E5: NULL | F5: NULL | G5: 44377.47357 | H5: 327 | I5: 692 | J5: 1 | K5: NULL | L5: NULL | M5: 1 | N5: 0 | O5: 692 | P5: N/A | Q5: NULL | R5: NULL | S5: 1 | T5: NULL | U5: =_xlfn.NUMBERVALUE(MID(C5,1,FIND(".",C5)-1)) -> 10 | V5: =_xlfn.NUMBERVALUE(MID(C5,FIND(".",C5)+1,FIND(".",C5,FIND(".",C5)+1)-1-FIND(".",C5))) -> 101 | W5: =_xlfn.NUMBERVALUE(MID(C5,FIND(".",C5,FIND(".",C5)+1)+1,FIND(".",C5,FIND(".",C5,FIND(".",C5)+1)+1)-1-FIND(".",C5,FIND(".",C5)+1))) -> 18 | X5: =_xlfn.NUMBERVALUE(MID(C5,FIND(".",C5,FIND(".",C5,FIND(".",C5)+1)+1)+1,LEN(C5))) -> 15 | Y5: =U5*256^3+V5*256^2+W5*256+X5 -> 174395919 | Z5: =_xlfn.NUMBERVALUE(MID(D5,1,FIND(".",D5)-1)) -> 10 | AA5: =_xlfn.NUMBERVALUE(MID(D5,FIND(".",D5)+1,FIND(".",D5,FIND(".",D5)+1)-1-FIND(".",D5))) -> 101 | AB5: =_xlfn.NUMBERVALUE(MID(D5,FIND(".",D5,FIND(".",D5)+1)+1,FIND(".",D5,FIND(".",D5,FIND(".",D5)+1)+1)-1-FIND(".",D5,FIND(".",D5)+1))) -> 18 | AC5: =_xlfn.NUMBERVALUE(MID(D5,FIND(".",D5,FIND(".",D5,FIND(".",D5)+1)+1)+1,LEN(D5))) -> 15 | AD5: =Z5*256^3+AA5*256^2+AB5*256+AC5 -> 174395919
A6: 19105 | B6: 36 | C6: 10.201.18.22 | D6: 10.201.18.22 | E6: NULL | F6: NULL | G6: 44377.47357 | H6: 327 | I6: 692 | J6: 1 | K6: NULL | L6: NULL | M6: 1 | N6: 0 | O6: 692 | P6: N/A | Q6: NULL | R6: NULL | S6: 1 | T6: NULL | U6: =_xlfn.NUMBERVALUE(MID(C6,1,FIND(".",C6)-1)) -> 10 | V6: =_xlfn.NUMBERVALUE(MID(C6,FIND(".",C6)+1,FIND(".",C6,FIND(".",C6)+1)-1-FIND(".",C6))) -> 201 | W6: =_xlfn.NUMBERVALUE(MID(C6,FIND(".",C6,FIND(".",C6)+1)+1,FIND(".",C6,FIND(".",C6,FIND(".",C6)+1)+1)-1-FIND(".",C6,FIND(".",C6)+1))) -> 18 | X6: =_xlfn.NUMBERVALUE(MID(C6,FIND(".",C6,FIND(".",C6,FIND(".",C6)+1)+1)+1,LEN(C6))) -> 22 | Y6: =U6*256^3+V6*256^2+W6*256+X6 -> 180949526 | Z6: =_xlfn.NUMBERVALUE(MID(D6,1,FIND(".",D6)-1)) -> 10 | AA6: =_xlfn.NUMBERVALUE(MID(D6,FIND(".",D6)+1,FIND(".",D6,FIND(".",D6)+1)-1-FIND(".",D6))) -> 201 | AB6: =_xlfn.NUMBERVALUE(MID(D6,FIND(".",D6,FIND(".",D6)+1)+1,FIND(".",D6,FIND(".",D6,FIND(".",D6)+1)+1)-1-FIND(".",D6,FIND(".",D6)+1))) -> 18 | AC6: =_xlfn.NUMBERVALUE(MID(D6,FIND(".",D6,FIND(".",D6,FIND(".",D6)+1)+1)+1,LEN(D6))) -> 22 | AD6: =Z6*256^3+AA6*256^2+AB6*256+AC6 -> 180949526
A7: 19106 | B7: 36 | C7: 10.201.18.23 | D7: 10.201.18.23 | E7: NULL | F7: NULL | G7: 44377.47357 | H7: 327 | I7: 692 | J7: 1 | K7: NULL | L7: NULL | M7: 1 | N7: 0 | O7: 692 | P7: N/A | Q7: NULL | R7: NULL | S7: 1 | T7: NULL | U7: =_xlfn.NUMBERVALUE(MID(C7,1,FIND(".",C7)-1)) -> 10 | V7: =_xlfn.NUMBERVALUE(MID(C7,FIND(".",C7)+1,FIND(".",C7,FIND(".",C7)+1)-1-FIND(".",C7))) -> 201 | W7: =_xlfn.NUMBERVALUE(MID(C7,FIND(".",C7,FIND(".",C7)+1)+1,FIND(".",C7,FIND(".",C7,FIND(".",C7)+1)+1)-1-FIND(".",C7,FIND(".",C7)+1))) -> 18 | X7: =_xlfn.NUMBERVALUE(MID(C7,FIND(".",C7,FIND(".",C7,FIND(".",C7)+1)+1)+1,LEN(C7))) -> 23 | Y7: =U7*256^3+V7*256^2+W7*256+X7 -> 180949527 | Z7: =_xlfn.NUMBERVALUE(MID(D7,1,FIND(".",D7)-1)) -> 10 | AA7: =_xlfn.NUMBERVALUE(MID(D7,FIND(".",D7)+1,FIND(".",D7,FIND(".",D7)+1)-1-FIND(".",D7))) -> 201 | AB7: =_xlfn.NUMBERVALUE(MID(D7,FIND(".",D7,FIND(".",D7)+1)+1,FIND(".",D7,FIND(".",D7,FIND(".",D7)+1)+1)-1-FIND(".",D7,FIND(".",D7)+1))) -> 18 | AC7: =_xlfn.NUMBERVALUE(MID(D7,FIND(".",D7,FIND(".",D7,FIND(".",D7)+1)+1)+1,LEN(D7))) -> 23 | AD7: =Z7*256^3+AA7*256^2+AB7*256+AC7 -> 180949527
A8: 19107 | B8: 36 | C8: 10.201.18.24 | D8: 10.201.18.24 | E8: NULL | F8: NULL | G8: 44377.47357 | H8: 327 | I8: 692 | J8: 1 | K8: NULL | L8: NULL | M8: 1 | N8: 0 | O8: 692 | P8: N/A | Q8: NULL | R8: NULL | S8: 1 | T8: NULL | U8: =_xlfn.NUMBERVALUE(MID(C8,1,FIND(".",C8)-1)) -> 10 | V8: =_xlfn.NUMBERVALUE(MID(C8,FIND(".",C8)+1,FIND(".",C8,FIND(".",C8)+1)-1-FIND(".",C8))) -> 201 | W8: =_xlfn.NUMBERVALUE(MID(C8,FIND(".",C8,FIND(".",C8)+1)+1,FIND(".",C8,FIND(".",C8,FIND(".",C8)+1)+1)-1-FIND(".",C8,FIND(".",C8)+1))) -> 18 | X8: =_xlfn.NUMBERVALUE(MID(C8,FIND(".",C8,FIND(".",C8,FIND(".",C8)+1)+1)+1,LEN(C8))) -> 24 | Y8: =U8*256^3+V8*256^2+W8*256+X8 -> 180949528 | Z8: =_xlfn.NUMBERVALUE(MID(D8,1,FIND(".",D8)-1)) -> 10 | AA8: =_xlfn.NUMBERVALUE(MID(D8,FIND(".",D8)+1,FIND(".",D8,FIND(".",D8)+1)-1-FIND(".",D8))) -> 201 | AB8: =_xlfn.NUMBERVALUE(MID(D8,FIND(".",D8,FIND(".",D8)+1)+1,FIND(".",D8,FIND(".",D8,FIND(".",D8)+1)+1)-1-FIND(".",D8,FIND(".",D8)+1))) -> 18 | AC8: =_xlfn.NUMBERVALUE(MID(D8,FIND(".",D8,FIND(".",D8,FIND(".",D8)+1)+1)+1,LEN(D8))) -> 24 | AD8: =Z8*256^3+AA8*256^2+AB8*256+AC8 -> 180949528
A9: 19111 | B9: 36 | C9: 10.201.50.6 | D9: 10.201.50.6 | E9: NULL | F9: NULL | G9: 44377.47357 | H9: 327 | I9: 692 | J9: 1 | K9: NULL | L9: NULL | M9: 1 | N9: 0 | O9: 692 | P9: N/A | Q9: NULL | R9: NULL | S9: 1 | T9: NULL | U9: =_xlfn.NUMBERVALUE(MID(C9,1,FIND(".",C9)-1)) -> 10 | V9: =_xlfn.NUMBERVALUE(MID(C9,FIND(".",C9)+1,FIND(".",C9,FIND(".",C9)+1)-1-FIND(".",C9))) -> 201 | W9: =_xlfn.NUMBERVALUE(MID(C9,FIND(".",C9,FIND(".",C9)+1)+1,FIND(".",C9,FIND(".",C9,FIND(".",C9)+1)+1)-1-FIND(".",C9,FIND(".",C9)+1))) -> 50 | X9: =_xlfn.NUMBERVALUE(MID(C9,FIND(".",C9,FIND(".",C9,FIND(".",C9)+1)+1)+1,LEN(C9))) -> 6 | Y9: =U9*256^3+V9*256^2+W9*256+X9 -> 180957702 | Z9: =_xlfn.NUMBERVALUE(MID(D9,1,FIND(".",D9)-1)) -> 10 | AA9: =_xlfn.NUMBERVALUE(MID(D9,FIND(".",D9)+1,FIND(".",D9,FIND(".",D9)+1)-1-FIND(".",D9))) -> 201 | AB9: =_xlfn.NUMBERVALUE(MID(D9,FIND(".",D9,FIND(".",D9)+1)+1,FIND(".",D9,FIND(".",D9,FIND(".",D9)+1)+1)-1-FIND(".",D9,FIND(".",D9)+1))) -> 50 | AC9: =_xlfn.NUMBERVALUE(MID(D9,FIND(".",D9,FIND(".",D9,FIND(".",D9)+1)+1)+1,LEN(D9))) -> 6 | AD9: =Z9*256^3+AA9*256^2+AB9*256+AC9 -> 180957702
A10: 19064 | B10: 36 | C10: 103.63.104.88 | D10: 103.63.104.88 | E10: NULL | F10: NULL | G10: 44377.47357 | H10: 327 | I10: 261 | J10: 1 | K10: NULL | L10: NULL | M10: 1 | N10: 0 | O10: 261 | P10: Ho Chi Minh city | Q10: NULL | R10: NULL | S10: 1 | T10: NULL | U10: =_xlfn.NUMBERVALUE(MID(C10,1,FIND(".",C10)-1)) -> 103 | V10: =_xlfn.NUMBERVALUE(MID(C10,FIND(".",C10)+1,FIND(".",C10,FIND(".",C10)+1)-1-FIND(".",C10))) -> 63 | W10: =_xlfn.NUMBERVALUE(MID(C10,FIND(".",C10,FIND(".",C10)+1)+1,FIND(".",C10,FIND(".",C10,FIND(".",C10)+1)+1)-1-FIND(".",C10,FIND(".",C10)+1))) -> 104 | X10: =_xlfn.NUMBERVALUE(MID(C10,FIND(".",C10,FIND(".",C10,FIND(".",C10)+1)+1)+1,LEN(C10))) -> 88 | Y10: =U10*256^3+V10*256^2+W10*256+X10 -> 1732208728 | Z10: =_xlfn.NUMBERVALUE(MID(D10,1,FIND(".",D10)-1)) -> 103 | AA10: =_xlfn.NUMBERVALUE(MID(D10,FIND(".",D10)+1,FIND(".",D10,FIND(".",D10)+1)-1-FIND(".",D10))) -> 63 | AB10: =_xlfn.NUMBERVALUE(MID(D10,FIND(".",D10,FIND(".",D10)+1)+1,FIND(".",D10,FIND(".",D10,FIND(".",D10)+1)+1)-1-FIND(".",D10,FIND(".",D10)+1))) -> 104 | AC10: =_xlfn.NUMBERVALUE(MID(D10,FIND(".",D10,FIND(".",D10,FIND(".",D10)+1)+1)+1,LEN(D10))) -> 88 | AD10: =Z10*256^3+AA10*256^2+AB10*256+AC10 -> 1732208728
A11: 19063 | B11: 36 | C11: 118.69.217.120 | D11: 118.69.217.127 | E11: NULL | F11: NULL | G11: 44377.47357 | H11: 327 | I11: 248 | J11: 1 | K11: NULL | L11: NULL | M11: 1 | N11: 0 | O11: 248 | P11: Hanoi | Q11: NULL | R11: NULL | S11: 1 | T11: NULL | U11: =_xlfn.NUMBERVALUE(MID(C11,1,FIND(".",C11)-1)) -> 118 | V11: =_xlfn.NUMBERVALUE(MID(C11,FIND(".",C11)+1,FIND(".",C11,FIND(".",C11)+1)-1-FIND(".",C11))) -> 69 | W11: =_xlfn.NUMBERVALUE(MID(C11,FIND(".",C11,FIND(".",C11)+1)+1,FIND(".",C11,FIND(".",C11,FIND(".",C11)+1)+1)-1-FIND(".",C11,FIND(".",C11)+1))) -> 217 | X11: =_xlfn.NUMBERVALUE(MID(C11,FIND(".",C11,FIND(".",C11,FIND(".",C11)+1)+1)+1,LEN(C11))) -> 120 | Y11: =U11*256^3+V11*256^2+W11*256+X11 -> 1984289144 | Z11: =_xlfn.NUMBERVALUE(MID(D11,1,FIND(".",D11)-1)) -> 118 | AA11: =_xlfn.NUMBERVALUE(MID(D11,FIND(".",D11)+1,FIND(".",D11,FIND(".",D11)+1)-1-FIND(".",D11))) -> 69 | AB11: =_xlfn.NUMBERVALUE(MID(D11,FIND(".",D11,FIND(".",D11)+1)+1,FIND(".",D11,FIND(".",D11,FIND(".",D11)+1)+1)-1-FIND(".",D11,FIND(".",D11)+1))) -> 217 | AC11: =_xlfn.NUMBERVALUE(MID(D11,FIND(".",D11,FIND(".",D11,FIND(".",D11)+1)+1)+1,LEN(D11))) -> 127 | AD11: =Z11*256^3+AA11*256^2+AB11*256+AC11 -> 1984289151
A12: 19051 | B12: 36 | C12: 151.253.115.152 | D12: 151.253.115.159 | E12: NULL | F12: NULL | G12: 44377.47357 | H12: 327 | I12: 10 | J12: 1 | K12: NULL | L12: NULL | M12: 1 | N12: 0 | O12: 10 | P12: Abu Dhabi | Q12: NULL | R12: NULL | S12: 1 | T12: NULL | U12: =_xlfn.NUMBERVALUE(MID(C12,1,FIND(".",C12)-1)) -> 151 | V12: =_xlfn.NUMBERVALUE(MID(C12,FIND(".",C12)+1,FIND(".",C12,FIND(".",C12)+1)-1-FIND(".",C12))) -> 253 | W12: =_xlfn.NUMBERVALUE(MID(C12,FIND(".",C12,FIND(".",C12)+1)+1,FIND(".",C12,FIND(".",C12,FIND(".",C12)+1)+1)-1-FIND(".",C12,FIND(".",C12)+1))) -> 115 | X12: =_xlfn.NUMBERVALUE(MID(C12,FIND(".",C12,FIND(".",C12,FIND(".",C12)+1)+1)+1,LEN(C12))) -> 152 | Y12: =U12*256^3+V12*256^2+W12*256+X12 -> 2549969816 | Z12: =_xlfn.NUMBERVALUE(MID(D12,1,FIND(".",D12)-1)) -> 151 | AA12: =_xlfn.NUMBERVALUE(MID(D12,FIND(".",D12)+1,FIND(".",D12,FIND(".",D12)+1)-1-FIND(".",D12))) -> 253 | AB12: =_xlfn.NUMBERVALUE(MID(D12,FIND(".",D12,FIND(".",D12)+1)+1,FIND(".",D12,FIND(".",D12,FIND(".",D12)+1)+1)-1-FIND(".",D12,FIND(".",D12)+1))) -> 115 | AC12: =_xlfn.NUMBERVALUE(MID(D12,FIND(".",D12,FIND(".",D12,FIND(".",D12)+1)+1)+1,LEN(D12))) -> 159 | AD12: =Z12*256^3+AA12*256^2+AB12*256+AC12 -> 2549969823
A13: 19071 | B13: 36 | C13: 154.14.114.168 | D13: 154.14.114.175 | E13: NULL | F13: NULL | G13: 44377.47357 | H13: 327 | I13: 351 | J13: 1 | K13: NULL | L13: NULL | M13: 1 | N13: 0 | O13: 351 | P13: London | Q13: NULL | R13: NULL | S13: 1 | T13: NULL | U13: =_xlfn.NUMBERVALUE(MID(C13,1,FIND(".",C13)-1)) -> 154 | V13: =_xlfn.NUMBERVALUE(MID(C13,FIND(".",C13)+1,FIND(".",C13,FIND(".",C13)+1)-1-FIND(".",C13))) -> 14 | W13: =_xlfn.NUMBERVALUE(MID(C13,FIND(".",C13,FIND(".",C13)+1)+1,FIND(".",C13,FIND(".",C13,FIND(".",C13)+1)+1)-1-FIND(".",C13,FIND(".",C13)+1))) -> 114 | X13: =_xlfn.NUMBERVALUE(MID(C13,FIND(".",C13,FIND(".",C13,FIND(".",C13)+1)+1)+1,LEN(C13))) -> 168 | Y13: =U13*256^3+V13*256^2+W13*256+X13 -> 2584638120 | Z13: =_xlfn.NUMBERVALUE(MID(D13,1,FIND(".",D13)-1)) -> 154 | AA13: =_xlfn.NUMBERVALUE(MID(D13,FIND(".",D13)+1,FIND(".",D13,FIND(".",D13)+1)-1-FIND(".",D13))) -> 14 | AB13: =_xlfn.NUMBERVALUE(MID(D13,FIND(".",D13,FIND(".",D13)+1)+1,FIND(".",D13,FIND(".",D13,FIND(".",D13)+1)+1)-1-FIND(".",D13,FIND(".",D13)+1))) -> 114 | AC13: =_xlfn.NUMBERVALUE(MID(D13,FIND(".",D13,FIND(".",D13,FIND(".",D13)+1)+1)+1,LEN(D13))) -> 175 | AD13: =Z13*256^3+AA13*256^2+AB13*256+AC13 -> 2584638127
A14: 19083 | B14: 36 | C14: 154.14.208.192 | D14: 154.14.208.207 | E14: NULL | F14: NULL | G14: 44377.47357 | H14: 327 | I14: 440 | J14: 1 | K14: NULL | L14: NULL | M14: 1 | N14: 0 | O14: 440 | P14: New York | Q14: NULL | R14: NULL | S14: 1 | T14: NULL | U14: =_xlfn.NUMBERVALUE(MID(C14,1,FIND(".",C14)-1)) -> 154 | V14: =_xlfn.NUMBERVALUE(MID(C14,FIND(".",C14)+1,FIND(".",C14,FIND(".",C14)+1)-1-FIND(".",C14))) -> 14 | W14: =_xlfn.NUMBERVALUE(MID(C14,FIND(".",C14,FIND(".",C14)+1)+1,FIND(".",C14,FIND(".",C14,FIND(".",C14)+1)+1)-1-FIND(".",C14,FIND(".",C14)+1))) -> 208 | X14: =_xlfn.NUMBERVALUE(MID(C14,FIND(".",C14,FIND(".",C14,FIND(".",C14)+1)+1)+1,LEN(C14))) -> 192 | Y14: =U14*256^3+V14*256^2+W14*256+X14 -> 2584662208 | Z14: =_xlfn.NUMBERVALUE(MID(D14,1,FIND(".",D14)-1)) -> 154 | AA14: =_xlfn.NUMBERVALUE(MID(D14,FIND(".",D14)+1,FIND(".",D14,FIND(".",D14)+1)-1-FIND(".",D14))) -> 14 | AB14: =_xlfn.NUMBERVALUE(MID(D14,FIND(".",D14,FIND(".",D14)+1)+1,FIND(".",D14,FIND(".",D14,FIND(".",D14)+1)+1)-1-FIND(".",D14,FIND(".",D14)+1))) -> 208 | AC14: =_xlfn.NUMBERVALUE(MID(D14,FIND(".",D14,FIND(".",D14,FIND(".",D14)+1)+1)+1,LEN(D14))) -> 207 | AD14: =Z14*256^3+AA14*256^2+AB14*256+AC14 -> 2584662223
A15: 19103 | B15: 36 | C15: 154.14.249.48 | D15: 154.14.249.63 | E15: NULL | F15: NULL | G15: 44377.47357 | H15: 327 | I15: 661 | J15: 1 | K15: NULL | L15: NULL | M15: 1 | N15: 0 | O15: 661 | P15: Washington DC | Q15: NULL | R15: NULL | S15: 1 | T15: NULL | U15: =_xlfn.NUMBERVALUE(MID(C15,1,FIND(".",C15)-1)) -> 154 | V15: =_xlfn.NUMBERVALUE(MID(C15,FIND(".",C15)+1,FIND(".",C15,FIND(".",C15)+1)-1-FIND(".",C15))) -> 14 | W15: =_xlfn.NUMBERVALUE(MID(C15,FIND(".",C15,FIND(".",C15)+1)+1,FIND(".",C15,FIND(".",C15,FIND(".",C15)+1)+1)-1-FIND(".",C15,FIND(".",C15)+1))) -> 249 | X15: =_xlfn.NUMBERVALUE(MID(C15,FIND(".",C15,FIND(".",C15,FIND(".",C15)+1)+1)+1,LEN(C15))) -> 48 | Y15: =U15*256^3+V15*256^2+W15*256+X15 -> 2584672560 | Z15: =_xlfn.NUMBERVALUE(MID(D15,1,FIND(".",D15)-1)) -> 154 | AA15: =_xlfn.NUMBERVALUE(MID(D15,FIND(".",D15)+1,FIND(".",D15,FIND(".",D15)+1)-1-FIND(".",D15))) -> 14 | AB15: =_xlfn.NUMBERVALUE(MID(D15,FIND(".",D15,FIND(".",D15)+1)+1,FIND(".",D15,FIND(".",D15,FIND(".",D15)+1)+1)-1-FIND(".",D15,FIND(".",D15)+1))) -> 249 | AC15: =_xlfn.NUMBERVALUE(MID(D15,FIND(".",D15,FIND(".",D15,FIND(".",D15)+1)+1)+1,LEN(D15))) -> 63 | AD15: =Z15*256^3+AA15*256^2+AB15*256+AC15 -> 2584672575
A16: 19073 | B16: 36 | C16: 154.14.25.0 | D16: 154.14.25.3 | E16: NULL | F16: NULL | G16: 44377.47357 | H16: 327 | I16: 351 | J16: 1 | K16: NULL | L16: NULL | M16: 1 | N16: 0 | O16: 351 | P16: London | Q16: NULL | R16: NULL | S16: 1 | T16: NULL | U16: =_xlfn.NUMBERVALUE(MID(C16,1,FIND(".",C16)-1)) -> 154 | V16: =_xlfn.NUMBERVALUE(MID(C16,FIND(".",C16)+1,FIND(".",C16,FIND(".",C16)+1)-1-FIND(".",C16))) -> 14 | W16: =_xlfn.NUMBERVALUE(MID(C16,FIND(".",C16,FIND(".",C16)+1)+1,FIND(".",C16,FIND(".",C16,FIND(".",C16)+1)+1)-1-FIND(".",C16,FIND(".",C16)+1))) -> 25 | X16: =_xlfn.NUMBERVALUE(MID(C16,FIND(".",C16,FIND(".",C16,FIND(".",C16)+1)+1)+1,LEN(C16))) -> 0 | Y16: =U16*256^3+V16*256^2+W16*256+X16 -> 2584615168 | Z16: =_xlfn.NUMBERVALUE(MID(D16,1,FIND(".",D16)-1)) -> 154 | AA16: =_xlfn.NUMBERVALUE(MID(D16,FIND(".",D16)+1,FIND(".",D16,FIND(".",D16)+1)-1-FIND(".",D16))) -> 14 | AB16: =_xlfn.NUMBERVALUE(MID(D16,FIND(".",D16,FIND(".",D16)+1)+1,FIND(".",D16,FIND(".",D16,FIND(".",D16)+1)+1)-1-FIND(".",D16,FIND(".",D16)+1))) -> 25 | AC16: =_xlfn.NUMBERVALUE(MID(D16,FIND(".",D16,FIND(".",D16,FIND(".",D16)+1)+1)+1,LEN(D16))) -> 3 | AD16: =Z16*256^3+AA16*256^2+AB16*256+AC16 -> 2584615171
A17: 19054 | B17: 36 | C17: 183.91.150.148 | D17: 183.91.150.151 | E17: NULL | F17: NULL | G17: 44377.47357 | H17: 327 | I17: 61 | J17: 1 | K17: NULL | L17: NULL | M17: 1 | N17: 0 | O17: 61 | P17: Beijing | Q17: NULL | R17: NULL | S17: 1 | T17: NULL | U17: =_xlfn.NUMBERVALUE(MID(C17,1,FIND(".",C17)-1)) -> 183 | V17: =_xlfn.NUMBERVALUE(MID(C17,FIND(".",C17)+1,FIND(".",C17,FIND(".",C17)+1)-1-FIND(".",C17))) -> 91 | W17: =_xlfn.NUMBERVALUE(MID(C17,FIND(".",C17,FIND(".",C17)+1)+1,FIND(".",C17,FIND(".",C17,FIND(".",C17)+1)+1)-1-FIND(".",C17,FIND(".",C17)+1))) -> 150 | X17: =_xlfn.NUMBERVALUE(MID(C17,FIND(".",C17,FIND(".",C17,FIND(".",C17)+1)+1)+1,LEN(C17))) -> 148 | Y17: =U17*256^3+V17*256^2+W17*256+X17 -> 3076232852 | Z17: =_xlfn.NUMBERVALUE(MID(D17,1,FIND(".",D17)-1)) -> 183 | AA17: =_xlfn.NUMBERVALUE(MID(D17,FIND(".",D17)+1,FIND(".",D17,FIND(".",D17)+1)-1-FIND(".",D17))) -> 91 | AB17: =_xlfn.NUMBERVALUE(MID(D17,FIND(".",D17,FIND(".",D17)+1)+1,FIND(".",D17,FIND(".",D17,FIND(".",D17)+1)+1)-1-FIND(".",D17,FIND(".",D17)+1))) -> 150 | AC17: =_xlfn.NUMBERVALUE(MID(D17,FIND(".",D17,FIND(".",D17,FIND(".",D17)+1)+1)+1,LEN(D17))) -> 151 | AD17: =Z17*256^3+AA17*256^2+AB17*256+AC17 -> 3076232855
A18: 19088 | B18: 36 | C18: 192.84.134.16 | D18: 192.84.134.23 | E18: NULL | F18: NULL | G18: 44377.47357 | H18: 327 | I18: 579 | J18: 1 | K18: NULL | L18: NULL | M18: 1 | N18: 0 | O18: 579 | P18: Silicon Valley | Q18: NULL | R18: NULL | S18: 1 | T18: NULL | U18: =_xlfn.NUMBERVALUE(MID(C18,1,FIND(".",C18)-1)) -> 192 | V18: =_xlfn.NUMBERVALUE(MID(C18,FIND(".",C18)+1,FIND(".",C18,FIND(".",C18)+1)-1-FIND(".",C18))) -> 84 | W18: =_xlfn.NUMBERVALUE(MID(C18,FIND(".",C18,FIND(".",C18)+1)+1,FIND(".",C18,FIND(".",C18,FIND(".",C18)+1)+1)-1-FIND(".",C18,FIND(".",C18)+1))) -> 134 | X18: =_xlfn.NUMBERVALUE(MID(C18,FIND(".",C18,FIND(".",C18,FIND(".",C18)+1)+1)+1,LEN(C18))) -> 16 | Y18: =U18*256^3+V18*256^2+W18*256+X18 -> 3226764816 | Z18: =_xlfn.NUMBERVALUE(MID(D18,1,FIND(".",D18)-1)) -> 192 | AA18: =_xlfn.NUMBERVALUE(MID(D18,FIND(".",D18)+1,FIND(".",D18,FIND(".",D18)+1)-1-FIND(".",D18))) -> 84 | AB18: =_xlfn.NUMBERVALUE(MID(D18,FIND(".",D18,FIND(".",D18)+1)+1,FIND(".",D18,FIND(".",D18,FIND(".",D18)+1)+1)-1-FIND(".",D18,FIND(".",D18)+1))) -> 134 | AC18: =_xlfn.NUMBERVALUE(MID(D18,FIND(".",D18,FIND(".",D18,FIND(".",D18)+1)+1)+1,LEN(D18))) -> 23 | AD18: =Z18*256^3+AA18*256^2+AB18*256+AC18 -> 3226764823
A19: 19062 | B19: 36 | C19: 192.99.22.56 | D19: 192.99.22.59 | E19: NULL | F19: NULL | G19: 44377.47357 | H19: 327 | I19: 248 | J19: 1 | K19: NULL | L19: NULL | M19: 1 | N19: 0 | O19: 248 | P19: Hanoi | Q19: NULL | R19: NULL | S19: 1 | T19: NULL | U19: =_xlfn.NUMBERVALUE(MID(C19,1,FIND(".",C19)-1)) -> 192 | V19: =_xlfn.NUMBERVALUE(MID(C19,FIND(".",C19)+1,FIND(".",C19,FIND(".",C19)+1)-1-FIND(".",C19))) -> 99 | W19: =_xlfn.NUMBERVALUE(MID(C19,FIND(".",C19,FIND(".",C19)+1)+1,FIND(".",C19,FIND(".",C19,FIND(".",C19)+1)+1)-1-FIND(".",C19,FIND(".",C19)+1))) -> 22 | X19: =_xlfn.NUMBERVALUE(MID(C19,FIND(".",C19,FIND(".",C19,FIND(".",C19)+1)+1)+1,LEN(C19))) -> 56 | Y19: =U19*256^3+V19*256^2+W19*256+X19 -> 3227719224 | Z19: =_xlfn.NUMBERVALUE(MID(D19,1,FIND(".",D19)-1)) -> 192 | AA19: =_xlfn.NUMBERVALUE(MID(D19,FIND(".",D19)+1,FIND(".",D19,FIND(".",D19)+1)-1-FIND(".",D19))) -> 99 | AB19: =_xlfn.NUMBERVALUE(MID(D19,FIND(".",D19,FIND(".",D19)+1)+1,FIND(".",D19,FIND(".",D19,FIND(".",D19)+1)+1)-1-FIND(".",D19,FIND(".",D19)+1))) -> 22 | AC19: =_xlfn.NUMBERVALUE(MID(D19,FIND(".",D19,FIND(".",D19,FIND(".",D19)+1)+1)+1,LEN(D19))) -> 59 | AD19: =Z19*256^3+AA19*256^2+AB19*256+AC19 -> 3227719227
A20: 19075 | B20: 36 | C20: 193.240.226.32 | D20: 193.240.226.39 | E20: NULL | F20: NULL | G20: 44377.47357 | H20: 327 | I20: 378 | J20: 1 | K20: NULL | L20: NULL | M20: 1 | N20: 0 | O20: 378 | P20: manchester | Q20: NULL | R20: NULL | S20: 1 | T20: NULL | U20: =_xlfn.NUMBERVALUE(MID(C20,1,FIND(".",C20)-1)) -> 193 | V20: =_xlfn.NUMBERVALUE(MID(C20,FIND(".",C20)+1,FIND(".",C20,FIND(".",C20)+1)-1-FIND(".",C20))) -> 240 | W20: =_xlfn.NUMBERVALUE(MID(C20,FIND(".",C20,FIND(".",C20)+1)+1,FIND(".",C20,FIND(".",C20,FIND(".",C20)+1)+1)-1-FIND(".",C20,FIND(".",C20)+1))) -> 226 | X20: =_xlfn.NUMBERVALUE(MID(C20,FIND(".",C20,FIND(".",C20,FIND(".",C20)+1)+1)+1,LEN(C20))) -> 32 | Y20: =U20*256^3+V20*256^2+W20*256+X20 -> 3253789216 | Z20: =_xlfn.NUMBERVALUE(MID(D20,1,FIND(".",D20)-1)) -> 193 | AA20: =_xlfn.NUMBERVALUE(MID(D20,FIND(".",D20)+1,FIND(".",D20,FIND(".",D20)+1)-1-FIND(".",D20))) -> 240 | AB20: =_xlfn.NUMBERVALUE(MID(D20,FIND(".",D20,FIND(".",D20)+1)+1,FIND(".",D20,FIND(".",D20,FIND(".",D20)+1)+1)-1-FIND(".",D20,FIND(".",D20)+1))) -> 226 | AC20: =_xlfn.NUMBERVALUE(MID(D20,FIND(".",D20,FIND(".",D20,FIND(".",D20)+1)+1)+1,LEN(D20))) -> 39 | AD20: =Z20*256^3+AA20*256^2+AB20*256+AC20 -> 3253789223
A21: 19096 | B21: 36 | C21: 194.178.161.128 | D21: 194.178.161.255 | E21: NULL | F21: NULL | G21: 44377.47357 | H21: 327 | I21: 661 | J21: 1 | K21: NULL | L21: NULL | M21: 1 | N21: 0 | O21: 661 | P21: Washington DC | Q21: NULL | R21: NULL | S21: 1 | T21: NULL | U21: =_xlfn.NUMBERVALUE(MID(C21,1,FIND(".",C21)-1)) -> 194 | V21: =_xlfn.NUMBERVALUE(MID(C21,FIND(".",C21)+1,FIND(".",C21,FIND(".",C21)+1)-1-FIND(".",C21))) -> 178 | W21: =_xlfn.NUMBERVALUE(MID(C21,FIND(".",C21,FIND(".",C21)+1)+1,FIND(".",C21,FIND(".",C21,FIND(".",C21)+1)+1)-1-FIND(".",C21,FIND(".",C21)+1))) -> 161 | X21: =_xlfn.NUMBERVALUE(MID(C21,FIND(".",C21,FIND(".",C21,FIND(".",C21)+1)+1)+1,LEN(C21))) -> 128 | Y21: =U21*256^3+V21*256^2+W21*256+X21 -> 3266486656 | Z21: =_xlfn.NUMBERVALUE(MID(D21,1,FIND(".",D21)-1)) -> 194 | AA21: =_xlfn.NUMBERVALUE(MID(D21,FIND(".",D21)+1,FIND(".",D21,FIND(".",D21)+1)-1-FIND(".",D21))) -> 178 | AB21: =_xlfn.NUMBERVALUE(MID(D21,FIND(".",D21,FIND(".",D21)+1)+1,FIND(".",D21,FIND(".",D21,FIND(".",D21)+1)+1)-1-FIND(".",D21,FIND(".",D21)+1))) -> 161 | AC21: =_xlfn.NUMBERVALUE(MID(D21,FIND(".",D21,FIND(".",D21,FIND(".",D21)+1)+1)+1,LEN(D21))) -> 255 | AD21: =Z21*256^3+AA21*256^2+AB21*256+AC21 -> 3266486783
A22: 19098 | B22: 36 | C22: 194.178.161.128 | D22: 194.178.161.255 | E22: NULL | F22: NULL | G22: 44377.47357 | H22: 327 | I22: 661 | J22: 1 | K22: NULL | L22: NULL | M22: 1 | N22: 0 | O22: 661 | P22: Washington DC | Q22: NULL | R22: NULL | S22: 1 | T22: NULL | U22: =_xlfn.NUMBERVALUE(MID(C22,1,FIND(".",C22)-1)) -> 194 | V22: =_xlfn.NUMBERVALUE(MID(C22,FIND(".",C22)+1,FIND(".",C22,FIND(".",C22)+1)-1-FIND(".",C22))) -> 178 | W22: =_xlfn.NUMBERVALUE(MID(C22,FIND(".",C22,FIND(".",C22)+1)+1,FIND(".",C22,FIND(".",C22,FIND(".",C22)+1)+1)-1-FIND(".",C22,FIND(".",C22)+1))) -> 161 | X22: =_xlfn.NUMBERVALUE(MID(C22,FIND(".",C22,FIND(".",C22,FIND(".",C22)+1)+1)+1,LEN(C22))) -> 128 | Y22: =U22*256^3+V22*256^2+W22*256+X22 -> 3266486656 | Z22: =_xlfn.NUMBERVALUE(MID(D22,1,FIND(".",D22)-1)) -> 194 | AA22: =_xlfn.NUMBERVALUE(MID(D22,FIND(".",D22)+1,FIND(".",D22,FIND(".",D22)+1)-1-FIND(".",D22))) -> 178 | AB22: =_xlfn.NUMBERVALUE(MID(D22,FIND(".",D22,FIND(".",D22)+1)+1,FIND(".",D22,FIND(".",D22,FIND(".",D22)+1)+1)-1-FIND(".",D22,FIND(".",D22)+1))) -> 161 | AC22: =_xlfn.NUMBERVALUE(MID(D22,FIND(".",D22,FIND(".",D22,FIND(".",D22)+1)+1)+1,LEN(D22))) -> 255 | AD22: =Z22*256^3+AA22*256^2+AB22*256+AC22 -> 3266486783
A23: 19059 | B23: 36 | C23: 194.88.82.0 | D23: 194.88.82.63 | E23: NULL | F23: NULL | G23: 44377.47357 | H23: 327 | I23: 206 | J23: 1 | K23: NULL | L23: NULL | M23: 1 | N23: 0 | O23: 206 | P23: Frankfurt | Q23: NULL | R23: NULL | S23: 1 | T23: NULL | U23: =_xlfn.NUMBERVALUE(MID(C23,1,FIND(".",C23)-1)) -> 194 | V23: =_xlfn.NUMBERVALUE(MID(C23,FIND(".",C23)+1,FIND(".",C23,FIND(".",C23)+1)-1-FIND(".",C23))) -> 88 | W23: =_xlfn.NUMBERVALUE(MID(C23,FIND(".",C23,FIND(".",C23)+1)+1,FIND(".",C23,FIND(".",C23,FIND(".",C23)+1)+1)-1-FIND(".",C23,FIND(".",C23)+1))) -> 82 | X23: =_xlfn.NUMBERVALUE(MID(C23,FIND(".",C23,FIND(".",C23,FIND(".",C23)+1)+1)+1,LEN(C23))) -> 0 | Y23: =U23*256^3+V23*256^2+W23*256+X23 -> 3260568064 | Z23: =_xlfn.NUMBERVALUE(MID(D23,1,FIND(".",D23)-1)) -> 194 | AA23: =_xlfn.NUMBERVALUE(MID(D23,FIND(".",D23)+1,FIND(".",D23,FIND(".",D23)+1)-1-FIND(".",D23))) -> 88 | AB23: =_xlfn.NUMBERVALUE(MID(D23,FIND(".",D23,FIND(".",D23)+1)+1,FIND(".",D23,FIND(".",D23,FIND(".",D23)+1)+1)-1-FIND(".",D23,FIND(".",D23)+1))) -> 82 | AC23: =_xlfn.NUMBERVALUE(MID(D23,FIND(".",D23,FIND(".",D23,FIND(".",D23)+1)+1)+1,LEN(D23))) -> 63 | AD23: =Z23*256^3+AA23*256^2+AB23*256+AC23 -> 3260568127
A24: 19058 | B24: 36 | C24: 194.88.82.64 | D24: 194.88.82.127 | E24: NULL | F24: NULL | G24: 44377.47357 | H24: 327 | I24: 183 | J24: 1 | K24: NULL | L24: NULL | M24: 1 | N24: 0 | O24: 183 | P24: dubai | Q24: NULL | R24: NULL | S24: 1 | T24: NULL | U24: =_xlfn.NUMBERVALUE(MID(C24,1,FIND(".",C24)-1)) -> 194 | V24: =_xlfn.NUMBERVALUE(MID(C24,FIND(".",C24)+1,FIND(".",C24,FIND(".",C24)+1)-1-FIND(".",C24))) -> 88 | W24: =_xlfn.NUMBERVALUE(MID(C24,FIND(".",C24,FIND(".",C24)+1)+1,FIND(".",C24,FIND(".",C24,FIND(".",C24)+1)+1)-1-FIND(".",C24,FIND(".",C24)+1))) -> 82 | X24: =_xlfn.NUMBERVALUE(MID(C24,FIND(".",C24,FIND(".",C24,FIND(".",C24)+1)+1)+1,LEN(C24))) -> 64 | Y24: =U24*256^3+V24*256^2+W24*256+X24 -> 3260568128 | Z24: =_xlfn.NUMBERVALUE(MID(D24,1,FIND(".",D24)-1)) -> 194 | AA24: =_xlfn.NUMBERVALUE(MID(D24,FIND(".",D24)+1,FIND(".",D24,FIND(".",D24)+1)-1-FIND(".",D24))) -> 88 | AB24: =_xlfn.NUMBERVALUE(MID(D24,FIND(".",D24,FIND(".",D24)+1)+1,FIND(".",D24,FIND(".",D24,FIND(".",D24)+1)+1)-1-FIND(".",D24,FIND(".",D24)+1))) -> 82 | AC24: =_xlfn.NUMBERVALUE(MID(D24,FIND(".",D24,FIND(".",D24,FIND(".",D24)+1)+1)+1,LEN(D24))) -> 127 | AD24: =Z24*256^3+AA24*256^2+AB24*256+AC24 -> 3260568191
A25: 19082 | B25: 36 | C25: 194.88.82.64 | D25: 194.88.82.127 | E25: NULL | F25: NULL | G25: 44377.47357 | H25: 327 | I25: 440 | J25: 1 | K25: NULL | L25: NULL | M25: 1 | N25: 0 | O25: 440 | P25: New York | Q25: NULL | R25: NULL | S25: 1 | T25: NULL | U25: =_xlfn.NUMBERVALUE(MID(C25,1,FIND(".",C25)-1)) -> 194 | V25: =_xlfn.NUMBERVALUE(MID(C25,FIND(".",C25)+1,FIND(".",C25,FIND(".",C25)+1)-1-FIND(".",C25))) -> 88 | W25: =_xlfn.NUMBERVALUE(MID(C25,FIND(".",C25,FIND(".",C25)+1)+1,FIND(".",C25,FIND(".",C25,FIND(".",C25)+1)+1)-1-FIND(".",C25,FIND(".",C25)+1))) -> 82 | X25: =_xlfn.NUMBERVALUE(MID(C25,FIND(".",C25,FIND(".",C25,FIND(".",C25)+1)+1)+1,LEN(C25))) -> 64 | Y25: =U25*256^3+V25*256^2+W25*256+X25 -> 3260568128 | Z25: =_xlfn.NUMBERVALUE(MID(D25,1,FIND(".",D25)-1)) -> 194 | AA25: =_xlfn.NUMBERVALUE(MID(D25,FIND(".",D25)+1,FIND(".",D25,FIND(".",D25)+1)-1-FIND(".",D25))) -> 88 | AB25: =_xlfn.NUMBERVALUE(MID(D25,FIND(".",D25,FIND(".",D25)+1)+1,FIND(".",D25,FIND(".",D25,FIND(".",D25)+1)+1)-1-FIND(".",D25,FIND(".",D25)+1))) -> 82 | AC25: =_xlfn.NUMBERVALUE(MID(D25,FIND(".",D25,FIND(".",D25,FIND(".",D25)+1)+1)+1,LEN(D25))) -> 127 | AD25: =Z25*256^3+AA25*256^2+AB25*256+AC25 -> 3260568191
A26: 19097 | B26: 36 | C26: 195.166.53.240 | D26: 195.166.53.255 | E26: NULL | F26: NULL | G26: 44377.47357 | H26: 327 | I26: 661 | J26: 1 | K26: NULL | L26: NULL | M26: 1 | N26: 0 | O26: 661 | P26: Washington DC | Q26: NULL | R26: NULL | S26: 1 | T26: NULL | U26: =_xlfn.NUMBERVALUE(MID(C26,1,FIND(".",C26)-1)) -> 195 | V26: =_xlfn.NUMBERVALUE(MID(C26,FIND(".",C26)+1,FIND(".",C26,FIND(".",C26)+1)-1-FIND(".",C26))) -> 166 | W26: =_xlfn.NUMBERVALUE(MID(C26,FIND(".",C26,FIND(".",C26)+1)+1,FIND(".",C26,FIND(".",C26,FIND(".",C26)+1)+1)-1-FIND(".",C26,FIND(".",C26)+1))) -> 53 | X26: =_xlfn.NUMBERVALUE(MID(C26,FIND(".",C26,FIND(".",C26,FIND(".",C26)+1)+1)+1,LEN(C26))) -> 240 | Y26: =U26*256^3+V26*256^2+W26*256+X26 -> 3282449904 | Z26: =_xlfn.NUMBERVALUE(MID(D26,1,FIND(".",D26)-1)) -> 195 | AA26: =_xlfn.NUMBERVALUE(MID(D26,FIND(".",D26)+1,FIND(".",D26,FIND(".",D26)+1)-1-FIND(".",D26))) -> 166 | AB26: =_xlfn.NUMBERVALUE(MID(D26,FIND(".",D26,FIND(".",D26)+1)+1,FIND(".",D26,FIND(".",D26,FIND(".",D26)+1)+1)-1-FIND(".",D26,FIND(".",D26)+1))) -> 53 | AC26: =_xlfn.NUMBERVALUE(MID(D26,FIND(".",D26,FIND(".",D26,FIND(".",D26)+1)+1)+1,LEN(D26))) -> 255 | AD26: =Z26*256^3+AA26*256^2+AB26*256+AC26 -> 3282449919
A27: 19081 | B27: 36 | C27: 195.50.120.236 | D27: 195.50.120.239 | E27: NULL | F27: NULL | G27: 44377.47357 | H27: 327 | I27: 440 | J27: 1 | K27: NULL | L27: NULL | M27: 1 | N27: 0 | O27: 440 | P27: New York | Q27: NULL | R27: NULL | S27: 1 | T27: NULL | U27: =_xlfn.NUMBERVALUE(MID(C27,1,FIND(".",C27)-1)) -> 195 | V27: =_xlfn.NUMBERVALUE(MID(C27,FIND(".",C27)+1,FIND(".",C27,FIND(".",C27)+1)-1-FIND(".",C27))) -> 50 | W27: =_xlfn.NUMBERVALUE(MID(C27,FIND(".",C27,FIND(".",C27)+1)+1,FIND(".",C27,FIND(".",C27,FIND(".",C27)+1)+1)-1-FIND(".",C27,FIND(".",C27)+1))) -> 120 | X27: =_xlfn.NUMBERVALUE(MID(C27,FIND(".",C27,FIND(".",C27,FIND(".",C27)+1)+1)+1,LEN(C27))) -> 236 | Y27: =U27*256^3+V27*256^2+W27*256+X27 -> 3274864876 | Z27: =_xlfn.NUMBERVALUE(MID(D27,1,FIND(".",D27)-1)) -> 195 | AA27: =_xlfn.NUMBERVALUE(MID(D27,FIND(".",D27)+1,FIND(".",D27,FIND(".",D27)+1)-1-FIND(".",D27))) -> 50 | AB27: =_xlfn.NUMBERVALUE(MID(D27,FIND(".",D27,FIND(".",D27)+1)+1,FIND(".",D27,FIND(".",D27,FIND(".",D27)+1)+1)-1-FIND(".",D27,FIND(".",D27)+1))) -> 120 | AC27: =_xlfn.NUMBERVALUE(MID(D27,FIND(".",D27,FIND(".",D27,FIND(".",D27)+1)+1)+1,LEN(D27))) -> 239 | AD27: =Z27*256^3+AA27*256^2+AB27*256+AC27 -> 3274864879
A28: 19101 | B28: 36 | C28: 195.50.120.68 | D28: 195.50.120.71 | E28: NULL | F28: NULL | G28: 44377.47357 | H28: 327 | I28: 661 | J28: 1 | K28: NULL | L28: NULL | M28: 1 | N28: 0 | O28: 661 | P28: Washington DC | Q28: NULL | R28: NULL | S28: 1 | T28: NULL | U28: =_xlfn.NUMBERVALUE(MID(C28,1,FIND(".",C28)-1)) -> 195 | V28: =_xlfn.NUMBERVALUE(MID(C28,FIND(".",C28)+1,FIND(".",C28,FIND(".",C28)+1)-1-FIND(".",C28))) -> 50 | W28: =_xlfn.NUMBERVALUE(MID(C28,FIND(".",C28,FIND(".",C28)+1)+1,FIND(".",C28,FIND(".",C28,FIND(".",C28)+1)+1)-1-FIND(".",C28,FIND(".",C28)+1))) -> 120 | X28: =_xlfn.NUMBERVALUE(MID(C28,FIND(".",C28,FIND(".",C28,FIND(".",C28)+1)+1)+1,LEN(C28))) -> 68 | Y28: =U28*256^3+V28*256^2+W28*256+X28 -> 3274864708 | Z28: =_xlfn.NUMBERVALUE(MID(D28,1,FIND(".",D28)-1)) -> 195 | AA28: =_xlfn.NUMBERVALUE(MID(D28,FIND(".",D28)+1,FIND(".",D28,FIND(".",D28)+1)-1-FIND(".",D28))) -> 50 | AB28: =_xlfn.NUMBERVALUE(MID(D28,FIND(".",D28,FIND(".",D28)+1)+1,FIND(".",D28,FIND(".",D28,FIND(".",D28)+1)+1)-1-FIND(".",D28,FIND(".",D28)+1))) -> 120 | AC28: =_xlfn.NUMBERVALUE(MID(D28,FIND(".",D28,FIND(".",D28,FIND(".",D28)+1)+1)+1,LEN(D28))) -> 71 | AD28: =Z28*256^3+AA28*256^2+AB28*256+AC28 -> 3274864711
A29: 19067 | B29: 36 | C29: 195.81.88.184 | D29: 195.81.88.187 | E29: NULL | F29: NULL | G29: 44377.47357 | H29: 327 | I29: 351 | J29: 1 | K29: NULL | L29: NULL | M29: 1 | N29: 0 | O29: 351 | P29: London | Q29: NULL | R29: NULL | S29: 1 | T29: NULL | U29: =_xlfn.NUMBERVALUE(MID(C29,1,FIND(".",C29)-1)) -> 195 | V29: =_xlfn.NUMBERVALUE(MID(C29,FIND(".",C29)+1,FIND(".",C29,FIND(".",C29)+1)-1-FIND(".",C29))) -> 81 | W29: =_xlfn.NUMBERVALUE(MID(C29,FIND(".",C29,FIND(".",C29)+1)+1,FIND(".",C29,FIND(".",C29,FIND(".",C29)+1)+1)-1-FIND(".",C29,FIND(".",C29)+1))) -> 88 | X29: =_xlfn.NUMBERVALUE(MID(C29,FIND(".",C29,FIND(".",C29,FIND(".",C29)+1)+1)+1,LEN(C29))) -> 184 | Y29: =U29*256^3+V29*256^2+W29*256+X29 -> 3276888248 | Z29: =_xlfn.NUMBERVALUE(MID(D29,1,FIND(".",D29)-1)) -> 195 | AA29: =_xlfn.NUMBERVALUE(MID(D29,FIND(".",D29)+1,FIND(".",D29,FIND(".",D29)+1)-1-FIND(".",D29))) -> 81 | AB29: =_xlfn.NUMBERVALUE(MID(D29,FIND(".",D29,FIND(".",D29)+1)+1,FIND(".",D29,FIND(".",D29,FIND(".",D29)+1)+1)-1-FIND(".",D29,FIND(".",D29)+1))) -> 88 | AC29: =_xlfn.NUMBERVALUE(MID(D29,FIND(".",D29,FIND(".",D29,FIND(".",D29)+1)+1)+1,LEN(D29))) -> 187 | AD29: =Z29*256^3+AA29*256^2+AB29*256+AC29 -> 3276888251
A30: 19065 | B30: 36 | C30: 202.130.133.144 | D30: 202.130.133.151 | E30: NULL | F30: NULL | G30: 44377.47357 | H30: 327 | I30: 263 | J30: 1 | K30: NULL | L30: NULL | M30: 1 | N30: 0 | O30: 263 | P30: Hong Kong | Q30: NULL | R30: NULL | S30: 1 | T30: NULL | U30: =_xlfn.NUMBERVALUE(MID(C30,1,FIND(".",C30)-1)) -> 202 | V30: =_xlfn.NUMBERVALUE(MID(C30,FIND(".",C30)+1,FIND(".",C30,FIND(".",C30)+1)-1-FIND(".",C30))) -> 130 | W30: =_xlfn.NUMBERVALUE(MID(C30,FIND(".",C30,FIND(".",C30)+1)+1,FIND(".",C30,FIND(".",C30,FIND(".",C30)+1)+1)-1-FIND(".",C30,FIND(".",C30)+1))) -> 133 | X30: =_xlfn.NUMBERVALUE(MID(C30,FIND(".",C30,FIND(".",C30,FIND(".",C30)+1)+1)+1,LEN(C30))) -> 144 | Y30: =U30*256^3+V30*256^2+W30*256+X30 -> 3397551504 | Z30: =_xlfn.NUMBERVALUE(MID(D30,1,FIND(".",D30)-1)) -> 202 | AA30: =_xlfn.NUMBERVALUE(MID(D30,FIND(".",D30)+1,FIND(".",D30,FIND(".",D30)+1)-1-FIND(".",D30))) -> 130 | AB30: =_xlfn.NUMBERVALUE(MID(D30,FIND(".",D30,FIND(".",D30)+1)+1,FIND(".",D30,FIND(".",D30,FIND(".",D30)+1)+1)-1-FIND(".",D30,FIND(".",D30)+1))) -> 133 | AC30: =_xlfn.NUMBERVALUE(MID(D30,FIND(".",D30,FIND(".",D30,FIND(".",D30)+1)+1)+1,LEN(D30))) -> 151 | AD30: =Z30*256^3+AA30*256^2+AB30*256+AC30 -> 3397551511
A31: 19066 | B31: 36 | C31: 202.130.158.240 | D31: 202.130.158.247 | E31: NULL | F31: NULL | G31: 44377.47357 | H31: 327 | I31: 263 | J31: 1 | K31: NULL | L31: NULL | M31: 1 | N31: 0 | O31: 263 | P31: Hong Kong | Q31: NULL | R31: NULL | S31: 1 | T31: NULL | U31: =_xlfn.NUMBERVALUE(MID(C31,1,FIND(".",C31)-1)) -> 202 | V31: =_xlfn.NUMBERVALUE(MID(C31,FIND(".",C31)+1,FIND(".",C31,FIND(".",C31)+1)-1-FIND(".",C31))) -> 130 | W31: =_xlfn.NUMBERVALUE(MID(C31,FIND(".",C31,FIND(".",C31)+1)+1,FIND(".",C31,FIND(".",C31,FIND(".",C31)+1)+1)-1-FIND(".",C31,FIND(".",C31)+1))) -> 158 | X31: =_xlfn.NUMBERVALUE(MID(C31,FIND(".",C31,FIND(".",C31,FIND(".",C31)+1)+1)+1,LEN(C31))) -> 240 | Y31: =U31*256^3+V31*256^2+W31*256+X31 -> 3397558000 | Z31: =_xlfn.NUMBERVALUE(MID(D31,1,FIND(".",D31)-1)) -> 202 | AA31: =_xlfn.NUMBERVALUE(MID(D31,FIND(".",D31)+1,FIND(".",D31,FIND(".",D31)+1)-1-FIND(".",D31))) -> 130 | AB31: =_xlfn.NUMBERVALUE(MID(D31,FIND(".",D31,FIND(".",D31)+1)+1,FIND(".",D31,FIND(".",D31,FIND(".",D31)+1)+1)-1-FIND(".",D31,FIND(".",D31)+1))) -> 158 | AC31: =_xlfn.NUMBERVALUE(MID(D31,FIND(".",D31,FIND(".",D31,FIND(".",D31)+1)+1)+1,LEN(D31))) -> 247 | AD31: =Z31*256^3+AA31*256^2+AB31*256+AC31 -> 3397558007
A32: 19089 | B32: 36 | C32: 202.94.96.0 | D32: 202.94.96.7 | E32: NULL | F32: NULL | G32: 44377.47357 | H32: 327 | I32: 581 | J32: 1 | K32: NULL | L32: NULL | M32: 1 | N32: 0 | O32: 581 | P32: Singapore | Q32: NULL | R32: NULL | S32: 1 | T32: NULL | U32: =_xlfn.NUMBERVALUE(MID(C32,1,FIND(".",C32)-1)) -> 202 | V32: =_xlfn.NUMBERVALUE(MID(C32,FIND(".",C32)+1,FIND(".",C32,FIND(".",C32)+1)-1-FIND(".",C32))) -> 94 | W32: =_xlfn.NUMBERVALUE(MID(C32,FIND(".",C32,FIND(".",C32)+1)+1,FIND(".",C32,FIND(".",C32,FIND(".",C32)+1)+1)-1-FIND(".",C32,FIND(".",C32)+1))) -> 96 | X32: =_xlfn.NUMBERVALUE(MID(C32,FIND(".",C32,FIND(".",C32,FIND(".",C32)+1)+1)+1,LEN(C32))) -> 0 | Y32: =U32*256^3+V32*256^2+W32*256+X32 -> 3395182592 | Z32: =_xlfn.NUMBERVALUE(MID(D32,1,FIND(".",D32)-1)) -> 202 | AA32: =_xlfn.NUMBERVALUE(MID(D32,FIND(".",D32)+1,FIND(".",D32,FIND(".",D32)+1)-1-FIND(".",D32))) -> 94 | AB32: =_xlfn.NUMBERVALUE(MID(D32,FIND(".",D32,FIND(".",D32)+1)+1,FIND(".",D32,FIND(".",D32,FIND(".",D32)+1)+1)-1-FIND(".",D32,FIND(".",D32)+1))) -> 96 | AC32: =_xlfn.NUMBERVALUE(MID(D32,FIND(".",D32,FIND(".",D32,FIND(".",D32)+1)+1)+1,LEN(D32))) -> 7 | AD32: =Z32*256^3+AA32*256^2+AB32*256+AC32 -> 3395182599
A33: 19050 | B33: 36 | C33: 202.94.96.32 | D33: 202.94.96.63 | E33: NULL | F33: NULL | G33: 44377.47357 | H33: 327 | I33: NULL | J33: 1 | K33: NULL | L33: NULL | M33: 1 | N33: 0 | O33: NULL | P33: NULL | Q33: NULL | R33: NULL | S33: 1 | T33: NULL | U33: =_xlfn.NUMBERVALUE(MID(C33,1,FIND(".",C33)-1)) -> 202 | V33: =_xlfn.NUMBERVALUE(MID(C33,FIND(".",C33)+1,FIND(".",C33,FIND(".",C33)+1)-1-FIND(".",C33))) -> 94 | W33: =_xlfn.NUMBERVALUE(MID(C33,FIND(".",C33,FIND(".",C33)+1)+1,FIND(".",C33,FIND(".",C33,FIND(".",C33)+1)+1)-1-FIND(".",C33,FIND(".",C33)+1))) -> 96 | X33: =_xlfn.NUMBERVALUE(MID(C33,FIND(".",C33,FIND(".",C33,FIND(".",C33)+1)+1)+1,LEN(C33))) -> 32 | Y33: =U33*256^3+V33*256^2+W33*256+X33 -> 3395182624 | Z33: =_xlfn.NUMBERVALUE(MID(D33,1,FIND(".",D33)-1)) -> 202 | AA33: =_xlfn.NUMBERVALUE(MID(D33,FIND(".",D33)+1,FIND(".",D33,FIND(".",D33)+1)-1-FIND(".",D33))) -> 94 | AB33: =_xlfn.NUMBERVALUE(MID(D33,FIND(".",D33,FIND(".",D33)+1)+1,FIND(".",D33,FIND(".",D33,FIND(".",D33)+1)+1)-1-FIND(".",D33,FIND(".",D33)+1))) -> 96 | AC33: =_xlfn.NUMBERVALUE(MID(D33,FIND(".",D33,FIND(".",D33,FIND(".",D33)+1)+1)+1,LEN(D33))) -> 63 | AD33: =Z33*256^3+AA33*256^2+AB33*256+AC33 -> 3395182655
A34: 19116 | B34: 36 | C34: 203.193.11.96 | D34: 203.193.11.127 | E34: NULL | F34: NULL | G34: 44377.47357 | H34: 327 | I34: 705 | J34: 1 | K34: NULL | L34: NULL | M34: 1 | N34: 0 | O34: 705 | P34: Asia offices | Q34: NULL | R34: NULL | S34: 1 | T34: NULL | U34: =_xlfn.NUMBERVALUE(MID(C34,1,FIND(".",C34)-1)) -> 203 | V34: =_xlfn.NUMBERVALUE(MID(C34,FIND(".",C34)+1,FIND(".",C34,FIND(".",C34)+1)-1-FIND(".",C34))) -> 193 | W34: =_xlfn.NUMBERVALUE(MID(C34,FIND(".",C34,FIND(".",C34)+1)+1,FIND(".",C34,FIND(".",C34,FIND(".",C34)+1)+1)-1-FIND(".",C34,FIND(".",C34)+1))) -> 11 | X34: =_xlfn.NUMBERVALUE(MID(C34,FIND(".",C34,FIND(".",C34,FIND(".",C34)+1)+1)+1,LEN(C34))) -> 96 | Y34: =U34*256^3+V34*256^2+W34*256+X34 -> 3418426208 | Z34: =_xlfn.NUMBERVALUE(MID(D34,1,FIND(".",D34)-1)) -> 203 | AA34: =_xlfn.NUMBERVALUE(MID(D34,FIND(".",D34)+1,FIND(".",D34,FIND(".",D34)+1)-1-FIND(".",D34))) -> 193 | AB34: =_xlfn.NUMBERVALUE(MID(D34,FIND(".",D34,FIND(".",D34)+1)+1,FIND(".",D34,FIND(".",D34,FIND(".",D34)+1)+1)-1-FIND(".",D34,FIND(".",D34)+1))) -> 11 | AC34: =_xlfn.NUMBERVALUE(MID(D34,FIND(".",D34,FIND(".",D34,FIND(".",D34)+1)+1)+1,LEN(D34))) -> 127 | AD34: =Z34*256^3+AA34*256^2+AB34*256+AC34 -> 3418426239
A35: 19091 | B35: 36 | C35: 210.81.11.152 | D35: 210.81.11.159 | E35: NULL | F35: NULL | G35: 44377.47357 | H35: 327 | I35: 626 | J35: 1 | K35: NULL | L35: NULL | M35: 1 | N35: 0 | O35: 626 | P35: Tokyo | Q35: NULL | R35: NULL | S35: 1 | T35: NULL | U35: =_xlfn.NUMBERVALUE(MID(C35,1,FIND(".",C35)-1)) -> 210 | V35: =_xlfn.NUMBERVALUE(MID(C35,FIND(".",C35)+1,FIND(".",C35,FIND(".",C35)+1)-1-FIND(".",C35))) -> 81 | W35: =_xlfn.NUMBERVALUE(MID(C35,FIND(".",C35,FIND(".",C35)+1)+1,FIND(".",C35,FIND(".",C35,FIND(".",C35)+1)+1)-1-FIND(".",C35,FIND(".",C35)+1))) -> 11 | X35: =_xlfn.NUMBERVALUE(MID(C35,FIND(".",C35,FIND(".",C35,FIND(".",C35)+1)+1)+1,LEN(C35))) -> 152 | Y35: =U35*256^3+V35*256^2+W35*256+X35 -> 3528526744 | Z35: =_xlfn.NUMBERVALUE(MID(D35,1,FIND(".",D35)-1)) -> 210 | AA35: =_xlfn.NUMBERVALUE(MID(D35,FIND(".",D35)+1,FIND(".",D35,FIND(".",D35)+1)-1-FIND(".",D35))) -> 81 | AB35: =_xlfn.NUMBERVALUE(MID(D35,FIND(".",D35,FIND(".",D35)+1)+1,FIND(".",D35,FIND(".",D35,FIND(".",D35)+1)+1)-1-FIND(".",D35,FIND(".",D35)+1))) -> 11 | AC35: =_xlfn.NUMBERVALUE(MID(D35,FIND(".",D35,FIND(".",D35,FIND(".",D35)+1)+1)+1,LEN(D35))) -> 159 | AD35: =Z35*256^3+AA35*256^2+AB35*256+AC35 -> 3528526751
A36: 19085 | B36: 36 | C36: 212.157.201.128 | D36: 212.157.201.135 | E36: NULL | F36: NULL | G36: 44377.47357 | H36: 327 | I36: 482 | J36: 1 | K36: NULL | L36: NULL | M36: 1 | N36: 0 | O36: 482 | P36: Paris | Q36: NULL | R36: NULL | S36: 1 | T36: NULL | U36: =_xlfn.NUMBERVALUE(MID(C36,1,FIND(".",C36)-1)) -> 212 | V36: =_xlfn.NUMBERVALUE(MID(C36,FIND(".",C36)+1,FIND(".",C36,FIND(".",C36)+1)-1-FIND(".",C36))) -> 157 | W36: =_xlfn.NUMBERVALUE(MID(C36,FIND(".",C36,FIND(".",C36)+1)+1,FIND(".",C36,FIND(".",C36,FIND(".",C36)+1)+1)-1-FIND(".",C36,FIND(".",C36)+1))) -> 201 | X36: =_xlfn.NUMBERVALUE(MID(C36,FIND(".",C36,FIND(".",C36,FIND(".",C36)+1)+1)+1,LEN(C36))) -> 128 | Y36: =U36*256^3+V36*256^2+W36*256+X36 -> 3567110528 | Z36: =_xlfn.NUMBERVALUE(MID(D36,1,FIND(".",D36)-1)) -> 212 | AA36: =_xlfn.NUMBERVALUE(MID(D36,FIND(".",D36)+1,FIND(".",D36,FIND(".",D36)+1)-1-FIND(".",D36))) -> 157 | AB36: =_xlfn.NUMBERVALUE(MID(D36,FIND(".",D36,FIND(".",D36)+1)+1,FIND(".",D36,FIND(".",D36,FIND(".",D36)+1)+1)-1-FIND(".",D36,FIND(".",D36)+1))) -> 201 | AC36: =_xlfn.NUMBERVALUE(MID(D36,FIND(".",D36,FIND(".",D36,FIND(".",D36)+1)+1)+1,LEN(D36))) -> 135 | AD36: =Z36*256^3+AA36*256^2+AB36*256+AC36 -> 3567110535
A37: 19086 | B37: 36 | C37: 212.177.139.32 | D37: 212.177.139.39 | E37: NULL | F37: NULL | G37: 44377.47357 | H37: 327 | I37: 541 | J37: 1 | K37: NULL | L37: NULL | M37: 1 | N37: 0 | O37: 541 | P37: Rome | Q37: NULL | R37: NULL | S37: 1 | T37: NULL | U37: =_xlfn.NUMBERVALUE(MID(C37,1,FIND(".",C37)-1)) -> 212 | V37: =_xlfn.NUMBERVALUE(MID(C37,FIND(".",C37)+1,FIND(".",C37,FIND(".",C37)+1)-1-FIND(".",C37))) -> 177 | W37: =_xlfn.NUMBERVALUE(MID(C37,FIND(".",C37,FIND(".",C37)+1)+1,FIND(".",C37,FIND(".",C37,FIND(".",C37)+1)+1)-1-FIND(".",C37,FIND(".",C37)+1))) -> 139 | X37: =_xlfn.NUMBERVALUE(MID(C37,FIND(".",C37,FIND(".",C37,FIND(".",C37)+1)+1)+1,LEN(C37))) -> 32 | Y37: =U37*256^3+V37*256^2+W37*256+X37 -> 3568405280 | Z37: =_xlfn.NUMBERVALUE(MID(D37,1,FIND(".",D37)-1)) -> 212 | AA37: =_xlfn.NUMBERVALUE(MID(D37,FIND(".",D37)+1,FIND(".",D37,FIND(".",D37)+1)-1-FIND(".",D37))) -> 177 | AB37: =_xlfn.NUMBERVALUE(MID(D37,FIND(".",D37,FIND(".",D37)+1)+1,FIND(".",D37,FIND(".",D37,FIND(".",D37)+1)+1)-1-FIND(".",D37,FIND(".",D37)+1))) -> 139 | AC37: =_xlfn.NUMBERVALUE(MID(D37,FIND(".",D37,FIND(".",D37,FIND(".",D37)+1)+1)+1,LEN(D37))) -> 39 | AD37: =Z37*256^3+AA37*256^2+AB37*256+AC37 -> 3568405287
A38: 19076 | B38: 36 | C38: 212.177.97.0 | D38: 212.177.97.7 | E38: NULL | F38: NULL | G38: 44377.47357 | H38: 327 | I38: 403 | J38: 1 | K38: NULL | L38: NULL | M38: 1 | N38: 0 | O38: 403 | P38: Milan | Q38: NULL | R38: NULL | S38: 1 | T38: NULL | U38: =_xlfn.NUMBERVALUE(MID(C38,1,FIND(".",C38)-1)) -> 212 | V38: =_xlfn.NUMBERVALUE(MID(C38,FIND(".",C38)+1,FIND(".",C38,FIND(".",C38)+1)-1-FIND(".",C38))) -> 177 | W38: =_xlfn.NUMBERVALUE(MID(C38,FIND(".",C38,FIND(".",C38)+1)+1,FIND(".",C38,FIND(".",C38,FIND(".",C38)+1)+1)-1-FIND(".",C38,FIND(".",C38)+1))) -> 97 | X38: =_xlfn.NUMBERVALUE(MID(C38,FIND(".",C38,FIND(".",C38,FIND(".",C38)+1)+1)+1,LEN(C38))) -> 0 | Y38: =U38*256^3+V38*256^2+W38*256+X38 -> 3568394496 | Z38: =_xlfn.NUMBERVALUE(MID(D38,1,FIND(".",D38)-1)) -> 212 | AA38: =_xlfn.NUMBERVALUE(MID(D38,FIND(".",D38)+1,FIND(".",D38,FIND(".",D38)+1)-1-FIND(".",D38))) -> 177 | AB38: =_xlfn.NUMBERVALUE(MID(D38,FIND(".",D38,FIND(".",D38)+1)+1,FIND(".",D38,FIND(".",D38,FIND(".",D38)+1)+1)-1-FIND(".",D38,FIND(".",D38)+1))) -> 97 | AC38: =_xlfn.NUMBERVALUE(MID(D38,FIND(".",D38,FIND(".",D38,FIND(".",D38)+1)+1)+1,LEN(D38))) -> 7 | AD38: =Z38*256^3+AA38*256^2+AB38*256+AC38 -> 3568394503
A39: 19070 | B39: 36 | C39: 212.187.225.240 | D39: 212.187.225.247 | E39: NULL | F39: NULL | G39: 44377.47357 | H39: 327 | I39: 351 | J39: 1 | K39: NULL | L39: NULL | M39: 1 | N39: 0 | O39: 351 | P39: London | Q39: NULL | R39: NULL | S39: 1 | T39: NULL | U39: =_xlfn.NUMBERVALUE(MID(C39,1,FIND(".",C39)-1)) -> 212 | V39: =_xlfn.NUMBERVALUE(MID(C39,FIND(".",C39)+1,FIND(".",C39,FIND(".",C39)+1)-1-FIND(".",C39))) -> 187 | W39: =_xlfn.NUMBERVALUE(MID(C39,FIND(".",C39,FIND(".",C39)+1)+1,FIND(".",C39,FIND(".",C39,FIND(".",C39)+1)+1)-1-FIND(".",C39,FIND(".",C39)+1))) -> 225 | X39: =_xlfn.NUMBERVALUE(MID(C39,FIND(".",C39,FIND(".",C39,FIND(".",C39)+1)+1)+1,LEN(C39))) -> 240 | Y39: =U39*256^3+V39*256^2+W39*256+X39 -> 3569082864 | Z39: =_xlfn.NUMBERVALUE(MID(D39,1,FIND(".",D39)-1)) -> 212 | AA39: =_xlfn.NUMBERVALUE(MID(D39,FIND(".",D39)+1,FIND(".",D39,FIND(".",D39)+1)-1-FIND(".",D39))) -> 187 | AB39: =_xlfn.NUMBERVALUE(MID(D39,FIND(".",D39,FIND(".",D39)+1)+1,FIND(".",D39,FIND(".",D39,FIND(".",D39)+1)+1)-1-FIND(".",D39,FIND(".",D39)+1))) -> 225 | AC39: =_xlfn.NUMBERVALUE(MID(D39,FIND(".",D39,FIND(".",D39,FIND(".",D39)+1)+1)+1,LEN(D39))) -> 247 | AD39: =Z39*256^3+AA39*256^2+AB39*256+AC39 -> 3569082871
A40: 19056 | B40: 36 | C40: 212.190.32.40 | D40: 212.190.32.47 | E40: NULL | F40: NULL | G40: 44377.47357 | H40: 327 | I40: 100 | J40: 1 | K40: NULL | L40: NULL | M40: 1 | N40: 0 | O40: 100 | P40: Brussels | Q40: NULL | R40: NULL | S40: 1 | T40: NULL | U40: =_xlfn.NUMBERVALUE(MID(C40,1,FIND(".",C40)-1)) -> 212 | V40: =_xlfn.NUMBERVALUE(MID(C40,FIND(".",C40)+1,FIND(".",C40,FIND(".",C40)+1)-1-FIND(".",C40))) -> 190 | W40: =_xlfn.NUMBERVALUE(MID(C40,FIND(".",C40,FIND(".",C40)+1)+1,FIND(".",C40,FIND(".",C40,FIND(".",C40)+1)+1)-1-FIND(".",C40,FIND(".",C40)+1))) -> 32 | X40: =_xlfn.NUMBERVALUE(MID(C40,FIND(".",C40,FIND(".",C40,FIND(".",C40)+1)+1)+1,LEN(C40))) -> 40 | Y40: =U40*256^3+V40*256^2+W40*256+X40 -> 3569229864 | Z40: =_xlfn.NUMBERVALUE(MID(D40,1,FIND(".",D40)-1)) -> 212 | AA40: =_xlfn.NUMBERVALUE(MID(D40,FIND(".",D40)+1,FIND(".",D40,FIND(".",D40)+1)-1-FIND(".",D40))) -> 190 | AB40: =_xlfn.NUMBERVALUE(MID(D40,FIND(".",D40,FIND(".",D40)+1)+1,FIND(".",D40,FIND(".",D40,FIND(".",D40)+1)+1)-1-FIND(".",D40,FIND(".",D40)+1))) -> 32 | AC40: =_xlfn.NUMBERVALUE(MID(D40,FIND(".",D40,FIND(".",D40,FIND(".",D40)+1)+1)+1,LEN(D40))) -> 47 | AD40: =Z40*256^3+AA40*256^2+AB40*256+AC40 -> 3569229871
A41: 19104 | B41: 36 | C41: 212.71.241.64 | D41: 212.71.241.71 | E41: NULL | F41: NULL | G41: 44377.47357 | H41: 327 | I41: 661 | J41: 1 | K41: NULL | L41: NULL | M41: 1 | N41: 0 | O41: 661 | P41: Washington DC | Q41: NULL | R41: NULL | S41: 1 | T41: NULL | U41: =_xlfn.NUMBERVALUE(MID(C41,1,FIND(".",C41)-1)) -> 212 | V41: =_xlfn.NUMBERVALUE(MID(C41,FIND(".",C41)+1,FIND(".",C41,FIND(".",C41)+1)-1-FIND(".",C41))) -> 71 | W41: =_xlfn.NUMBERVALUE(MID(C41,FIND(".",C41,FIND(".",C41)+1)+1,FIND(".",C41,FIND(".",C41,FIND(".",C41)+1)+1)-1-FIND(".",C41,FIND(".",C41)+1))) -> 241 | X41: =_xlfn.NUMBERVALUE(MID(C41,FIND(".",C41,FIND(".",C41,FIND(".",C41)+1)+1)+1,LEN(C41))) -> 64 | Y41: =U41*256^3+V41*256^2+W41*256+X41 -> 3561484608 | Z41: =_xlfn.NUMBERVALUE(MID(D41,1,FIND(".",D41)-1)) -> 212 | AA41: =_xlfn.NUMBERVALUE(MID(D41,FIND(".",D41)+1,FIND(".",D41,FIND(".",D41)+1)-1-FIND(".",D41))) -> 71 | AB41: =_xlfn.NUMBERVALUE(MID(D41,FIND(".",D41,FIND(".",D41)+1)+1,FIND(".",D41,FIND(".",D41,FIND(".",D41)+1)+1)-1-FIND(".",D41,FIND(".",D41)+1))) -> 241 | AC41: =_xlfn.NUMBERVALUE(MID(D41,FIND(".",D41,FIND(".",D41,FIND(".",D41)+1)+1)+1,LEN(D41))) -> 71 | AD41: =Z41*256^3+AA41*256^2+AB41*256+AC41 -> 3561484615
A42: 19095 | B42: 36 | C42: 213.19.200.108 | D42: 213.19.200.111 | E42: NULL | F42: NULL | G42: 44377.47357 | H42: 327 | I42: 661 | J42: 1 | K42: NULL | L42: NULL | M42: 1 | N42: 0 | O42: 661 | P42: Washington DC | Q42: NULL | R42: NULL | S42: 1 | T42: NULL | U42: =_xlfn.NUMBERVALUE(MID(C42,1,FIND(".",C42)-1)) -> 213 | V42: =_xlfn.NUMBERVALUE(MID(C42,FIND(".",C42)+1,FIND(".",C42,FIND(".",C42)+1)-1-FIND(".",C42))) -> 19 | W42: =_xlfn.NUMBERVALUE(MID(C42,FIND(".",C42,FIND(".",C42)+1)+1,FIND(".",C42,FIND(".",C42,FIND(".",C42)+1)+1)-1-FIND(".",C42,FIND(".",C42)+1))) -> 200 | X42: =_xlfn.NUMBERVALUE(MID(C42,FIND(".",C42,FIND(".",C42,FIND(".",C42)+1)+1)+1,LEN(C42))) -> 108 | Y42: =U42*256^3+V42*256^2+W42*256+X42 -> 3574843500 | Z42: =_xlfn.NUMBERVALUE(MID(D42,1,FIND(".",D42)-1)) -> 213 | AA42: =_xlfn.NUMBERVALUE(MID(D42,FIND(".",D42)+1,FIND(".",D42,FIND(".",D42)+1)-1-FIND(".",D42))) -> 19 | AB42: =_xlfn.NUMBERVALUE(MID(D42,FIND(".",D42,FIND(".",D42)+1)+1,FIND(".",D42,FIND(".",D42,FIND(".",D42)+1)+1)-1-FIND(".",D42,FIND(".",D42)+1))) -> 200 | AC42: =_xlfn.NUMBERVALUE(MID(D42,FIND(".",D42,FIND(".",D42,FIND(".",D42)+1)+1)+1,LEN(D42))) -> 111 | AD42: =Z42*256^3+AA42*256^2+AB42*256+AC42 -> 3574843503
A43: 19084 | B43: 36 | C43: 213.19.200.124 | D43: 213.19.200.127 | E43: NULL | F43: NULL | G43: 44377.47357 | H43: 327 | I43: 440 | J43: 1 | K43: NULL | L43: NULL | M43: 1 | N43: 0 | O43: 440 | P43: New York | Q43: NULL | R43: NULL | S43: 1 | T43: NULL | U43: =_xlfn.NUMBERVALUE(MID(C43,1,FIND(".",C43)-1)) -> 213 | V43: =_xlfn.NUMBERVALUE(MID(C43,FIND(".",C43)+1,FIND(".",C43,FIND(".",C43)+1)-1-FIND(".",C43))) -> 19 | W43: =_xlfn.NUMBERVALUE(MID(C43,FIND(".",C43,FIND(".",C43)+1)+1,FIND(".",C43,FIND(".",C43,FIND(".",C43)+1)+1)-1-FIND(".",C43,FIND(".",C43)+1))) -> 200 | X43: =_xlfn.NUMBERVALUE(MID(C43,FIND(".",C43,FIND(".",C43,FIND(".",C43)+1)+1)+1,LEN(C43))) -> 124 | Y43: =U43*256^3+V43*256^2+W43*256+X43 -> 3574843516 | Z43: =_xlfn.NUMBERVALUE(MID(D43,1,FIND(".",D43)-1)) -> 213 | AA43: =_xlfn.NUMBERVALUE(MID(D43,FIND(".",D43)+1,FIND(".",D43,FIND(".",D43)+1)-1-FIND(".",D43))) -> 19 | AB43: =_xlfn.NUMBERVALUE(MID(D43,FIND(".",D43,FIND(".",D43)+1)+1,FIND(".",D43,FIND(".",D43,FIND(".",D43)+1)+1)-1-FIND(".",D43,FIND(".",D43)+1))) -> 200 | AC43: =_xlfn.NUMBERVALUE(MID(D43,FIND(".",D43,FIND(".",D43,FIND(".",D43)+1)+1)+1,LEN(D43))) -> 127 | AD43: =Z43*256^3+AA43*256^2+AB43*256+AC43 -> 3574843519
A44: 19092 | B44: 36 | C44: 213.208.4.40 | D44: 213.208.4.47 | E44: NULL | F44: NULL | G44: 44377.47357 | H44: 327 | I44: 650 | J44: 1 | K44: NULL | L44: NULL | M44: 1 | N44: 0 | O44: 650 | P44: Vienna | Q44: NULL | R44: NULL | S44: 1 | T44: NULL | U44: =_xlfn.NUMBERVALUE(MID(C44,1,FIND(".",C44)-1)) -> 213 | V44: =_xlfn.NUMBERVALUE(MID(C44,FIND(".",C44)+1,FIND(".",C44,FIND(".",C44)+1)-1-FIND(".",C44))) -> 208 | W44: =_xlfn.NUMBERVALUE(MID(C44,FIND(".",C44,FIND(".",C44)+1)+1,FIND(".",C44,FIND(".",C44,FIND(".",C44)+1)+1)-1-FIND(".",C44,FIND(".",C44)+1))) -> 4 | X44: =_xlfn.NUMBERVALUE(MID(C44,FIND(".",C44,FIND(".",C44,FIND(".",C44)+1)+1)+1,LEN(C44))) -> 40 | Y44: =U44*256^3+V44*256^2+W44*256+X44 -> 3587179560 | Z44: =_xlfn.NUMBERVALUE(MID(D44,1,FIND(".",D44)-1)) -> 213 | AA44: =_xlfn.NUMBERVALUE(MID(D44,FIND(".",D44)+1,FIND(".",D44,FIND(".",D44)+1)-1-FIND(".",D44))) -> 208 | AB44: =_xlfn.NUMBERVALUE(MID(D44,FIND(".",D44,FIND(".",D44)+1)+1,FIND(".",D44,FIND(".",D44,FIND(".",D44)+1)+1)-1-FIND(".",D44,FIND(".",D44)+1))) -> 4 | AC44: =_xlfn.NUMBERVALUE(MID(D44,FIND(".",D44,FIND(".",D44,FIND(".",D44)+1)+1)+1,LEN(D44))) -> 47 | AD44: =Z44*256^3+AA44*256^2+AB44*256+AC44 -> 3587179567
A45: 19077 | B45: 36 | C45: 213.221.38.224 | D45: 213.221.38.255 | E45: NULL | F45: NULL | G45: 44377.47357 | H45: 327 | I45: 419 | J45: 1 | K45: NULL | L45: NULL | M45: 1 | N45: 0 | O45: 419 | P45: Moscow | Q45: NULL | R45: NULL | S45: 1 | T45: NULL | U45: =_xlfn.NUMBERVALUE(MID(C45,1,FIND(".",C45)-1)) -> 213 | V45: =_xlfn.NUMBERVALUE(MID(C45,FIND(".",C45)+1,FIND(".",C45,FIND(".",C45)+1)-1-FIND(".",C45))) -> 221 | W45: =_xlfn.NUMBERVALUE(MID(C45,FIND(".",C45,FIND(".",C45)+1)+1,FIND(".",C45,FIND(".",C45,FIND(".",C45)+1)+1)-1-FIND(".",C45,FIND(".",C45)+1))) -> 38 | X45: =_xlfn.NUMBERVALUE(MID(C45,FIND(".",C45,FIND(".",C45,FIND(".",C45)+1)+1)+1,LEN(C45))) -> 224 | Y45: =U45*256^3+V45*256^2+W45*256+X45 -> 3588040416 | Z45: =_xlfn.NUMBERVALUE(MID(D45,1,FIND(".",D45)-1)) -> 213 | AA45: =_xlfn.NUMBERVALUE(MID(D45,FIND(".",D45)+1,FIND(".",D45,FIND(".",D45)+1)-1-FIND(".",D45))) -> 221 | AB45: =_xlfn.NUMBERVALUE(MID(D45,FIND(".",D45,FIND(".",D45)+1)+1,FIND(".",D45,FIND(".",D45,FIND(".",D45)+1)+1)-1-FIND(".",D45,FIND(".",D45)+1))) -> 38 | AC45: =_xlfn.NUMBERVALUE(MID(D45,FIND(".",D45,FIND(".",D45,FIND(".",D45)+1)+1)+1,LEN(D45))) -> 255 | AD45: =Z45*256^3+AA45*256^2+AB45*256+AC45 -> 3588040447
A46: 19102 | B46: 36 | C46: 213.244.144.128 | D46: 213.244.144.191 | E46: NULL | F46: NULL | G46: 44377.47357 | H46: 327 | I46: 661 | J46: 1 | K46: NULL | L46: NULL | M46: 1 | N46: 0 | O46: 661 | P46: Washington DC | Q46: NULL | R46: NULL | S46: 1 | T46: NULL | U46: =_xlfn.NUMBERVALUE(MID(C46,1,FIND(".",C46)-1)) -> 213 | V46: =_xlfn.NUMBERVALUE(MID(C46,FIND(".",C46)+1,FIND(".",C46,FIND(".",C46)+1)-1-FIND(".",C46))) -> 244 | W46: =_xlfn.NUMBERVALUE(MID(C46,FIND(".",C46,FIND(".",C46)+1)+1,FIND(".",C46,FIND(".",C46,FIND(".",C46)+1)+1)-1-FIND(".",C46,FIND(".",C46)+1))) -> 144 | X46: =_xlfn.NUMBERVALUE(MID(C46,FIND(".",C46,FIND(".",C46,FIND(".",C46)+1)+1)+1,LEN(C46))) -> 128 | Y46: =U46*256^3+V46*256^2+W46*256+X46 -> 3589574784 | Z46: =_xlfn.NUMBERVALUE(MID(D46,1,FIND(".",D46)-1)) -> 213 | AA46: =_xlfn.NUMBERVALUE(MID(D46,FIND(".",D46)+1,FIND(".",D46,FIND(".",D46)+1)-1-FIND(".",D46))) -> 244 | AB46: =_xlfn.NUMBERVALUE(MID(D46,FIND(".",D46,FIND(".",D46)+1)+1,FIND(".",D46,FIND(".",D46,FIND(".",D46)+1)+1)-1-FIND(".",D46,FIND(".",D46)+1))) -> 144 | AC46: =_xlfn.NUMBERVALUE(MID(D46,FIND(".",D46,FIND(".",D46,FIND(".",D46)+1)+1)+1,LEN(D46))) -> 191 | AD46: =Z46*256^3+AA46*256^2+AB46*256+AC46 -> 3589574847
A47: 19114 | B47: 36 | C47: 213.244.144.64 | D47: 213.244.144.127 | E47: NULL | F47: NULL | G47: 44377.47357 | H47: 327 | I47: 698 | J47: 1 | K47: NULL | L47: NULL | M47: 1 | N47: 0 | O47: 698 | P47: Century City | Q47: NULL | R47: NULL | S47: 1 | T47: NULL | U47: =_xlfn.NUMBERVALUE(MID(C47,1,FIND(".",C47)-1)) -> 213 | V47: =_xlfn.NUMBERVALUE(MID(C47,FIND(".",C47)+1,FIND(".",C47,FIND(".",C47)+1)-1-FIND(".",C47))) -> 244 | W47: =_xlfn.NUMBERVALUE(MID(C47,FIND(".",C47,FIND(".",C47)+1)+1,FIND(".",C47,FIND(".",C47,FIND(".",C47)+1)+1)-1-FIND(".",C47,FIND(".",C47)+1))) -> 144 | X47: =_xlfn.NUMBERVALUE(MID(C47,FIND(".",C47,FIND(".",C47,FIND(".",C47)+1)+1)+1,LEN(C47))) -> 64 | Y47: =U47*256^3+V47*256^2+W47*256+X47 -> 3589574720 | Z47: =_xlfn.NUMBERVALUE(MID(D47,1,FIND(".",D47)-1)) -> 213 | AA47: =_xlfn.NUMBERVALUE(MID(D47,FIND(".",D47)+1,FIND(".",D47,FIND(".",D47)+1)-1-FIND(".",D47))) -> 244 | AB47: =_xlfn.NUMBERVALUE(MID(D47,FIND(".",D47,FIND(".",D47)+1)+1,FIND(".",D47,FIND(".",D47,FIND(".",D47)+1)+1)-1-FIND(".",D47,FIND(".",D47)+1))) -> 144 | AC47: =_xlfn.NUMBERVALUE(MID(D47,FIND(".",D47,FIND(".",D47,FIND(".",D47)+1)+1)+1,LEN(D47))) -> 127 | AD47: =Z47*256^3+AA47*256^2+AB47*256+AC47 -> 3589574783
A48: 19113 | B48: 36 | C48: 213.52.177.120 | D48: 213.52.177.127 | E48: NULL | F48: NULL | G48: 44377.47357 | H48: 327 | I48: 698 | J48: 1 | K48: NULL | L48: NULL | M48: 1 | N48: 0 | O48: 698 | P48: Century City | Q48: NULL | R48: NULL | S48: 1 | T48: NULL | U48: =_xlfn.NUMBERVALUE(MID(C48,1,FIND(".",C48)-1)) -> 213 | V48: =_xlfn.NUMBERVALUE(MID(C48,FIND(".",C48)+1,FIND(".",C48,FIND(".",C48)+1)-1-FIND(".",C48))) -> 52 | W48: =_xlfn.NUMBERVALUE(MID(C48,FIND(".",C48,FIND(".",C48)+1)+1,FIND(".",C48,FIND(".",C48,FIND(".",C48)+1)+1)-1-FIND(".",C48,FIND(".",C48)+1))) -> 177 | X48: =_xlfn.NUMBERVALUE(MID(C48,FIND(".",C48,FIND(".",C48,FIND(".",C48)+1)+1)+1,LEN(C48))) -> 120 | Y48: =U48*256^3+V48*256^2+W48*256+X48 -> 3577000312 | Z48: =_xlfn.NUMBERVALUE(MID(D48,1,FIND(".",D48)-1)) -> 213 | AA48: =_xlfn.NUMBERVALUE(MID(D48,FIND(".",D48)+1,FIND(".",D48,FIND(".",D48)+1)-1-FIND(".",D48))) -> 52 | AB48: =_xlfn.NUMBERVALUE(MID(D48,FIND(".",D48,FIND(".",D48)+1)+1,FIND(".",D48,FIND(".",D48,FIND(".",D48)+1)+1)-1-FIND(".",D48,FIND(".",D48)+1))) -> 177 | AC48: =_xlfn.NUMBERVALUE(MID(D48,FIND(".",D48,FIND(".",D48,FIND(".",D48)+1)+1)+1,LEN(D48))) -> 127 | AD48: =Z48*256^3+AA48*256^2+AB48*256+AC48 -> 3577000319
A49: 19052 | B49: 36 | C49: 213.53.2.40 | D49: 213.53.2.47 | E49: NULL | F49: NULL | G49: 44377.47357 | H49: 327 | I49: 32 | J49: 1 | K49: NULL | L49: NULL | M49: 1 | N49: 0 | O49: 32 | P49: Amsterdam | Q49: NULL | R49: NULL | S49: 1 | T49: NULL | U49: =_xlfn.NUMBERVALUE(MID(C49,1,FIND(".",C49)-1)) -> 213 | V49: =_xlfn.NUMBERVALUE(MID(C49,FIND(".",C49)+1,FIND(".",C49,FIND(".",C49)+1)-1-FIND(".",C49))) -> 53 | W49: =_xlfn.NUMBERVALUE(MID(C49,FIND(".",C49,FIND(".",C49)+1)+1,FIND(".",C49,FIND(".",C49,FIND(".",C49)+1)+1)-1-FIND(".",C49,FIND(".",C49)+1))) -> 2 | X49: =_xlfn.NUMBERVALUE(MID(C49,FIND(".",C49,FIND(".",C49,FIND(".",C49)+1)+1)+1,LEN(C49))) -> 40 | Y49: =U49*256^3+V49*256^2+W49*256+X49 -> 3577020968 | Z49: =_xlfn.NUMBERVALUE(MID(D49,1,FIND(".",D49)-1)) -> 213 | AA49: =_xlfn.NUMBERVALUE(MID(D49,FIND(".",D49)+1,FIND(".",D49,FIND(".",D49)+1)-1-FIND(".",D49))) -> 53 | AB49: =_xlfn.NUMBERVALUE(MID(D49,FIND(".",D49,FIND(".",D49)+1)+1,FIND(".",D49,FIND(".",D49,FIND(".",D49)+1)+1)-1-FIND(".",D49,FIND(".",D49)+1))) -> 2 | AC49: =_xlfn.NUMBERVALUE(MID(D49,FIND(".",D49,FIND(".",D49,FIND(".",D49)+1)+1)+1,LEN(D49))) -> 47 | AD49: =Z49*256^3+AA49*256^2+AB49*256+AC49 -> 3577020975
A50: 19078 | B50: 36 | C50: 213.68.243.160 | D50: 213.68.243.191 | E50: NULL | F50: NULL | G50: 44377.47357 | H50: 327 | I50: 422 | J50: 1 | K50: NULL | L50: NULL | M50: 1 | N50: 0 | O50: 422 | P50: munich | Q50: NULL | R50: NULL | S50: 1 | T50: NULL | U50: =_xlfn.NUMBERVALUE(MID(C50,1,FIND(".",C50)-1)) -> 213 | V50: =_xlfn.NUMBERVALUE(MID(C50,FIND(".",C50)+1,FIND(".",C50,FIND(".",C50)+1)-1-FIND(".",C50))) -> 68 | W50: =_xlfn.NUMBERVALUE(MID(C50,FIND(".",C50,FIND(".",C50)+1)+1,FIND(".",C50,FIND(".",C50,FIND(".",C50)+1)+1)-1-FIND(".",C50,FIND(".",C50)+1))) -> 243 | X50: =_xlfn.NUMBERVALUE(MID(C50,FIND(".",C50,FIND(".",C50,FIND(".",C50)+1)+1)+1,LEN(C50))) -> 160 | Y50: =U50*256^3+V50*256^2+W50*256+X50 -> 3578065824 | Z50: =_xlfn.NUMBERVALUE(MID(D50,1,FIND(".",D50)-1)) -> 213 | AA50: =_xlfn.NUMBERVALUE(MID(D50,FIND(".",D50)+1,FIND(".",D50,FIND(".",D50)+1)-1-FIND(".",D50))) -> 68 | AB50: =_xlfn.NUMBERVALUE(MID(D50,FIND(".",D50,FIND(".",D50)+1)+1,FIND(".",D50,FIND(".",D50,FIND(".",D50)+1)+1)-1-FIND(".",D50,FIND(".",D50)+1))) -> 243 | AC50: =_xlfn.NUMBERVALUE(MID(D50,FIND(".",D50,FIND(".",D50,FIND(".",D50)+1)+1)+1,LEN(D50))) -> 191 | AD50: =Z50*256^3+AA50*256^2+AB50*256+AC50 -> 3578065855
A51: 19055 | B51: 36 | C51: 213.68.249.104 | D51: 213.68.249.111 | E51: NULL | F51: NULL | G51: 44377.47357 | H51: 327 | I51: 72 | J51: 1 | K51: NULL | L51: NULL | M51: 1 | N51: 0 | O51: 72 | P51: Berlin | Q51: NULL | R51: NULL | S51: 1 | T51: NULL | U51: =_xlfn.NUMBERVALUE(MID(C51,1,FIND(".",C51)-1)) -> 213 | V51: =_xlfn.NUMBERVALUE(MID(C51,FIND(".",C51)+1,FIND(".",C51,FIND(".",C51)+1)-1-FIND(".",C51))) -> 68 | W51: =_xlfn.NUMBERVALUE(MID(C51,FIND(".",C51,FIND(".",C51)+1)+1,FIND(".",C51,FIND(".",C51,FIND(".",C51)+1)+1)-1-FIND(".",C51,FIND(".",C51)+1))) -> 249 | X51: =_xlfn.NUMBERVALUE(MID(C51,FIND(".",C51,FIND(".",C51,FIND(".",C51)+1)+1)+1,LEN(C51))) -> 104 | Y51: =U51*256^3+V51*256^2+W51*256+X51 -> 3578067304 | Z51: =_xlfn.NUMBERVALUE(MID(D51,1,FIND(".",D51)-1)) -> 213 | AA51: =_xlfn.NUMBERVALUE(MID(D51,FIND(".",D51)+1,FIND(".",D51,FIND(".",D51)+1)-1-FIND(".",D51))) -> 68 | AB51: =_xlfn.NUMBERVALUE(MID(D51,FIND(".",D51,FIND(".",D51)+1)+1,FIND(".",D51,FIND(".",D51,FIND(".",D51)+1)+1)-1-FIND(".",D51,FIND(".",D51)+1))) -> 249 | AC51: =_xlfn.NUMBERVALUE(MID(D51,FIND(".",D51,FIND(".",D51,FIND(".",D51)+1)+1)+1,LEN(D51))) -> 111 | AD51: =Z51*256^3+AA51*256^2+AB51*256+AC51 -> 3578067311
A52: 19115 | B52: 36 | C52: 213.68.249.80 | D52: 213.68.249.87 | E52: NULL | F52: NULL | G52: 44377.47357 | H52: 327 | I52: 703 | J52: 1 | K52: NULL | L52: NULL | M52: 1 | N52: 0 | O52: 703 | P52: Dusseldorf | Q52: NULL | R52: NULL | S52: 1 | T52: NULL | U52: =_xlfn.NUMBERVALUE(MID(C52,1,FIND(".",C52)-1)) -> 213 | V52: =_xlfn.NUMBERVALUE(MID(C52,FIND(".",C52)+1,FIND(".",C52,FIND(".",C52)+1)-1-FIND(".",C52))) -> 68 | W52: =_xlfn.NUMBERVALUE(MID(C52,FIND(".",C52,FIND(".",C52)+1)+1,FIND(".",C52,FIND(".",C52,FIND(".",C52)+1)+1)-1-FIND(".",C52,FIND(".",C52)+1))) -> 249 | X52: =_xlfn.NUMBERVALUE(MID(C52,FIND(".",C52,FIND(".",C52,FIND(".",C52)+1)+1)+1,LEN(C52))) -> 80 | Y52: =U52*256^3+V52*256^2+W52*256+X52 -> 3578067280 | Z52: =_xlfn.NUMBERVALUE(MID(D52,1,FIND(".",D52)-1)) -> 213 | AA52: =_xlfn.NUMBERVALUE(MID(D52,FIND(".",D52)+1,FIND(".",D52,FIND(".",D52)+1)-1-FIND(".",D52))) -> 68 | AB52: =_xlfn.NUMBERVALUE(MID(D52,FIND(".",D52,FIND(".",D52)+1)+1,FIND(".",D52,FIND(".",D52,FIND(".",D52)+1)+1)-1-FIND(".",D52,FIND(".",D52)+1))) -> 249 | AC52: =_xlfn.NUMBERVALUE(MID(D52,FIND(".",D52,FIND(".",D52,FIND(".",D52)+1)+1)+1,LEN(D52))) -> 87 | AD52: =Z52*256^3+AA52*256^2+AB52*256+AC52 -> 3578067287
A53: 19060 | B53: 36 | C53: 213.68.249.88 | D53: 213.68.249.95 | E53: NULL | F53: NULL | G53: 44377.47357 | H53: 327 | I53: 206 | J53: 1 | K53: NULL | L53: NULL | M53: 1 | N53: 0 | O53: 206 | P53: Frankfurt | Q53: NULL | R53: NULL | S53: 1 | T53: NULL | U53: =_xlfn.NUMBERVALUE(MID(C53,1,FIND(".",C53)-1)) -> 213 | V53: =_xlfn.NUMBERVALUE(MID(C53,FIND(".",C53)+1,FIND(".",C53,FIND(".",C53)+1)-1-FIND(".",C53))) -> 68 | W53: =_xlfn.NUMBERVALUE(MID(C53,FIND(".",C53,FIND(".",C53)+1)+1,FIND(".",C53,FIND(".",C53,FIND(".",C53)+1)+1)-1-FIND(".",C53,FIND(".",C53)+1))) -> 249 | X53: =_xlfn.NUMBERVALUE(MID(C53,FIND(".",C53,FIND(".",C53,FIND(".",C53)+1)+1)+1,LEN(C53))) -> 88 | Y53: =U53*256^3+V53*256^2+W53*256+X53 -> 3578067288 | Z53: =_xlfn.NUMBERVALUE(MID(D53,1,FIND(".",D53)-1)) -> 213 | AA53: =_xlfn.NUMBERVALUE(MID(D53,FIND(".",D53)+1,FIND(".",D53,FIND(".",D53)+1)-1-FIND(".",D53))) -> 68 | AB53: =_xlfn.NUMBERVALUE(MID(D53,FIND(".",D53,FIND(".",D53)+1)+1,FIND(".",D53,FIND(".",D53,FIND(".",D53)+1)+1)-1-FIND(".",D53,FIND(".",D53)+1))) -> 249 | AC53: =_xlfn.NUMBERVALUE(MID(D53,FIND(".",D53,FIND(".",D53,FIND(".",D53)+1)+1)+1,LEN(D53))) -> 95 | AD53: =Z53*256^3+AA53*256^2+AB53*256+AC53 -> 3578067295
A54: 19061 | B54: 36 | C54: 213.68.249.96 | D54: 213.68.249.103 | E54: NULL | F54: NULL | G54: 44377.47357 | H54: 327 | I54: 246 | J54: 1 | K54: NULL | L54: NULL | M54: 1 | N54: 0 | O54: 246 | P54: Hamburg | Q54: NULL | R54: NULL | S54: 1 | T54: NULL | U54: =_xlfn.NUMBERVALUE(MID(C54,1,FIND(".",C54)-1)) -> 213 | V54: =_xlfn.NUMBERVALUE(MID(C54,FIND(".",C54)+1,FIND(".",C54,FIND(".",C54)+1)-1-FIND(".",C54))) -> 68 | W54: =_xlfn.NUMBERVALUE(MID(C54,FIND(".",C54,FIND(".",C54)+1)+1,FIND(".",C54,FIND(".",C54,FIND(".",C54)+1)+1)-1-FIND(".",C54,FIND(".",C54)+1))) -> 249 | X54: =_xlfn.NUMBERVALUE(MID(C54,FIND(".",C54,FIND(".",C54,FIND(".",C54)+1)+1)+1,LEN(C54))) -> 96 | Y54: =U54*256^3+V54*256^2+W54*256+X54 -> 3578067296 | Z54: =_xlfn.NUMBERVALUE(MID(D54,1,FIND(".",D54)-1)) -> 213 | AA54: =_xlfn.NUMBERVALUE(MID(D54,FIND(".",D54)+1,FIND(".",D54,FIND(".",D54)+1)-1-FIND(".",D54))) -> 68 | AB54: =_xlfn.NUMBERVALUE(MID(D54,FIND(".",D54,FIND(".",D54)+1)+1,FIND(".",D54,FIND(".",D54,FIND(".",D54)+1)+1)-1-FIND(".",D54,FIND(".",D54)+1))) -> 249 | AC54: =_xlfn.NUMBERVALUE(MID(D54,FIND(".",D54,FIND(".",D54,FIND(".",D54)+1)+1)+1,LEN(D54))) -> 103 | AD54: =Z54*256^3+AA54*256^2+AB54*256+AC54 -> 3578067303
A55: 19099 | B55: 36 | C55: 213.71.131.56 | D55: 213.71.131.63 | E55: NULL | F55: NULL | G55: 44377.47357 | H55: 327 | I55: 661 | J55: 1 | K55: NULL | L55: NULL | M55: 1 | N55: 0 | O55: 661 | P55: Washington DC | Q55: NULL | R55: NULL | S55: 1 | T55: NULL | U55: =_xlfn.NUMBERVALUE(MID(C55,1,FIND(".",C55)-1)) -> 213 | V55: =_xlfn.NUMBERVALUE(MID(C55,FIND(".",C55)+1,FIND(".",C55,FIND(".",C55)+1)-1-FIND(".",C55))) -> 71 | W55: =_xlfn.NUMBERVALUE(MID(C55,FIND(".",C55,FIND(".",C55)+1)+1,FIND(".",C55,FIND(".",C55,FIND(".",C55)+1)+1)-1-FIND(".",C55,FIND(".",C55)+1))) -> 131 | X55: =_xlfn.NUMBERVALUE(MID(C55,FIND(".",C55,FIND(".",C55,FIND(".",C55)+1)+1)+1,LEN(C55))) -> 56 | Y55: =U55*256^3+V55*256^2+W55*256+X55 -> 3578233656 | Z55: =_xlfn.NUMBERVALUE(MID(D55,1,FIND(".",D55)-1)) -> 213 | AA55: =_xlfn.NUMBERVALUE(MID(D55,FIND(".",D55)+1,FIND(".",D55,FIND(".",D55)+1)-1-FIND(".",D55))) -> 71 | AB55: =_xlfn.NUMBERVALUE(MID(D55,FIND(".",D55,FIND(".",D55)+1)+1,FIND(".",D55,FIND(".",D55,FIND(".",D55)+1)+1)-1-FIND(".",D55,FIND(".",D55)+1))) -> 131 | AC55: =_xlfn.NUMBERVALUE(MID(D55,FIND(".",D55,FIND(".",D55,FIND(".",D55)+1)+1)+1,LEN(D55))) -> 63 | AD55: =Z55*256^3+AA55*256^2+AB55*256+AC55 -> 3578233663
A56: 19068 | B56: 36 | C56: 217.118.119.96 | D56: 217.118.119.127 | E56: NULL | F56: NULL | G56: 44377.47357 | H56: 327 | I56: 351 | J56: 1 | K56: NULL | L56: NULL | M56: 1 | N56: 0 | O56: 351 | P56: London | Q56: NULL | R56: NULL | S56: 1 | T56: NULL | U56: =_xlfn.NUMBERVALUE(MID(C56,1,FIND(".",C56)-1)) -> 217 | V56: =_xlfn.NUMBERVALUE(MID(C56,FIND(".",C56)+1,FIND(".",C56,FIND(".",C56)+1)-1-FIND(".",C56))) -> 118 | W56: =_xlfn.NUMBERVALUE(MID(C56,FIND(".",C56,FIND(".",C56)+1)+1,FIND(".",C56,FIND(".",C56,FIND(".",C56)+1)+1)-1-FIND(".",C56,FIND(".",C56)+1))) -> 119 | X56: =_xlfn.NUMBERVALUE(MID(C56,FIND(".",C56,FIND(".",C56,FIND(".",C56)+1)+1)+1,LEN(C56))) -> 96 | Y56: =U56*256^3+V56*256^2+W56*256+X56 -> 3648419680 | Z56: =_xlfn.NUMBERVALUE(MID(D56,1,FIND(".",D56)-1)) -> 217 | AA56: =_xlfn.NUMBERVALUE(MID(D56,FIND(".",D56)+1,FIND(".",D56,FIND(".",D56)+1)-1-FIND(".",D56))) -> 118 | AB56: =_xlfn.NUMBERVALUE(MID(D56,FIND(".",D56,FIND(".",D56)+1)+1,FIND(".",D56,FIND(".",D56,FIND(".",D56)+1)+1)-1-FIND(".",D56,FIND(".",D56)+1))) -> 119 | AC56: =_xlfn.NUMBERVALUE(MID(D56,FIND(".",D56,FIND(".",D56,FIND(".",D56)+1)+1)+1,LEN(D56))) -> 127 | AD56: =Z56*256^3+AA56*256^2+AB56*256+AC56 -> 3648419711
A57: 19112 | B57: 36 | C57: 5.175.81.104 | D57: 5.175.81.111 | E57: NULL | F57: NULL | G57: 44377.47357 | H57: 327 | I57: 698 | J57: 1 | K57: NULL | L57: NULL | M57: 1 | N57: 0 | O57: 698 | P57: Century City | Q57: NULL | R57: NULL | S57: 1 | T57: NULL | U57: =_xlfn.NUMBERVALUE(MID(C57,1,FIND(".",C57)-1)) -> 5 | V57: =_xlfn.NUMBERVALUE(MID(C57,FIND(".",C57)+1,FIND(".",C57,FIND(".",C57)+1)-1-FIND(".",C57))) -> 175 | W57: =_xlfn.NUMBERVALUE(MID(C57,FIND(".",C57,FIND(".",C57)+1)+1,FIND(".",C57,FIND(".",C57,FIND(".",C57)+1)+1)-1-FIND(".",C57,FIND(".",C57)+1))) -> 81 | X57: =_xlfn.NUMBERVALUE(MID(C57,FIND(".",C57,FIND(".",C57,FIND(".",C57)+1)+1)+1,LEN(C57))) -> 104 | Y57: =U57*256^3+V57*256^2+W57*256+X57 -> 95375720 | Z57: =_xlfn.NUMBERVALUE(MID(D57,1,FIND(".",D57)-1)) -> 5 | AA57: =_xlfn.NUMBERVALUE(MID(D57,FIND(".",D57)+1,FIND(".",D57,FIND(".",D57)+1)-1-FIND(".",D57))) -> 175 | AB57: =_xlfn.NUMBERVALUE(MID(D57,FIND(".",D57,FIND(".",D57)+1)+1,FIND(".",D57,FIND(".",D57,FIND(".",D57)+1)+1)-1-FIND(".",D57,FIND(".",D57)+1))) -> 81 | AC57: =_xlfn.NUMBERVALUE(MID(D57,FIND(".",D57,FIND(".",D57,FIND(".",D57)+1)+1)+1,LEN(D57))) -> 111 | AD57: =Z57*256^3+AA57*256^2+AB57*256+AC57 -> 95375727
A58: 19090 | B58: 36 | C58: 61.8.255.50 | D58: 61.8.255.50 | E58: NULL | F58: NULL | G58: 44377.47357 | H58: 327 | I58: 581 | J58: 1 | K58: NULL | L58: NULL | M58: 1 | N58: 0 | O58: 581 | P58: Singapore | Q58: NULL | R58: NULL | S58: 1 | T58: NULL | U58: =_xlfn.NUMBERVALUE(MID(C58,1,FIND(".",C58)-1)) -> 61 | V58: =_xlfn.NUMBERVALUE(MID(C58,FIND(".",C58)+1,FIND(".",C58,FIND(".",C58)+1)-1-FIND(".",C58))) -> 8 | W58: =_xlfn.NUMBERVALUE(MID(C58,FIND(".",C58,FIND(".",C58)+1)+1,FIND(".",C58,FIND(".",C58,FIND(".",C58)+1)+1)-1-FIND(".",C58,FIND(".",C58)+1))) -> 255 | X58: =_xlfn.NUMBERVALUE(MID(C58,FIND(".",C58,FIND(".",C58,FIND(".",C58)+1)+1)+1,LEN(C58))) -> 50 | Y58: =U58*256^3+V58*256^2+W58*256+X58 -> 1023999794 | Z58: =_xlfn.NUMBERVALUE(MID(D58,1,FIND(".",D58)-1)) -> 61 | AA58: =_xlfn.NUMBERVALUE(MID(D58,FIND(".",D58)+1,FIND(".",D58,FIND(".",D58)+1)-1-FIND(".",D58))) -> 8 | AB58: =_xlfn.NUMBERVALUE(MID(D58,FIND(".",D58,FIND(".",D58)+1)+1,FIND(".",D58,FIND(".",D58,FIND(".",D58)+1)+1)-1-FIND(".",D58,FIND(".",D58)+1))) -> 255 | AC58: =_xlfn.NUMBERVALUE(MID(D58,FIND(".",D58,FIND(".",D58,FIND(".",D58)+1)+1)+1,LEN(D58))) -> 50 | AD58: =Z58*256^3+AA58*256^2+AB58*256+AC58 -> 1023999794
A59: 19072 | B59: 36 | C59: 62.190.107.128 | D59: 62.190.107.255 | E59: NULL | F59: NULL | G59: 44377.47357 | H59: 327 | I59: 351 | J59: 1 | K59: NULL | L59: NULL | M59: 1 | N59: 0 | O59: 351 | P59: London | Q59: NULL | R59: NULL | S59: 1 | T59: NULL | U59: =_xlfn.NUMBERVALUE(MID(C59,1,FIND(".",C59)-1)) -> 62 | V59: =_xlfn.NUMBERVALUE(MID(C59,FIND(".",C59)+1,FIND(".",C59,FIND(".",C59)+1)-1-FIND(".",C59))) -> 190 | W59: =_xlfn.NUMBERVALUE(MID(C59,FIND(".",C59,FIND(".",C59)+1)+1,FIND(".",C59,FIND(".",C59,FIND(".",C59)+1)+1)-1-FIND(".",C59,FIND(".",C59)+1))) -> 107 | X59: =_xlfn.NUMBERVALUE(MID(C59,FIND(".",C59,FIND(".",C59,FIND(".",C59)+1)+1)+1,LEN(C59))) -> 128 | Y59: =U59*256^3+V59*256^2+W59*256+X59 -> 1052666752 | Z59: =_xlfn.NUMBERVALUE(MID(D59,1,FIND(".",D59)-1)) -> 62 | AA59: =_xlfn.NUMBERVALUE(MID(D59,FIND(".",D59)+1,FIND(".",D59,FIND(".",D59)+1)-1-FIND(".",D59))) -> 190 | AB59: =_xlfn.NUMBERVALUE(MID(D59,FIND(".",D59,FIND(".",D59)+1)+1,FIND(".",D59,FIND(".",D59,FIND(".",D59)+1)+1)-1-FIND(".",D59,FIND(".",D59)+1))) -> 107 | AC59: =_xlfn.NUMBERVALUE(MID(D59,FIND(".",D59,FIND(".",D59,FIND(".",D59)+1)+1)+1,LEN(D59))) -> 255 | AD59: =Z59*256^3+AA59*256^2+AB59*256+AC59 -> 1052666879
A60: 19074 | B60: 36 | C60: 62.22.51.216 | D60: 62.22.51.223 | E60: NULL | F60: NULL | G60: 44377.47357 | H60: 327 | I60: 372 | J60: 1 | K60: NULL | L60: NULL | M60: 1 | N60: 0 | O60: 372 | P60: Madrid | Q60: NULL | R60: NULL | S60: 1 | T60: NULL | U60: =_xlfn.NUMBERVALUE(MID(C60,1,FIND(".",C60)-1)) -> 62 | V60: =_xlfn.NUMBERVALUE(MID(C60,FIND(".",C60)+1,FIND(".",C60,FIND(".",C60)+1)-1-FIND(".",C60))) -> 22 | W60: =_xlfn.NUMBERVALUE(MID(C60,FIND(".",C60,FIND(".",C60)+1)+1,FIND(".",C60,FIND(".",C60,FIND(".",C60)+1)+1)-1-FIND(".",C60,FIND(".",C60)+1))) -> 51 | X60: =_xlfn.NUMBERVALUE(MID(C60,FIND(".",C60,FIND(".",C60,FIND(".",C60)+1)+1)+1,LEN(C60))) -> 216 | Y60: =U60*256^3+V60*256^2+W60*256+X60 -> 1041642456 | Z60: =_xlfn.NUMBERVALUE(MID(D60,1,FIND(".",D60)-1)) -> 62 | AA60: =_xlfn.NUMBERVALUE(MID(D60,FIND(".",D60)+1,FIND(".",D60,FIND(".",D60)+1)-1-FIND(".",D60))) -> 22 | AB60: =_xlfn.NUMBERVALUE(MID(D60,FIND(".",D60,FIND(".",D60)+1)+1,FIND(".",D60,FIND(".",D60,FIND(".",D60)+1)+1)-1-FIND(".",D60,FIND(".",D60)+1))) -> 51 | AC60: =_xlfn.NUMBERVALUE(MID(D60,FIND(".",D60,FIND(".",D60,FIND(".",D60)+1)+1)+1,LEN(D60))) -> 223 | AD60: =Z60*256^3+AA60*256^2+AB60*256+AC60 -> 1041642463
A61: 19080 | B61: 36 | C61: 63.115.30.200 | D61: 63.115.30.207 | E61: NULL | F61: NULL | G61: 44377.47357 | H61: 327 | I61: 440 | J61: 1 | K61: NULL | L61: NULL | M61: 1 | N61: 0 | O61: 440 | P61: New York | Q61: NULL | R61: NULL | S61: 1 | T61: NULL | U61: =_xlfn.NUMBERVALUE(MID(C61,1,FIND(".",C61)-1)) -> 63 | V61: =_xlfn.NUMBERVALUE(MID(C61,FIND(".",C61)+1,FIND(".",C61,FIND(".",C61)+1)-1-FIND(".",C61))) -> 115 | W61: =_xlfn.NUMBERVALUE(MID(C61,FIND(".",C61,FIND(".",C61)+1)+1,FIND(".",C61,FIND(".",C61,FIND(".",C61)+1)+1)-1-FIND(".",C61,FIND(".",C61)+1))) -> 30 | X61: =_xlfn.NUMBERVALUE(MID(C61,FIND(".",C61,FIND(".",C61,FIND(".",C61)+1)+1)+1,LEN(C61))) -> 200 | Y61: =U61*256^3+V61*256^2+W61*256+X61 -> 1064509128 | Z61: =_xlfn.NUMBERVALUE(MID(D61,1,FIND(".",D61)-1)) -> 63 | AA61: =_xlfn.NUMBERVALUE(MID(D61,FIND(".",D61)+1,FIND(".",D61,FIND(".",D61)+1)-1-FIND(".",D61))) -> 115 | AB61: =_xlfn.NUMBERVALUE(MID(D61,FIND(".",D61,FIND(".",D61)+1)+1,FIND(".",D61,FIND(".",D61,FIND(".",D61)+1)+1)-1-FIND(".",D61,FIND(".",D61)+1))) -> 30 | AC61: =_xlfn.NUMBERVALUE(MID(D61,FIND(".",D61,FIND(".",D61,FIND(".",D61)+1)+1)+1,LEN(D61))) -> 207 | AD61: =Z61*256^3+AA61*256^2+AB61*256+AC61 -> 1064509135
A62: 19079 | B62: 36 | C62: 63.115.56.64 | D62: 63.115.56.79 | E62: NULL | F62: NULL | G62: 44377.47357 | H62: 327 | I62: 440 | J62: 1 | K62: NULL | L62: NULL | M62: 1 | N62: 0 | O62: 440 | P62: New York | Q62: NULL | R62: NULL | S62: 1 | T62: NULL | U62: =_xlfn.NUMBERVALUE(MID(C62,1,FIND(".",C62)-1)) -> 63 | V62: =_xlfn.NUMBERVALUE(MID(C62,FIND(".",C62)+1,FIND(".",C62,FIND(".",C62)+1)-1-FIND(".",C62))) -> 115 | W62: =_xlfn.NUMBERVALUE(MID(C62,FIND(".",C62,FIND(".",C62)+1)+1,FIND(".",C62,FIND(".",C62,FIND(".",C62)+1)+1)-1-FIND(".",C62,FIND(".",C62)+1))) -> 56 | X62: =_xlfn.NUMBERVALUE(MID(C62,FIND(".",C62,FIND(".",C62,FIND(".",C62)+1)+1)+1,LEN(C62))) -> 64 | Y62: =U62*256^3+V62*256^2+W62*256+X62 -> 1064515648 | Z62: =_xlfn.NUMBERVALUE(MID(D62,1,FIND(".",D62)-1)) -> 63 | AA62: =_xlfn.NUMBERVALUE(MID(D62,FIND(".",D62)+1,FIND(".",D62,FIND(".",D62)+1)-1-FIND(".",D62))) -> 115 | AB62: =_xlfn.NUMBERVALUE(MID(D62,FIND(".",D62,FIND(".",D62)+1)+1,FIND(".",D62,FIND(".",D62,FIND(".",D62)+1)+1)-1-FIND(".",D62,FIND(".",D62)+1))) -> 56 | AC62: =_xlfn.NUMBERVALUE(MID(D62,FIND(".",D62,FIND(".",D62,FIND(".",D62)+1)+1)+1,LEN(D62))) -> 79 | AD62: =Z62*256^3+AA62*256^2+AB62*256+AC62 -> 1064515663
A63: 19087 | B63: 36 | C63: 63.80.219.24 | D63: 63.80.219.31 | E63: NULL | F63: NULL | G63: 44377.47357 | H63: 327 | I63: 579 | J63: 1 | K63: NULL | L63: NULL | M63: 1 | N63: 0 | O63: 579 | P63: Silicon Valley | Q63: NULL | R63: NULL | S63: 1 | T63: NULL | U63: =_xlfn.NUMBERVALUE(MID(C63,1,FIND(".",C63)-1)) -> 63 | V63: =_xlfn.NUMBERVALUE(MID(C63,FIND(".",C63)+1,FIND(".",C63,FIND(".",C63)+1)-1-FIND(".",C63))) -> 80 | W63: =_xlfn.NUMBERVALUE(MID(C63,FIND(".",C63,FIND(".",C63)+1)+1,FIND(".",C63,FIND(".",C63,FIND(".",C63)+1)+1)-1-FIND(".",C63,FIND(".",C63)+1))) -> 219 | X63: =_xlfn.NUMBERVALUE(MID(C63,FIND(".",C63,FIND(".",C63,FIND(".",C63)+1)+1)+1,LEN(C63))) -> 24 | Y63: =U63*256^3+V63*256^2+W63*256+X63 -> 1062263576 | Z63: =_xlfn.NUMBERVALUE(MID(D63,1,FIND(".",D63)-1)) -> 63 | AA63: =_xlfn.NUMBERVALUE(MID(D63,FIND(".",D63)+1,FIND(".",D63,FIND(".",D63)+1)-1-FIND(".",D63))) -> 80 | AB63: =_xlfn.NUMBERVALUE(MID(D63,FIND(".",D63,FIND(".",D63)+1)+1,FIND(".",D63,FIND(".",D63,FIND(".",D63)+1)+1)-1-FIND(".",D63,FIND(".",D63)+1))) -> 219 | AC63: =_xlfn.NUMBERVALUE(MID(D63,FIND(".",D63,FIND(".",D63,FIND(".",D63)+1)+1)+1,LEN(D63))) -> 31 | AD63: =Z63*256^3+AA63*256^2+AB63*256+AC63 -> 1062263583
A64: 19093 | B64: 36 | C64: 63.88.108.0 | D64: 63.88.108.7 | E64: NULL | F64: NULL | G64: 44377.47357 | H64: 327 | I64: 661 | J64: 1 | K64: NULL | L64: NULL | M64: 1 | N64: 0 | O64: 661 | P64: Washington DC | Q64: NULL | R64: NULL | S64: 1 | T64: NULL | U64: =_xlfn.NUMBERVALUE(MID(C64,1,FIND(".",C64)-1)) -> 63 | V64: =_xlfn.NUMBERVALUE(MID(C64,FIND(".",C64)+1,FIND(".",C64,FIND(".",C64)+1)-1-FIND(".",C64))) -> 88 | W64: =_xlfn.NUMBERVALUE(MID(C64,FIND(".",C64,FIND(".",C64)+1)+1,FIND(".",C64,FIND(".",C64,FIND(".",C64)+1)+1)-1-FIND(".",C64,FIND(".",C64)+1))) -> 108 | X64: =_xlfn.NUMBERVALUE(MID(C64,FIND(".",C64,FIND(".",C64,FIND(".",C64)+1)+1)+1,LEN(C64))) -> 0 | Y64: =U64*256^3+V64*256^2+W64*256+X64 -> 1062759424 | Z64: =_xlfn.NUMBERVALUE(MID(D64,1,FIND(".",D64)-1)) -> 63 | AA64: =_xlfn.NUMBERVALUE(MID(D64,FIND(".",D64)+1,FIND(".",D64,FIND(".",D64)+1)-1-FIND(".",D64))) -> 88 | AB64: =_xlfn.NUMBERVALUE(MID(D64,FIND(".",D64,FIND(".",D64)+1)+1,FIND(".",D64,FIND(".",D64,FIND(".",D64)+1)+1)-1-FIND(".",D64,FIND(".",D64)+1))) -> 108 | AC64: =_xlfn.NUMBERVALUE(MID(D64,FIND(".",D64,FIND(".",D64,FIND(".",D64)+1)+1)+1,LEN(D64))) -> 7 | AD64: =Z64*256^3+AA64*256^2+AB64*256+AC64 -> 1062759431
A65: 19094 | B65: 36 | C65: 63.88.2.32 | D65: 63.88.2.47 | E65: NULL | F65: NULL | G65: 44377.47357 | H65: 327 | I65: 661 | J65: 1 | K65: NULL | L65: NULL | M65: 1 | N65: 0 | O65: 661 | P65: Washington DC | Q65: NULL | R65: NULL | S65: 1 | T65: NULL | U65: =_xlfn.NUMBERVALUE(MID(C65,1,FIND(".",C65)-1)) -> 63 | V65: =_xlfn.NUMBERVALUE(MID(C65,FIND(".",C65)+1,FIND(".",C65,FIND(".",C65)+1)-1-FIND(".",C65))) -> 88 | W65: =_xlfn.NUMBERVALUE(MID(C65,FIND(".",C65,FIND(".",C65)+1)+1,FIND(".",C65,FIND(".",C65,FIND(".",C65)+1)+1)-1-FIND(".",C65,FIND(".",C65)+1))) -> 2 | X65: =_xlfn.NUMBERVALUE(MID(C65,FIND(".",C65,FIND(".",C65,FIND(".",C65)+1)+1)+1,LEN(C65))) -> 32 | Y65: =U65*256^3+V65*256^2+W65*256+X65 -> 1062732320 | Z65: =_xlfn.NUMBERVALUE(MID(D65,1,FIND(".",D65)-1)) -> 63 | AA65: =_xlfn.NUMBERVALUE(MID(D65,FIND(".",D65)+1,FIND(".",D65,FIND(".",D65)+1)-1-FIND(".",D65))) -> 88 | AB65: =_xlfn.NUMBERVALUE(MID(D65,FIND(".",D65,FIND(".",D65)+1)+1,FIND(".",D65,FIND(".",D65,FIND(".",D65)+1)+1)-1-FIND(".",D65,FIND(".",D65)+1))) -> 2 | AC65: =_xlfn.NUMBERVALUE(MID(D65,FIND(".",D65,FIND(".",D65,FIND(".",D65)+1)+1)+1,LEN(D65))) -> 47 | AD65: =Z65*256^3+AA65*256^2+AB65*256+AC65 -> 1062732335
A66: 19069 | B66: 36 | C66: 79.173.128.232 | D66: 79.173.128.239 | E66: NULL | F66: NULL | G66: 44377.47357 | H66: 327 | I66: 351 | J66: 1 | K66: NULL | L66: NULL | M66: 1 | N66: 0 | O66: 351 | P66: London | Q66: NULL | R66: NULL | S66: 1 | T66: NULL | U66: =_xlfn.NUMBERVALUE(MID(C66,1,FIND(".",C66)-1)) -> 79 | V66: =_xlfn.NUMBERVALUE(MID(C66,FIND(".",C66)+1,FIND(".",C66,FIND(".",C66)+1)-1-FIND(".",C66))) -> 173 | W66: =_xlfn.NUMBERVALUE(MID(C66,FIND(".",C66,FIND(".",C66)+1)+1,FIND(".",C66,FIND(".",C66,FIND(".",C66)+1)+1)-1-FIND(".",C66,FIND(".",C66)+1))) -> 128 | X66: =_xlfn.NUMBERVALUE(MID(C66,FIND(".",C66,FIND(".",C66,FIND(".",C66)+1)+1)+1,LEN(C66))) -> 232 | Y66: =U66*256^3+V66*256^2+W66*256+X66 -> 1336770792 | Z66: =_xlfn.NUMBERVALUE(MID(D66,1,FIND(".",D66)-1)) -> 79 | AA66: =_xlfn.NUMBERVALUE(MID(D66,FIND(".",D66)+1,FIND(".",D66,FIND(".",D66)+1)-1-FIND(".",D66))) -> 173 | AB66: =_xlfn.NUMBERVALUE(MID(D66,FIND(".",D66,FIND(".",D66)+1)+1,FIND(".",D66,FIND(".",D66,FIND(".",D66)+1)+1)-1-FIND(".",D66,FIND(".",D66)+1))) -> 128 | AC66: =_xlfn.NUMBERVALUE(MID(D66,FIND(".",D66,FIND(".",D66,FIND(".",D66)+1)+1)+1,LEN(D66))) -> 239 | AD66: =Z66*256^3+AA66*256^2+AB66*256+AC66 -> 1336770799
A67: 19117 | B67: 36 | C67: 80.95.220.202 | D67: 80.95.220.202 | E67: NULL | F67: NULL | G67: 44377.47357 | H67: 327 | I67: 706 | J67: 1 | K67: NULL | L67: NULL | M67: 1 | N67: 0 | O67: 706 | P67: Bahrain | Q67: NULL | R67: NULL | S67: 1 | T67: NULL | U67: =_xlfn.NUMBERVALUE(MID(C67,1,FIND(".",C67)-1)) -> 80 | V67: =_xlfn.NUMBERVALUE(MID(C67,FIND(".",C67)+1,FIND(".",C67,FIND(".",C67)+1)-1-FIND(".",C67))) -> 95 | W67: =_xlfn.NUMBERVALUE(MID(C67,FIND(".",C67,FIND(".",C67)+1)+1,FIND(".",C67,FIND(".",C67,FIND(".",C67)+1)+1)-1-FIND(".",C67,FIND(".",C67)+1))) -> 220 | X67: =_xlfn.NUMBERVALUE(MID(C67,FIND(".",C67,FIND(".",C67,FIND(".",C67)+1)+1)+1,LEN(C67))) -> 202 | Y67: =U67*256^3+V67*256^2+W67*256+X67 -> 1348459722 | Z67: =_xlfn.NUMBERVALUE(MID(D67,1,FIND(".",D67)-1)) -> 80 | AA67: =_xlfn.NUMBERVALUE(MID(D67,FIND(".",D67)+1,FIND(".",D67,FIND(".",D67)+1)-1-FIND(".",D67))) -> 95 | AB67: =_xlfn.NUMBERVALUE(MID(D67,FIND(".",D67,FIND(".",D67)+1)+1,FIND(".",D67,FIND(".",D67,FIND(".",D67)+1)+1)-1-FIND(".",D67,FIND(".",D67)+1))) -> 220 | AC67: =_xlfn.NUMBERVALUE(MID(D67,FIND(".",D67,FIND(".",D67,FIND(".",D67)+1)+1)+1,LEN(D67))) -> 202 | AD67: =Z67*256^3+AA67*256^2+AB67*256+AC67 -> 1348459722
A68: 19057 | B68: 36 | C68: 83.111.130.48 | D68: 83.111.130.55 | E68: NULL | F68: NULL | G68: 44377.47357 | H68: 327 | I68: 183 | J68: 1 | K68: NULL | L68: NULL | M68: 1 | N68: 0 | O68: 183 | P68: dubai | Q68: NULL | R68: NULL | S68: 1 | T68: NULL | U68: =_xlfn.NUMBERVALUE(MID(C68,1,FIND(".",C68)-1)) -> 83 | V68: =_xlfn.NUMBERVALUE(MID(C68,FIND(".",C68)+1,FIND(".",C68,FIND(".",C68)+1)-1-FIND(".",C68))) -> 111 | W68: =_xlfn.NUMBERVALUE(MID(C68,FIND(".",C68,FIND(".",C68)+1)+1,FIND(".",C68,FIND(".",C68,FIND(".",C68)+1)+1)-1-FIND(".",C68,FIND(".",C68)+1))) -> 130 | X68: =_xlfn.NUMBERVALUE(MID(C68,FIND(".",C68,FIND(".",C68,FIND(".",C68)+1)+1)+1,LEN(C68))) -> 48 | Y68: =U68*256^3+V68*256^2+W68*256+X68 -> 1399816752 | Z68: =_xlfn.NUMBERVALUE(MID(D68,1,FIND(".",D68)-1)) -> 83 | AA68: =_xlfn.NUMBERVALUE(MID(D68,FIND(".",D68)+1,FIND(".",D68,FIND(".",D68)+1)-1-FIND(".",D68))) -> 111 | AB68: =_xlfn.NUMBERVALUE(MID(D68,FIND(".",D68,FIND(".",D68)+1)+1,FIND(".",D68,FIND(".",D68,FIND(".",D68)+1)+1)-1-FIND(".",D68,FIND(".",D68)+1))) -> 130 | AC68: =_xlfn.NUMBERVALUE(MID(D68,FIND(".",D68,FIND(".",D68,FIND(".",D68)+1)+1)+1,LEN(D68))) -> 55 | AD68: =Z68*256^3+AA68*256^2+AB68*256+AC68 -> 1399816759
A69: 19100 | B69: 36 | C69: 92.60.248.44 | D69: 92.60.248.47 | E69: NULL | F69: NULL | G69: 44377.47357 | H69: 327 | I69: 661 | J69: 1 | K69: NULL | L69: NULL | M69: 1 | N69: 0 | O69: 661 | P69: Washington DC | Q69: NULL | R69: NULL | S69: 1 | T69: NULL | U69: =_xlfn.NUMBERVALUE(MID(C69,1,FIND(".",C69)-1)) -> 92 | V69: =_xlfn.NUMBERVALUE(MID(C69,FIND(".",C69)+1,FIND(".",C69,FIND(".",C69)+1)-1-FIND(".",C69))) -> 60 | W69: =_xlfn.NUMBERVALUE(MID(C69,FIND(".",C69,FIND(".",C69)+1)+1,FIND(".",C69,FIND(".",C69,FIND(".",C69)+1)+1)-1-FIND(".",C69,FIND(".",C69)+1))) -> 248 | X69: =_xlfn.NUMBERVALUE(MID(C69,FIND(".",C69,FIND(".",C69,FIND(".",C69)+1)+1)+1,LEN(C69))) -> 44 | Y69: =U69*256^3+V69*256^2+W69*256+X69 -> 1547499564 | Z69: =_xlfn.NUMBERVALUE(MID(D69,1,FIND(".",D69)-1)) -> 92 | AA69: =_xlfn.NUMBERVALUE(MID(D69,FIND(".",D69)+1,FIND(".",D69,FIND(".",D69)+1)-1-FIND(".",D69))) -> 60 | AB69: =_xlfn.NUMBERVALUE(MID(D69,FIND(".",D69,FIND(".",D69)+1)+1,FIND(".",D69,FIND(".",D69,FIND(".",D69)+1)+1)-1-FIND(".",D69,FIND(".",D69)+1))) -> 248 | AC69: =_xlfn.NUMBERVALUE(MID(D69,FIND(".",D69,FIND(".",D69,FIND(".",D69)+1)+1)+1,LEN(D69))) -> 47 | AD69: =Z69*256^3+AA69*256^2+AB69*256+AC69 -> 1547499567
